Transaction Date,Local Authority Department,Beneficiary,Purpose of Expenditure,Amount (excluding VAT),Non Recoverable VAT,Merchant Category
 04-01-2024,oneSource Non-Shared LBH,Oracle Corporation UK Ltd,Ict Software,8747.95,0.00,COMMERCIAL SUPPLIER 
 05-01-2024,oneSource Non-Shared LBH,SSG Support Services Group,Security Services (Excluding Premises),680.64,0.00,COMMERCIAL SUPPLIER 
 11-01-2024,oneSource Non-Shared LBH,Computershare Voucher Services,Private Contractors Payment - Other,3027.44,0.00,COMMERCIAL SUPPLIER 
 19-01-2024,oneSource Non-Shared LBH,Romford Town Management Partnership Ltd,Consultancy Fees,50873.03,0.00,NON COMMERCIAL SUPPLIER 
 23-01-2024,oneSource Non-Shared LBH,Civica UK Ltd_a,Ict Maintenance And Support,5264.94,0.00,COMMERCIAL SUPPLIER 
 30-01-2024,oneSource Non-Shared LBH,Civica Election Services,Consultancy Fees,570.07,0.00,COMMERCIAL SUPPLIER 
 03-01-2024,oneSource Shared,Matrix SCM Ltd,Agency Staff,851.20,0.00,COMMERCIAL SUPPLIER 
 03-01-2024,oneSource Shared,Matrix SCM Ltd,Agency Staff,1746.37,0.00,COMMERCIAL SUPPLIER 
 03-01-2024,oneSource Shared,Matrix SCM Ltd,Agency Staff,2927.60,0.00,COMMERCIAL SUPPLIER 
 03-01-2024,oneSource Shared,Matrix SCM Ltd,Agency Staff,1975.45,0.00,COMMERCIAL SUPPLIER 
 03-01-2024,oneSource Shared,Matrix SCM Ltd,Agency Staff,1815.48,0.00,COMMERCIAL SUPPLIER 
 03-01-2024,oneSource Shared,Matrix SCM Ltd,Agency Staff,1726.11,0.00,COMMERCIAL SUPPLIER 
 03-01-2024,oneSource Shared,Matrix SCM Ltd,Agency Staff,3764.20,0.00,COMMERCIAL SUPPLIER 
 03-01-2024,oneSource Shared,Matrix SCM Ltd,Agency Staff,2493.95,0.00,COMMERCIAL SUPPLIER 
 03-01-2024,oneSource Shared,Matrix SCM Ltd,Agency Staff,2892.04,0.00,COMMERCIAL SUPPLIER 
 03-01-2024,oneSource Shared,Matrix SCM Ltd,Agency Staff,725.42,0.00,COMMERCIAL SUPPLIER 
 03-01-2024,oneSource Shared,Matrix SCM Ltd,Agency Staff,3627.10,0.00,COMMERCIAL SUPPLIER 
 03-01-2024,oneSource Shared,Matrix SCM Ltd,Agency Staff,3630.36,0.00,COMMERCIAL SUPPLIER 
 03-01-2024,oneSource Shared,Matrix SCM Ltd,Agency Staff,2722.77,0.00,COMMERCIAL SUPPLIER 
 03-01-2024,oneSource Shared,Matrix SCM Ltd,Agency Staff,2546.00,0.00,COMMERCIAL SUPPLIER 
 04-01-2024,oneSource Shared,Matrix SCM Ltd,Consultancy Fees,2045.00,0.00,COMMERCIAL SUPPLIER 
 04-01-2024,oneSource Shared,Matrix SCM Ltd,Consultancy Fees,1661.56,0.00,COMMERCIAL SUPPLIER 
 04-01-2024,oneSource Shared,Matrix SCM Ltd,Consultancy Fees,2045.00,0.00,COMMERCIAL SUPPLIER 
 04-01-2024,oneSource Shared,Matrix SCM Ltd,Consultancy Fees,1099.19,0.00,COMMERCIAL SUPPLIER 
 04-01-2024,oneSource Shared,Matrix SCM Ltd,Consultancy Fees,2556.25,0.00,COMMERCIAL SUPPLIER 
 04-01-2024,oneSource Shared,Matrix SCM Ltd,Consultancy Fees,7327.37,0.00,COMMERCIAL SUPPLIER 
 05-01-2024,oneSource Shared,Ovenden Papers Ltd,Printing,1230.90,0.00,COMMERCIAL SUPPLIER 
 05-01-2024,oneSource Shared,Specialist Computer Centres Plc,Ict Hardware,7977.50,0.00,COMMERCIAL SUPPLIER 
 05-01-2024,oneSource Shared,Specialist Computer Centres Plc,Ict Hardware,14705.81,0.00,COMMERCIAL SUPPLIER 
 09-01-2024,oneSource Shared,Canon (UK) Ltd,Printing,889.20,0.00,COMMERCIAL SUPPLIER 
 10-01-2024,oneSource Shared,Matrix SCM Ltd,Agency Staff,1995.16,0.00,COMMERCIAL SUPPLIER 
 10-01-2024,oneSource Shared,Matrix SCM Ltd,Agency Staff,2892.04,0.00,COMMERCIAL SUPPLIER 
 10-01-2024,oneSource Shared,Matrix SCM Ltd,Agency Staff,3011.36,0.00,COMMERCIAL SUPPLIER 
 10-01-2024,oneSource Shared,Matrix SCM Ltd,Agency Staff,597.44,0.00,COMMERCIAL SUPPLIER 
 10-01-2024,oneSource Shared,Matrix SCM Ltd,Agency Staff,781.84,0.00,COMMERCIAL SUPPLIER 
 10-01-2024,oneSource Shared,Matrix SCM Ltd,Agency Staff,584.48,0.00,COMMERCIAL SUPPLIER 
 10-01-2024,oneSource Shared,Matrix SCM Ltd,Agency Staff,592.80,0.00,COMMERCIAL SUPPLIER 
 10-01-2024,oneSource Shared,Matrix SCM Ltd,Agency Staff,715.76,0.00,COMMERCIAL SUPPLIER 
 10-01-2024,oneSource Shared,Matrix SCM Ltd,Agency Staff,590.44,0.00,COMMERCIAL SUPPLIER 
 10-01-2024,oneSource Shared,Matrix SCM Ltd,Agency Staff,2901.68,0.00,COMMERCIAL SUPPLIER 
 10-01-2024,oneSource Shared,Matrix SCM Ltd,Agency Staff,3630.36,0.00,COMMERCIAL SUPPLIER 
 10-01-2024,oneSource Shared,Matrix SCM Ltd,Agency Staff,1434.00,0.00,COMMERCIAL SUPPLIER 
 10-01-2024,oneSource Shared,Matrix SCM Ltd,Agency Staff,2335.32,0.00,COMMERCIAL SUPPLIER 
 10-01-2024,oneSource Shared,Matrix SCM Ltd,Agency Staff,694.05,0.00,COMMERCIAL SUPPLIER 
 10-01-2024,oneSource Shared,Matrix SCM Ltd,Agency Staff,1891.90,0.00,COMMERCIAL SUPPLIER 
 10-01-2024,oneSource Shared,Matrix SCM Ltd,Agency Staff,1708.48,0.00,COMMERCIAL SUPPLIER 
 10-01-2024,oneSource Shared,Matrix SCM Ltd,Agency Staff,975.16,0.00,COMMERCIAL SUPPLIER 
 10-01-2024,oneSource Shared,Matrix SCM Ltd,Agency Staff,1563.33,0.00,COMMERCIAL SUPPLIER 
 10-01-2024,oneSource Shared,Matrix SCM Ltd,Agency Staff,1887.48,0.00,COMMERCIAL SUPPLIER 
 10-01-2024,oneSource Shared,Matrix SCM Ltd,Agency Staff,680.96,0.00,COMMERCIAL SUPPLIER 
 10-01-2024,oneSource Shared,Matrix SCM Ltd,Agency Staff,705.28,0.00,COMMERCIAL SUPPLIER 
 10-01-2024,oneSource Shared,Matrix SCM Ltd,Agency Staff,703.84,0.00,COMMERCIAL SUPPLIER 
 10-01-2024,oneSource Shared,Matrix SCM Ltd,Agency Staff,704.99,0.00,COMMERCIAL SUPPLIER 
 11-01-2024,oneSource Shared,MTI Technology Ltd,Ict Maintenance And Support,12350.00,0.00,COMMERCIAL SUPPLIER 
 12-01-2024,oneSource Shared,Premier Paper Group Ltd,Stationery,734.40,0.00,COMMERCIAL SUPPLIER 
 17-01-2024,oneSource Shared,Matrix SCM Ltd,Agency Staff,875.16,0.00,COMMERCIAL SUPPLIER 
 17-01-2024,oneSource Shared,Matrix SCM Ltd,Agency Staff,873.73,0.00,COMMERCIAL SUPPLIER 
 17-01-2024,oneSource Shared,Matrix SCM Ltd,Agency Staff,1182.00,0.00,COMMERCIAL SUPPLIER 
 17-01-2024,oneSource Shared,Matrix SCM Ltd,Agency Staff,1034.25,0.00,COMMERCIAL SUPPLIER 
 17-01-2024,oneSource Shared,Matrix SCM Ltd,Agency Staff,851.20,0.00,COMMERCIAL SUPPLIER 
 17-01-2024,oneSource Shared,Matrix SCM Ltd,Agency Staff,851.20,0.00,COMMERCIAL SUPPLIER 
 17-01-2024,oneSource Shared,Matrix SCM Ltd,Agency Staff,1189.81,0.00,COMMERCIAL SUPPLIER 
 17-01-2024,oneSource Shared,Matrix SCM Ltd,Agency Staff,3615.05,0.00,COMMERCIAL SUPPLIER 
 17-01-2024,oneSource Shared,Matrix SCM Ltd,Agency Staff,2493.95,0.00,COMMERCIAL SUPPLIER 
 17-01-2024,oneSource Shared,Matrix SCM Ltd,Agency Staff,3764.20,0.00,COMMERCIAL SUPPLIER 
 17-01-2024,oneSource Shared,Matrix SCM Ltd,Agency Staff,3457.80,0.00,COMMERCIAL SUPPLIER 
 17-01-2024,oneSource Shared,Matrix SCM Ltd,Agency Staff,2593.35,0.00,COMMERCIAL SUPPLIER 
 17-01-2024,oneSource Shared,Matrix SCM Ltd,Agency Staff,3457.80,0.00,COMMERCIAL SUPPLIER 
 17-01-2024,oneSource Shared,Matrix SCM Ltd,Agency Staff,970.56,0.00,COMMERCIAL SUPPLIER 
 17-01-2024,oneSource Shared,Matrix SCM Ltd,Agency Staff,748.10,0.00,COMMERCIAL SUPPLIER 
 17-01-2024,oneSource Shared,Matrix SCM Ltd,Agency Staff,711.36,0.00,COMMERCIAL SUPPLIER 
 17-01-2024,oneSource Shared,Matrix SCM Ltd,Agency Staff,732.96,0.00,COMMERCIAL SUPPLIER 
 17-01-2024,oneSource Shared,Matrix SCM Ltd,Agency Staff,880.93,0.00,COMMERCIAL SUPPLIER 
 17-01-2024,oneSource Shared,Matrix SCM Ltd,Agency Staff,731.87,0.00,COMMERCIAL SUPPLIER 
 17-01-2024,oneSource Shared,Matrix SCM Ltd,Agency Staff,3627.10,0.00,COMMERCIAL SUPPLIER 
 17-01-2024,oneSource Shared,Matrix SCM Ltd,Agency Staff,4537.95,0.00,COMMERCIAL SUPPLIER 
 17-01-2024,oneSource Shared,Matrix SCM Ltd,Agency Staff,2546.00,0.00,COMMERCIAL SUPPLIER 
 18-01-2024,oneSource Shared,Mastek System Company Ltd,Ict Software,40500.00,0.00,COMMERCIAL SUPPLIER 
 18-01-2024,oneSource Shared,Matrix SCM Ltd,Consultancy Fees,8998.00,0.00,COMMERCIAL SUPPLIER 
 19-01-2024,oneSource Shared,Inoapps Limited,Ict Maintenance And Support,3045.00,0.00,COMMERCIAL SUPPLIER 
 19-01-2024,oneSource Shared,Inoapps Limited,Ict Maintenance And Support,3045.00,0.00,COMMERCIAL SUPPLIER 
 20-01-2024,oneSource Shared,Personal Information - Redacted,Ict Software,609.99,0.00,Employee 
 22-01-2024,oneSource Shared,DAISY CORPORTATE SERVICES TRADING,Mobile Phone Costs,20049.00,0.00,COMMERCIAL SUPPLIER 
 22-01-2024,oneSource Shared,DAISY CORPORTATE SERVICES TRADING,Mobile Phone Costs,16857.36,0.00,COMMERCIAL SUPPLIER 
 22-01-2024,oneSource Shared,Stripe OLT,Ict Maintenance And Support,12500.00,0.00,COMMERCIAL SUPPLIER 
 23-01-2024,oneSource Shared,Bytes Software Services,Ict Software,523.59,0.00,COMMERCIAL SUPPLIER 
 24-01-2024,oneSource Shared,Matrix SCM Ltd,Agency Staff,875.16,0.00,COMMERCIAL SUPPLIER 
 24-01-2024,oneSource Shared,Matrix SCM Ltd,Agency Staff,873.73,0.00,COMMERCIAL SUPPLIER 
 24-01-2024,oneSource Shared,Matrix SCM Ltd,Agency Staff,851.20,0.00,COMMERCIAL SUPPLIER 
 24-01-2024,oneSource Shared,Matrix SCM Ltd,Agency Staff,851.20,0.00,COMMERCIAL SUPPLIER 
 24-01-2024,oneSource Shared,Matrix SCM Ltd,Agency Staff,3046.05,0.00,COMMERCIAL SUPPLIER 
 24-01-2024,oneSource Shared,Matrix SCM Ltd,Agency Staff,3764.20,0.00,COMMERCIAL SUPPLIER 
 24-01-2024,oneSource Shared,Matrix SCM Ltd,Agency Staff,2493.95,0.00,COMMERCIAL SUPPLIER 
 24-01-2024,oneSource Shared,Matrix SCM Ltd,Agency Staff,3615.05,0.00,COMMERCIAL SUPPLIER 
 24-01-2024,oneSource Shared,Matrix SCM Ltd,Agency Staff,970.56,0.00,COMMERCIAL SUPPLIER 
 24-01-2024,oneSource Shared,Matrix SCM Ltd,Agency Staff,748.10,0.00,COMMERCIAL SUPPLIER 
 24-01-2024,oneSource Shared,Matrix SCM Ltd,Agency Staff,731.87,0.00,COMMERCIAL SUPPLIER 
 24-01-2024,oneSource Shared,Matrix SCM Ltd,Agency Staff,880.93,0.00,COMMERCIAL SUPPLIER 
 24-01-2024,oneSource Shared,Matrix SCM Ltd,Agency Staff,732.96,0.00,COMMERCIAL SUPPLIER 
 24-01-2024,oneSource Shared,Matrix SCM Ltd,Agency Staff,3627.10,0.00,COMMERCIAL SUPPLIER 
 24-01-2024,oneSource Shared,Matrix SCM Ltd,Agency Staff,4537.95,0.00,COMMERCIAL SUPPLIER 
 24-01-2024,oneSource Shared,Matrix SCM Ltd,Agency Staff,2546.00,0.00,COMMERCIAL SUPPLIER 
 25-01-2024,oneSource Shared,Bytes Software Services,Ict Software,21452.64,0.00,COMMERCIAL SUPPLIER 
 25-01-2024,oneSource Shared,Specialist Computer Centres Plc,Ict Hardware,2870.50,0.00,COMMERCIAL SUPPLIER 
 26-01-2024,oneSource Shared,Canon (UK) Ltd,Printing,889.20,0.00,COMMERCIAL SUPPLIER 
 29-01-2024,oneSource Shared,Wilkin Chapman LLP,Legal Fees,2443.50,0.00,COMMERCIAL SUPPLIER 
 29-01-2024,oneSource Shared,Wilkin Chapman LLP,Legal Fees,1400.00,0.00,COMMERCIAL SUPPLIER 
 30-01-2024,oneSource Shared,Canon (UK) Ltd,Printing,889.20,0.00,COMMERCIAL SUPPLIER 
 31-01-2024,oneSource Shared,Matrix SCM Ltd,Agency Staff,3764.20,0.00,COMMERCIAL SUPPLIER 
 31-01-2024,oneSource Shared,Matrix SCM Ltd,Agency Staff,748.10,0.00,COMMERCIAL SUPPLIER 
 31-01-2024,oneSource Shared,Matrix SCM Ltd,Agency Staff,970.56,0.00,COMMERCIAL SUPPLIER 
 31-01-2024,oneSource Shared,Matrix SCM Ltd,Agency Staff,731.87,0.00,COMMERCIAL SUPPLIER 
 31-01-2024,oneSource Shared,Matrix SCM Ltd,Agency Staff,838.10,0.00,COMMERCIAL SUPPLIER 
 31-01-2024,oneSource Shared,Matrix SCM Ltd,Agency Staff,732.96,0.00,COMMERCIAL SUPPLIER 
 31-01-2024,oneSource Shared,Matrix SCM Ltd,Agency Staff,3627.10,0.00,COMMERCIAL SUPPLIER 
 31-01-2024,oneSource Shared,Matrix SCM Ltd,Agency Staff,4537.95,0.00,COMMERCIAL SUPPLIER 
 31-01-2024,oneSource Shared,Matrix SCM Ltd,Agency Staff,2546.00,0.00,COMMERCIAL SUPPLIER 
 31-01-2024,oneSource Shared,Matrix SCM Ltd,Agency Staff,2493.95,0.00,COMMERCIAL SUPPLIER 
 31-01-2024,oneSource Shared,Matrix SCM Ltd,Agency Staff,3457.80,0.00,COMMERCIAL SUPPLIER 
 31-01-2024,oneSource Shared,Matrix SCM Ltd,Agency Staff,3457.80,0.00,COMMERCIAL SUPPLIER 
 31-01-2024,oneSource Shared,Matrix SCM Ltd,Agency Staff,851.20,0.00,COMMERCIAL SUPPLIER 
 31-01-2024,oneSource Shared,Matrix SCM Ltd,Agency Staff,851.20,0.00,COMMERCIAL SUPPLIER 
 31-01-2024,oneSource Shared,Matrix SCM Ltd,Agency Staff,1182.01,0.00,COMMERCIAL SUPPLIER 
 31-01-2024,oneSource Shared,Matrix SCM Ltd,Agency Staff,1211.56,0.00,COMMERCIAL SUPPLIER 
 31-01-2024,oneSource Shared,Matrix SCM Ltd,Agency Staff,3012.21,0.00,COMMERCIAL SUPPLIER 
 31-01-2024,oneSource Shared,Matrix SCM Ltd,Agency Staff,3012.21,0.00,COMMERCIAL SUPPLIER 
 31-01-2024,oneSource Shared,Matrix SCM Ltd,Agency Staff,875.16,0.00,COMMERCIAL SUPPLIER 
 31-01-2024,oneSource Shared,Matrix SCM Ltd,Agency Staff,873.73,0.00,COMMERCIAL SUPPLIER 
 31-01-2024,oneSource Shared,Version 1 Solutions Limited,Ict Maintenance And Support,22950.00,0.00,COMMERCIAL SUPPLIER 
 01-01-2024,People - Ageing Well,Marlow,Residential Placements - Private Contractors Payment,2256.24,0.00,COMMERCIAL SUPPLIER 
 01-01-2024,People - Ageing Well,Marlow,Residential Placements - Private Contractors Payment,7109.84,0.00,COMMERCIAL SUPPLIER 
 01-01-2024,People - Ageing Well,Amachyck Care Solution Ltd.,Home Care - Private Contractors Payment,1135.70,0.00,COMMERCIAL SUPPLIER 
 01-01-2024,People - Ageing Well,Dignified Homecare,Home Care - Private Contractors Payment,1834.60,0.00,COMMERCIAL SUPPLIER 
 01-01-2024,People - Ageing Well,Dignified Homecare,Home Care - Private Contractors Payment,1834.60,0.00,COMMERCIAL SUPPLIER 
 01-01-2024,People - Ageing Well,ECL Person Centred Care,Daycare - Private Contractors Payment,5832.00,0.00,COMMERCIAL SUPPLIER 
 01-01-2024,People - Ageing Well,Certified Healthcare Solutions Ltd t/a In Home Care Havering,Home Care - Private Contractors Payment,1965.65,0.00,COMMERCIAL SUPPLIER 
 01-01-2024,People - Ageing Well,Certified Healthcare Solutions Ltd t/a In Home Care Havering,Home Care - Private Contractors Payment,2489.81,0.00,COMMERCIAL SUPPLIER 
 01-01-2024,People - Ageing Well,London Homecare Ltd,Home Care - Private Contractors Payment,518.72,0.00,COMMERCIAL SUPPLIER 
 01-01-2024,People - Ageing Well,London Homecare Ltd,Home Care - Private Contractors Payment,764.42,0.00,COMMERCIAL SUPPLIER 
 01-01-2024,People - Ageing Well,London Homecare Ltd,Home Care - Private Contractors Payment,589.70,0.00,COMMERCIAL SUPPLIER 
 01-01-2024,People - Ageing Well,London Homecare Ltd,Home Care - Private Contractors Payment,917.31,0.00,COMMERCIAL SUPPLIER 
 01-01-2024,People - Ageing Well,London Homecare Ltd,Home Care - Private Contractors Payment,1550.69,0.00,COMMERCIAL SUPPLIER 
 01-01-2024,People - Ageing Well,London Homecare Ltd,Home Care - Private Contractors Payment,666.14,0.00,COMMERCIAL SUPPLIER 
 01-01-2024,People - Ageing Well,London Homecare Ltd,Home Care - Private Contractors Payment,655.21,0.00,COMMERCIAL SUPPLIER 
 01-01-2024,People - Ageing Well,London Homecare Ltd,Home Care - Private Contractors Payment,1419.63,0.00,COMMERCIAL SUPPLIER 
 01-01-2024,People - Ageing Well,London Homecare Ltd,Home Care - Private Contractors Payment,737.12,0.00,COMMERCIAL SUPPLIER 
 01-01-2024,People - Ageing Well,London Homecare Ltd,Home Care - Private Contractors Payment,1223.08,0.00,COMMERCIAL SUPPLIER 
 01-01-2024,People - Ageing Well,London Homecare Ltd,Home Care - Private Contractors Payment,1223.08,0.00,COMMERCIAL SUPPLIER 
 01-01-2024,People - Ageing Well,London Homecare Ltd,Home Care - Private Contractors Payment,540.56,0.00,COMMERCIAL SUPPLIER 
 01-01-2024,People - Ageing Well,London Homecare Ltd,Home Care - Private Contractors Payment,540.56,0.00,COMMERCIAL SUPPLIER 
 01-01-2024,People - Ageing Well,London Homecare Ltd,Home Care - Private Contractors Payment,835.41,0.00,COMMERCIAL SUPPLIER 
 01-01-2024,People - Ageing Well,London Homecare Ltd,Home Care - Private Contractors Payment,835.41,0.00,COMMERCIAL SUPPLIER 
 01-01-2024,People - Ageing Well,London Homecare Ltd,Home Care - Private Contractors Payment,1528.84,0.00,COMMERCIAL SUPPLIER 
 01-01-2024,People - Ageing Well,London Homecare Ltd,Home Care - Private Contractors Payment,1528.84,0.00,COMMERCIAL SUPPLIER 
 01-01-2024,People - Ageing Well,London Homecare Ltd,Home Care - Private Contractors Payment,2533.45,0.00,COMMERCIAL SUPPLIER 
 01-01-2024,People - Ageing Well,London Homecare Ltd,Home Care - Private Contractors Payment,1463.32,0.00,COMMERCIAL SUPPLIER 
 01-01-2024,People - Ageing Well,London Homecare Ltd,Home Care - Private Contractors Payment,1507.00,0.00,COMMERCIAL SUPPLIER 
 01-01-2024,People - Ageing Well,London Homecare Ltd,Home Care - Private Contractors Payment,1223.08,0.00,COMMERCIAL SUPPLIER 
 01-01-2024,People - Ageing Well,London Homecare Ltd,Home Care - Private Contractors Payment,1375.96,0.00,COMMERCIAL SUPPLIER 
 01-01-2024,People - Ageing Well,London Homecare Ltd,Home Care - Private Contractors Payment,1375.96,0.00,COMMERCIAL SUPPLIER 
 01-01-2024,People - Ageing Well,London Homecare Ltd,Home Care - Private Contractors Payment,1375.96,0.00,COMMERCIAL SUPPLIER 
 01-01-2024,People - Ageing Well,Agracare Ltd t/a Home Instead Senior Care,Home Care - Private Contractors Payment,1720.00,0.00,COMMERCIAL SUPPLIER 
 01-01-2024,People - Ageing Well,Ace Outreach Ltd,Home Care - Private Contractors Payment,1188.00,0.00,COMMERCIAL SUPPLIER 
 02-01-2024,People - Ageing Well,IJB Healthcare Ltd,Home Care - Private Contractors Payment,1823.67,0.00,COMMERCIAL SUPPLIER 
 02-01-2024,People - Ageing Well,IJB Healthcare Ltd,Home Care - Private Contractors Payment,1146.62,0.00,COMMERCIAL SUPPLIER 
 02-01-2024,People - Ageing Well,IJB Healthcare Ltd,Home Care - Private Contractors Payment,764.42,0.00,COMMERCIAL SUPPLIER 
 02-01-2024,People - Ageing Well,IJB Healthcare Ltd,Home Care - Private Contractors Payment,2904.73,0.00,COMMERCIAL SUPPLIER 
 02-01-2024,People - Ageing Well,IJB Healthcare Ltd,Home Care - Private Contractors Payment,1201.22,0.00,COMMERCIAL SUPPLIER 
 02-01-2024,People - Ageing Well,IJB Healthcare Ltd,Home Care - Private Contractors Payment,1223.06,0.00,COMMERCIAL SUPPLIER 
 02-01-2024,People - Ageing Well,Independent People Homecare Services,Home Care - Private Contractors Payment,5169.88,0.00,NON COMMERCIAL SUPPLIER 
 02-01-2024,People - Ageing Well,Bluebird Care Havering,Home Care - Private Contractors Payment,2670.50,0.00,COMMERCIAL SUPPLIER 
 02-01-2024,People - Ageing Well,Bluebird Care Havering,Home Care - Private Contractors Payment,948.84,0.00,COMMERCIAL SUPPLIER 
 02-01-2024,People - Ageing Well,Bluebird Care Havering,Home Care - Private Contractors Payment,1548.88,0.00,COMMERCIAL SUPPLIER 
 02-01-2024,People - Ageing Well,Bluebird Care Havering,Home Care - Private Contractors Payment,2670.50,0.00,COMMERCIAL SUPPLIER 
 02-01-2024,People - Ageing Well,Annie's Healthcare Services CIC,Home Care - Private Contractors Payment,1066.90,0.00,COMMERCIAL SUPPLIER 
 02-01-2024,People - Ageing Well,Annie's Healthcare Services CIC,Home Care - Private Contractors Payment,1066.90,0.00,COMMERCIAL SUPPLIER 
 02-01-2024,People - Ageing Well,Tapestry_a.,Daycare - Private Contractors Payment,1037.00,0.00,COMMERCIAL SUPPLIER 
 02-01-2024,People - Ageing Well,Tapestry_a.,Daycare - Private Contractors Payment,671.00,0.00,COMMERCIAL SUPPLIER 
 02-01-2024,People - Ageing Well,Tapestry_a.,Daycare - Private Contractors Payment,915.00,0.00,COMMERCIAL SUPPLIER 
 02-01-2024,People - Ageing Well,Tapestry_a.,Daycare - Private Contractors Payment,732.00,0.00,COMMERCIAL SUPPLIER 
 02-01-2024,People - Ageing Well,Tapestry_a.,Daycare - Private Contractors Payment,793.00,0.00,COMMERCIAL SUPPLIER 
 02-01-2024,People - Ageing Well,Tapestry_a.,Daycare - Private Contractors Payment,1159.00,0.00,COMMERCIAL SUPPLIER 
 02-01-2024,People - Ageing Well,Tapestry_a.,Daycare - Private Contractors Payment,1159.00,0.00,COMMERCIAL SUPPLIER 
 02-01-2024,People - Ageing Well,Tapestry_a.,Daycare - Private Contractors Payment,732.00,0.00,COMMERCIAL SUPPLIER 
 02-01-2024,People - Ageing Well,Tapestry_a.,Daycare - Private Contractors Payment,976.00,0.00,COMMERCIAL SUPPLIER 
 02-01-2024,People - Ageing Well,Tapestry_a.,Daycare - Private Contractors Payment,671.00,0.00,COMMERCIAL SUPPLIER 
 02-01-2024,People - Ageing Well,Tapestry_a.,Daycare - Private Contractors Payment,732.00,0.00,COMMERCIAL SUPPLIER 
 02-01-2024,People - Ageing Well,Tapestry_a.,Daycare - Private Contractors Payment,671.00,0.00,COMMERCIAL SUPPLIER 
 02-01-2024,People - Ageing Well,Tapestry_a.,Daycare - Private Contractors Payment,732.00,0.00,COMMERCIAL SUPPLIER 
 02-01-2024,People - Ageing Well,Tapestry_a.,Daycare - Private Contractors Payment,732.00,0.00,COMMERCIAL SUPPLIER 
 02-01-2024,People - Ageing Well,Tapestry_a.,Daycare - Private Contractors Payment,732.00,0.00,COMMERCIAL SUPPLIER 
 02-01-2024,People - Ageing Well,Tapestry_a.,Daycare - Private Contractors Payment,732.00,0.00,COMMERCIAL SUPPLIER 
 02-01-2024,People - Ageing Well,Tapestry_a.,Daycare - Private Contractors Payment,793.00,0.00,COMMERCIAL SUPPLIER 
 02-01-2024,People - Ageing Well,Tapestry_a.,Daycare - Private Contractors Payment,915.00,0.00,COMMERCIAL SUPPLIER 
 02-01-2024,People - Ageing Well,Tapestry_a.,Daycare - Private Contractors Payment,732.00,0.00,COMMERCIAL SUPPLIER 
 02-01-2024,People - Ageing Well,Tapestry_a.,Daycare - Private Contractors Payment,549.00,0.00,COMMERCIAL SUPPLIER 
 02-01-2024,People - Ageing Well,Able2achieve Ltd,Supported Other Accommodation - Private Contractors Payment,6484.20,0.00,COMMERCIAL SUPPLIER 
 02-01-2024,People - Ageing Well,Able2achieve Ltd,Supported Other Accommodation - Private Contractors Payment,15857.40,0.00,COMMERCIAL SUPPLIER 
 02-01-2024,People - Ageing Well,Able2achieve Ltd,Supported Other Accommodation - Private Contractors Payment,23368.80,0.00,COMMERCIAL SUPPLIER 
 02-01-2024,People - Ageing Well,Barleycroft Care Home Ltd,Nursing Homes - Private Contractors Payment,2957.14,0.00,COMMERCIAL SUPPLIER 
 02-01-2024,People - Ageing Well,Eveshel Care Ltd,Home Care - Private Contractors Payment,1157.55,0.00,COMMERCIAL SUPPLIER 
 02-01-2024,People - Ageing Well,Eveshel Care Ltd,Home Care - Private Contractors Payment,1157.55,0.00,COMMERCIAL SUPPLIER 
 03-01-2024,People - Ageing Well,R G Care Ltd ,Daycare - Private Contractors Payment,840.00,0.00,COMMERCIAL SUPPLIER 
 03-01-2024,People - Ageing Well,R G Care Ltd ,Daycare - Private Contractors Payment,900.00,0.00,COMMERCIAL SUPPLIER 
 03-01-2024,People - Ageing Well,Gordon Care Services Limited,Home Care - Private Contractors Payment,3232.36,0.00,NON COMMERCIAL SUPPLIER 
 03-01-2024,People - Ageing Well,Recruitcare Professionals Ltd ,Home Care - Private Contractors Payment,1223.08,0.00,COMMERCIAL SUPPLIER 
 03-01-2024,People - Ageing Well,Haven Care Ltd.,Home Care - Private Contractors Payment,573.32,0.00,COMMERCIAL SUPPLIER 
 03-01-2024,People - Ageing Well,Cakeybakeydoodaa Ltd,Daycare - Private Contractors Payment,624.00,0.00,COMMERCIAL SUPPLIER 
 03-01-2024,People - Ageing Well,Headway East London,Daycare - Private Contractors Payment,708.00,0.00,COMMERCIAL SUPPLIER 
 03-01-2024,People - Ageing Well,Headway East London,Daycare - Private Contractors Payment,630.00,0.00,COMMERCIAL SUPPLIER 
 03-01-2024,People - Ageing Well,John Stanleys Care Agency Ltd,Home Care - Private Contractors Payment,4861.40,0.00,COMMERCIAL SUPPLIER 
 03-01-2024,People - Ageing Well,John Stanleys Care Agency Ltd,Home Care - Private Contractors Payment,5406.40,0.00,COMMERCIAL SUPPLIER 
 03-01-2024,People - Ageing Well,John Stanleys Care Agency Ltd,Home Care - Private Contractors Payment,6518.20,0.00,COMMERCIAL SUPPLIER 
 03-01-2024,People - Ageing Well,John Stanleys Care Agency Ltd,Home Care - Private Contractors Payment,5733.40,0.00,COMMERCIAL SUPPLIER 
 03-01-2024,People - Ageing Well,Matrix SCM Ltd,Agency Staff,1241.28,0.00,COMMERCIAL SUPPLIER 
 03-01-2024,People - Ageing Well,Matrix SCM Ltd,Agency Staff,507.87,0.00,COMMERCIAL SUPPLIER 
 03-01-2024,People - Ageing Well,Matrix SCM Ltd,Agency Staff,1288.10,0.00,COMMERCIAL SUPPLIER 
 03-01-2024,People - Ageing Well,Matrix SCM Ltd,Agency Staff,805.29,0.00,COMMERCIAL SUPPLIER 
 03-01-2024,People - Ageing Well,Matrix SCM Ltd,Agency Staff,518.96,0.00,COMMERCIAL SUPPLIER 
 03-01-2024,People - Ageing Well,Inna Care Ltd,Home Care - Private Contractors Payment,1375.96,0.00,COMMERCIAL SUPPLIER 
 03-01-2024,People - Ageing Well,Inna Care Ltd,Home Care - Private Contractors Payment,917.31,0.00,COMMERCIAL SUPPLIER 
 03-01-2024,People - Ageing Well,Inna Care Ltd,Home Care - Private Contractors Payment,1004.68,0.00,COMMERCIAL SUPPLIER 
 03-01-2024,People - Ageing Well,Inna Care Ltd,Home Care - Private Contractors Payment,1179.40,0.00,COMMERCIAL SUPPLIER 
 03-01-2024,People - Ageing Well,Inna Care Ltd,Home Care - Private Contractors Payment,611.54,0.00,COMMERCIAL SUPPLIER 
 03-01-2024,People - Ageing Well,Inna Care Ltd,Home Care - Private Contractors Payment,611.54,0.00,COMMERCIAL SUPPLIER 
 03-01-2024,People - Ageing Well,Inna Care Ltd,Home Care - Private Contractors Payment,1223.08,0.00,COMMERCIAL SUPPLIER 
 03-01-2024,People - Ageing Well,Inna Care Ltd,Home Care - Private Contractors Payment,1223.08,0.00,COMMERCIAL SUPPLIER 
 03-01-2024,People - Ageing Well,Inna Care Ltd,Home Care - Private Contractors Payment,1223.06,0.00,COMMERCIAL SUPPLIER 
 03-01-2024,People - Ageing Well,Inna Care Ltd,Home Care - Private Contractors Payment,917.31,0.00,COMMERCIAL SUPPLIER 
 03-01-2024,People - Ageing Well,Inna Care Ltd,Home Care - Private Contractors Payment,1375.96,0.00,COMMERCIAL SUPPLIER 
 03-01-2024,People - Ageing Well,Inna Care Ltd,Home Care - Private Contractors Payment,917.31,0.00,COMMERCIAL SUPPLIER 
 03-01-2024,People - Ageing Well,Inna Care Ltd,Home Care - Private Contractors Payment,2446.12,0.00,COMMERCIAL SUPPLIER 
 03-01-2024,People - Ageing Well,Inna Care Ltd,Home Care - Private Contractors Payment,2446.12,0.00,COMMERCIAL SUPPLIER 
 03-01-2024,People - Ageing Well,Inna Care Ltd,Home Care - Private Contractors Payment,917.31,0.00,COMMERCIAL SUPPLIER 
 03-01-2024,People - Ageing Well,Inna Care Ltd,Home Care - Private Contractors Payment,1616.21,0.00,COMMERCIAL SUPPLIER 
 03-01-2024,People - Ageing Well,Inna Care Ltd,Home Care - Private Contractors Payment,1616.21,0.00,COMMERCIAL SUPPLIER 
 03-01-2024,People - Ageing Well,Inna Care Ltd,Home Care - Private Contractors Payment,611.53,0.00,COMMERCIAL SUPPLIER 
 03-01-2024,People - Ageing Well,Inna Care Ltd,Home Care - Private Contractors Payment,611.54,0.00,COMMERCIAL SUPPLIER 
 03-01-2024,People - Ageing Well,Inna Care Ltd,Home Care - Private Contractors Payment,611.54,0.00,COMMERCIAL SUPPLIER 
 03-01-2024,People - Ageing Well,Inna Care Ltd,Home Care - Private Contractors Payment,611.54,0.00,COMMERCIAL SUPPLIER 
 03-01-2024,People - Ageing Well,Inna Care Ltd,Home Care - Private Contractors Payment,917.31,0.00,COMMERCIAL SUPPLIER 
 03-01-2024,People - Ageing Well,Inna Care Ltd,Home Care - Private Contractors Payment,917.31,0.00,COMMERCIAL SUPPLIER 
 03-01-2024,People - Ageing Well,"Age Uk Redbridge, Barking and Havering Limited",Payments To Voluntary Sector,3270.42,0.00,COMMERCIAL SUPPLIER 
 03-01-2024,People - Ageing Well,"Age Uk Redbridge, Barking and Havering Limited",Payments To Voluntary Sector,3270.42,0.00,COMMERCIAL SUPPLIER 
 03-01-2024,People - Ageing Well,Premier Carewaiting Ltd,Home Care - Private Contractors Payment,1157.56,0.00,COMMERCIAL SUPPLIER 
 03-01-2024,People - Ageing Well,Premier Carewaiting Ltd,Home Care - Private Contractors Payment,611.54,0.00,COMMERCIAL SUPPLIER 
 03-01-2024,People - Ageing Well,Premier Carewaiting Ltd,Home Care - Private Contractors Payment,1834.60,0.00,COMMERCIAL SUPPLIER 
 03-01-2024,People - Ageing Well,Premier Carewaiting Ltd,Home Care - Private Contractors Payment,1223.08,0.00,COMMERCIAL SUPPLIER 
 03-01-2024,People - Ageing Well,Premier Carewaiting Ltd,Home Care - Private Contractors Payment,1310.44,0.00,COMMERCIAL SUPPLIER 
 03-01-2024,People - Ageing Well,Premier Carewaiting Ltd,Home Care - Private Contractors Payment,1572.53,0.00,COMMERCIAL SUPPLIER 
 03-01-2024,People - Ageing Well,Premier Carewaiting Ltd,Home Care - Private Contractors Payment,556.94,0.00,COMMERCIAL SUPPLIER 
 03-01-2024,People - Ageing Well,Premier Carewaiting Ltd,Home Care - Private Contractors Payment,1572.52,0.00,COMMERCIAL SUPPLIER 
 03-01-2024,People - Ageing Well,Premier Carewaiting Ltd,Home Care - Private Contractors Payment,2096.69,0.00,COMMERCIAL SUPPLIER 
 03-01-2024,People - Ageing Well,Premier Carewaiting Ltd,Home Care - Private Contractors Payment,611.54,0.00,COMMERCIAL SUPPLIER 
 03-01-2024,People - Ageing Well,Premier Carewaiting Ltd,Home Care - Private Contractors Payment,1223.08,0.00,COMMERCIAL SUPPLIER 
 03-01-2024,People - Ageing Well,Premier Carewaiting Ltd,Home Care - Private Contractors Payment,556.94,0.00,COMMERCIAL SUPPLIER 
 03-01-2024,People - Ageing Well,Premier Carewaiting Ltd,Home Care - Private Contractors Payment,1223.08,0.00,COMMERCIAL SUPPLIER 
 03-01-2024,People - Ageing Well,Premier Carewaiting Ltd,Home Care - Private Contractors Payment,1375.95,0.00,COMMERCIAL SUPPLIER 
 03-01-2024,People - Ageing Well,Havering Mind,Payments To Voluntary Sector,3147.56,0.00,NON COMMERCIAL SUPPLIER 
 03-01-2024,People - Ageing Well,Havering Mind,Payments To Voluntary Sector,3147.56,0.00,NON COMMERCIAL SUPPLIER 
 03-01-2024,People - Ageing Well,Pleasant Home Healthcare Ltd,Home Care - Private Contractors Payment,1987.48,0.00,COMMERCIAL SUPPLIER 
 04-01-2024,People - Ageing Well,Romford Private Hire Ltd,Client Transport,2712.50,0.00,COMMERCIAL SUPPLIER 
 04-01-2024,People - Ageing Well,Havering Association for People with Disabilities (H.A.D.),Payments To Voluntary Sector,3332.35,0.00,NON COMMERCIAL SUPPLIER 
 04-01-2024,People - Ageing Well,Havering Association for People with Disabilities (H.A.D.),Payments To Voluntary Sector,3332.35,0.00,NON COMMERCIAL SUPPLIER 
 05-01-2024,People - Ageing Well,Radfield Home Care Havering & Brentwood,Home Care - Private Contractors Payment,593.00,0.00,COMMERCIAL SUPPLIER 
 05-01-2024,People - Ageing Well,Radfield Home Care Havering & Brentwood,Home Care - Private Contractors Payment,535.10,0.00,COMMERCIAL SUPPLIER 
 05-01-2024,People - Ageing Well,Radfield Home Care Havering & Brentwood,Home Care - Private Contractors Payment,756.08,0.00,COMMERCIAL SUPPLIER 
 05-01-2024,People - Ageing Well,Radfield Home Care Havering & Brentwood,Home Care - Private Contractors Payment,502.33,0.00,COMMERCIAL SUPPLIER 
 05-01-2024,People - Ageing Well,Radfield Home Care Havering & Brentwood,Home Care - Private Contractors Payment,535.10,0.00,COMMERCIAL SUPPLIER 
 05-01-2024,People - Ageing Well,Radfield Home Care Havering & Brentwood,Home Care - Private Contractors Payment,651.77,0.00,COMMERCIAL SUPPLIER 
 05-01-2024,People - Ageing Well,Carers Trust East Midlands,Home Care - Private Contractors Payment,1310.41,0.00,COMMERCIAL SUPPLIER 
 05-01-2024,People - Ageing Well,Carers Trust East Midlands,Home Care - Private Contractors Payment,873.60,0.00,COMMERCIAL SUPPLIER 
 05-01-2024,People - Ageing Well,Carers Trust East Midlands,Home Care - Private Contractors Payment,982.80,0.00,COMMERCIAL SUPPLIER 
 05-01-2024,People - Ageing Well,Care-Away Ltd T/A Care Support,Home Care - Private Contractors Payment,1832.32,0.00,COMMERCIAL SUPPLIER 
 05-01-2024,People - Ageing Well,Care-Away Ltd T/A Care Support,Home Care - Private Contractors Payment,1145.20,0.00,COMMERCIAL SUPPLIER 
 05-01-2024,People - Ageing Well,Care-Away Ltd T/A Care Support,Home Care - Private Contractors Payment,1832.32,0.00,COMMERCIAL SUPPLIER 
 05-01-2024,People - Ageing Well,Care-Away Ltd T/A Care Support,Home Care - Private Contractors Payment,670.76,0.00,COMMERCIAL SUPPLIER 
 05-01-2024,People - Ageing Well,Care-Away Ltd T/A Care Support,Home Care - Private Contractors Payment,801.64,0.00,COMMERCIAL SUPPLIER 
 05-01-2024,People - Ageing Well,Care-Away Ltd T/A Care Support,Home Care - Private Contractors Payment,1374.24,0.00,COMMERCIAL SUPPLIER 
 05-01-2024,People - Ageing Well,Care-Away Ltd T/A Care Support,Home Care - Private Contractors Payment,703.48,0.00,COMMERCIAL SUPPLIER 
 05-01-2024,People - Ageing Well,Care-Away Ltd T/A Care Support,Home Care - Private Contractors Payment,527.61,0.00,COMMERCIAL SUPPLIER 
 05-01-2024,People - Ageing Well,Care-Away Ltd T/A Care Support,Home Care - Private Contractors Payment,916.16,0.00,COMMERCIAL SUPPLIER 
 05-01-2024,People - Ageing Well,Care-Away Ltd T/A Care Support,Home Care - Private Contractors Payment,687.12,0.00,COMMERCIAL SUPPLIER 
 05-01-2024,People - Ageing Well,Care-Away Ltd T/A Care Support,Home Care - Private Contractors Payment,728.02,0.00,COMMERCIAL SUPPLIER 
 05-01-2024,People - Ageing Well,Care-Away Ltd T/A Care Support,Home Care - Private Contractors Payment,523.52,0.00,COMMERCIAL SUPPLIER 
 05-01-2024,People - Ageing Well,Care-Away Ltd T/A Care Support,Home Care - Private Contractors Payment,948.88,0.00,COMMERCIAL SUPPLIER 
 05-01-2024,People - Ageing Well,Care-Away Ltd T/A Care Support,Home Care - Private Contractors Payment,948.88,0.00,COMMERCIAL SUPPLIER 
 05-01-2024,People - Ageing Well,Care-Away Ltd T/A Care Support,Home Care - Private Contractors Payment,916.16,0.00,COMMERCIAL SUPPLIER 
 05-01-2024,People - Ageing Well,Care-Away Ltd T/A Care Support,Home Care - Private Contractors Payment,916.16,0.00,COMMERCIAL SUPPLIER 
 05-01-2024,People - Ageing Well,Care-Away Ltd T/A Care Support,Home Care - Private Contractors Payment,752.56,0.00,COMMERCIAL SUPPLIER 
 05-01-2024,People - Ageing Well,Care-Away Ltd T/A Care Support,Home Care - Private Contractors Payment,687.12,0.00,COMMERCIAL SUPPLIER 
 05-01-2024,People - Ageing Well,Care-Away Ltd T/A Care Support,Home Care - Private Contractors Payment,2175.88,0.00,COMMERCIAL SUPPLIER 
 05-01-2024,People - Ageing Well,Care-Away Ltd T/A Care Support,Home Care - Private Contractors Payment,773.01,0.00,COMMERCIAL SUPPLIER 
 05-01-2024,People - Ageing Well,Care-Away Ltd T/A Care Support,Home Care - Private Contractors Payment,2306.76,0.00,COMMERCIAL SUPPLIER 
 05-01-2024,People - Ageing Well,Care-Away Ltd T/A Care Support,Home Care - Private Contractors Payment,883.44,0.00,COMMERCIAL SUPPLIER 
 05-01-2024,People - Ageing Well,Care-Away Ltd T/A Care Support,Home Care - Private Contractors Payment,801.64,0.00,COMMERCIAL SUPPLIER 
 05-01-2024,People - Ageing Well,Care-Away Ltd T/A Care Support,Home Care - Private Contractors Payment,916.16,0.00,COMMERCIAL SUPPLIER 
 05-01-2024,People - Ageing Well,Care-Away Ltd T/A Care Support,Home Care - Private Contractors Payment,858.90,0.00,COMMERCIAL SUPPLIER 
 05-01-2024,People - Ageing Well,Care-Away Ltd T/A Care Support,Home Care - Private Contractors Payment,916.16,0.00,COMMERCIAL SUPPLIER 
 05-01-2024,People - Ageing Well,Care-Away Ltd T/A Care Support,Home Care - Private Contractors Payment,1832.32,0.00,COMMERCIAL SUPPLIER 
 05-01-2024,People - Ageing Well,Personal Information - Redacted,Home Care - Private Contractors Payment,1070.18,0.00,INDIVIDUALS 
 05-01-2024,People - Ageing Well,Personal Information - Redacted,Home Care - Private Contractors Payment,5503.69,0.00,INDIVIDUALS 
 05-01-2024,People - Ageing Well,Personal Information - Redacted,Home Care - Private Contractors Payment,524.16,0.00,INDIVIDUALS 
 05-01-2024,People - Ageing Well,Personal Information - Redacted,Home Care - Private Contractors Payment,1375.96,0.00,INDIVIDUALS 
 05-01-2024,People - Ageing Well,Personal Information - Redacted,Home Care - Private Contractors Payment,2438.97,0.00,INDIVIDUALS 
 05-01-2024,People - Ageing Well,Personal Information - Redacted,Home Care - Private Contractors Payment,1638.03,0.00,INDIVIDUALS 
 05-01-2024,People - Ageing Well,Personal Information - Redacted,Home Care - Private Contractors Payment,611.53,0.00,INDIVIDUALS 
 05-01-2024,People - Ageing Well,Personal Information - Redacted,Home Care - Private Contractors Payment,611.53,0.00,INDIVIDUALS 
 05-01-2024,People - Ageing Well,Personal Information - Redacted,Home Care - Private Contractors Payment,1223.05,0.00,INDIVIDUALS 
 05-01-2024,People - Ageing Well,Personal Information - Redacted,Home Care - Private Contractors Payment,1528.84,0.00,INDIVIDUALS 
 05-01-2024,People - Ageing Well,Personal Information - Redacted,Home Care - Private Contractors Payment,6102.16,0.00,INDIVIDUALS 
 05-01-2024,People - Ageing Well,Personal Information - Redacted,Home Care - Private Contractors Payment,611.54,0.00,INDIVIDUALS 
 05-01-2024,People - Ageing Well,Personal Information - Redacted,Home Care - Private Contractors Payment,917.31,0.00,INDIVIDUALS 
 05-01-2024,People - Ageing Well,Personal Information - Redacted,Home Care - Private Contractors Payment,851.78,0.00,INDIVIDUALS 
 05-01-2024,People - Ageing Well,Personal Information - Redacted,Home Care - Private Contractors Payment,1397.76,0.00,INDIVIDUALS 
 05-01-2024,People - Ageing Well,Personal Information - Redacted,Home Care - Private Contractors Payment,960.96,0.00,INDIVIDUALS 
 05-01-2024,People - Ageing Well,Personal Information - Redacted,Home Care - Private Contractors Payment,7338.25,0.00,INDIVIDUALS 
 05-01-2024,People - Ageing Well,Personal Information - Redacted,Home Care - Private Contractors Payment,1355.03,0.00,INDIVIDUALS 
 05-01-2024,People - Ageing Well,Personal Information - Redacted,Home Care - Private Contractors Payment,611.54,0.00,INDIVIDUALS 
 05-01-2024,People - Ageing Well,Personal Information - Redacted,Home Care - Private Contractors Payment,1223.08,0.00,INDIVIDUALS 
 05-01-2024,People - Ageing Well,Personal Information - Redacted,Home Care - Private Contractors Payment,1987.48,0.00,INDIVIDUALS 
 05-01-2024,People - Ageing Well,Personal Information - Redacted,Home Care - Private Contractors Payment,2162.21,0.00,INDIVIDUALS 
 05-01-2024,People - Ageing Well,Personal Information - Redacted,Home Care - Private Contractors Payment,917.31,0.00,INDIVIDUALS 
 05-01-2024,People - Ageing Well,Personal Information - Redacted,Home Care - Private Contractors Payment,1223.08,0.00,INDIVIDUALS 
 05-01-2024,People - Ageing Well,Personal Information - Redacted,Home Care - Private Contractors Payment,917.31,0.00,INDIVIDUALS 
 05-01-2024,People - Ageing Well,Personal Information - Redacted,Home Care - Private Contractors Payment,917.31,0.00,INDIVIDUALS 
 05-01-2024,People - Ageing Well,Personal Information - Redacted,Home Care - Private Contractors Payment,917.31,0.00,INDIVIDUALS 
 05-01-2024,People - Ageing Well,Personal Information - Redacted,Home Care - Private Contractors Payment,1375.96,0.00,INDIVIDUALS 
 05-01-2024,People - Ageing Well,Personal Information - Redacted,Home Care - Private Contractors Payment,1550.69,0.00,INDIVIDUALS 
 05-01-2024,People - Ageing Well,Personal Information - Redacted,Home Care - Private Contractors Payment,524.17,0.00,INDIVIDUALS 
 05-01-2024,People - Ageing Well,Personal Information - Redacted,Home Care - Private Contractors Payment,1550.69,0.00,INDIVIDUALS 
 05-01-2024,People - Ageing Well,Personal Information - Redacted,Home Care - Private Contractors Payment,5256.92,0.00,INDIVIDUALS 
 05-01-2024,People - Ageing Well,Personal Information - Redacted,Home Care - Private Contractors Payment,1004.68,0.00,INDIVIDUALS 
 05-01-2024,People - Ageing Well,Personal Information - Redacted,Home Care - Private Contractors Payment,1747.24,0.00,INDIVIDUALS 
 05-01-2024,People - Ageing Well,Personal Information - Redacted,Home Care - Private Contractors Payment,698.91,0.00,INDIVIDUALS 
 05-01-2024,People - Ageing Well,Millbrook Healthcare Group ,Purchase - Equipment Furniture And Materials,9251.22,0.00,COMMERCIAL SUPPLIER 
 06-01-2024,People - Ageing Well,Treal Care Limited,Home Care - Private Contractors Payment,1155.00,0.00,COMMERCIAL SUPPLIER 
 06-01-2024,People - Ageing Well,Treal Care Limited,Home Care - Private Contractors Payment,1120.00,0.00,COMMERCIAL SUPPLIER 
 06-01-2024,People - Ageing Well,Treal Care Limited,Home Care - Private Contractors Payment,1120.00,0.00,COMMERCIAL SUPPLIER 
 07-01-2024,People - Ageing Well,Eastway Care Ltd_a,Daycare - Private Contractors Payment,2320.00,0.00,COMMERCIAL SUPPLIER 
 07-01-2024,People - Ageing Well,Eastway Care Ltd_a,Daycare - Private Contractors Payment,2320.00,0.00,COMMERCIAL SUPPLIER 
 07-01-2024,People - Ageing Well,Eastway Care Ltd_a,Daycare - Private Contractors Payment,1856.00,0.00,COMMERCIAL SUPPLIER 
 07-01-2024,People - Ageing Well,Eastway Care Ltd_a,Daycare - Private Contractors Payment,2320.00,0.00,COMMERCIAL SUPPLIER 
 07-01-2024,People - Ageing Well,Eastway Care Ltd_a,Daycare - Private Contractors Payment,1116.00,0.00,COMMERCIAL SUPPLIER 
 07-01-2024,People - Ageing Well,Eastway Care Ltd_a,Daycare - Private Contractors Payment,2320.00,0.00,COMMERCIAL SUPPLIER 
 07-01-2024,People - Ageing Well,Eastway Care Ltd_a,Daycare - Private Contractors Payment,1392.00,0.00,COMMERCIAL SUPPLIER 
 07-01-2024,People - Ageing Well,Eastway Care Ltd_a,Daycare - Private Contractors Payment,2320.00,0.00,COMMERCIAL SUPPLIER 
 07-01-2024,People - Ageing Well,Eastway Care Ltd_a,Daycare - Private Contractors Payment,1710.00,0.00,COMMERCIAL SUPPLIER 
 07-01-2024,People - Ageing Well,Eastway Care Ltd_a,Daycare - Private Contractors Payment,1392.00,0.00,COMMERCIAL SUPPLIER 
 07-01-2024,People - Ageing Well,Eastway Care Ltd_a,Daycare - Private Contractors Payment,2320.00,0.00,COMMERCIAL SUPPLIER 
 07-01-2024,People - Ageing Well,Eastway Care Ltd_a,Daycare - Private Contractors Payment,1392.00,0.00,COMMERCIAL SUPPLIER 
 07-01-2024,People - Ageing Well,Eastway Care Ltd_a,Daycare - Private Contractors Payment,1856.00,0.00,COMMERCIAL SUPPLIER 
 07-01-2024,People - Ageing Well,Eastway Care Ltd_a,Daycare - Private Contractors Payment,744.00,0.00,COMMERCIAL SUPPLIER 
 07-01-2024,People - Ageing Well,Bloomscare Ltd,Home Care - Private Contractors Payment,1834.59,0.00,COMMERCIAL SUPPLIER 
 07-01-2024,People - Ageing Well,Bloomscare Ltd,Home Care - Private Contractors Payment,1834.59,0.00,COMMERCIAL SUPPLIER 
 07-01-2024,People - Ageing Well,S J Builders,Maintenance - Equipment Furniture And Materials,1175.00,0.00,COMMERCIAL SUPPLIER 
 08-01-2024,People - Ageing Well,Prestige Care & Support Ltd,Home Care - Private Contractors Payment,655.22,0.00,COMMERCIAL SUPPLIER 
 08-01-2024,People - Ageing Well,Prestige Care & Support Ltd,Home Care - Private Contractors Payment,1885.59,0.00,COMMERCIAL SUPPLIER 
 08-01-2024,People - Ageing Well,Prestige Care & Support Ltd,Home Care - Private Contractors Payment,1074.57,0.00,COMMERCIAL SUPPLIER 
 08-01-2024,People - Ageing Well,Prestige Care & Support Ltd,Home Care - Private Contractors Payment,610.45,0.00,COMMERCIAL SUPPLIER 
 08-01-2024,People - Ageing Well,Prestige Care & Support Ltd,Home Care - Private Contractors Payment,829.95,0.00,COMMERCIAL SUPPLIER 
 08-01-2024,People - Ageing Well,Prestige Care & Support Ltd,Home Care - Private Contractors Payment,612.27,0.00,COMMERCIAL SUPPLIER 
 08-01-2024,People - Ageing Well,Prestige Care & Support Ltd,Home Care - Private Contractors Payment,619.91,0.00,COMMERCIAL SUPPLIER 
 08-01-2024,People - Ageing Well,Prestige Care & Support Ltd,Home Care - Private Contractors Payment,1237.64,0.00,COMMERCIAL SUPPLIER 
 08-01-2024,People - Ageing Well,Prestige Care & Support Ltd,Home Care - Private Contractors Payment,571.14,0.00,COMMERCIAL SUPPLIER 
 08-01-2024,People - Ageing Well,Prestige Care & Support Ltd,Home Care - Private Contractors Payment,1580.90,0.00,COMMERCIAL SUPPLIER 
 08-01-2024,People - Ageing Well,Prestige Care & Support Ltd,Home Care - Private Contractors Payment,2437.80,0.00,COMMERCIAL SUPPLIER 
 08-01-2024,People - Ageing Well,Prestige Care & Support Ltd,Home Care - Private Contractors Payment,1243.10,0.00,COMMERCIAL SUPPLIER 
 08-01-2024,People - Ageing Well,Prestige Care & Support Ltd,Home Care - Private Contractors Payment,2488.76,0.00,COMMERCIAL SUPPLIER 
 08-01-2024,People - Ageing Well,Prestige Care & Support Ltd,Home Care - Private Contractors Payment,875.09,0.00,COMMERCIAL SUPPLIER 
 08-01-2024,People - Ageing Well,Prestige Care & Support Ltd,Home Care - Private Contractors Payment,616.27,0.00,COMMERCIAL SUPPLIER 
 08-01-2024,People - Ageing Well,Prestige Care & Support Ltd,Home Care - Private Contractors Payment,1739.25,0.00,COMMERCIAL SUPPLIER 
 08-01-2024,People - Ageing Well,Prestige Care & Support Ltd,Home Care - Private Contractors Payment,716.38,0.00,COMMERCIAL SUPPLIER 
 08-01-2024,People - Ageing Well,Prestige Care & Support Ltd,Home Care - Private Contractors Payment,1243.47,0.00,COMMERCIAL SUPPLIER 
 08-01-2024,People - Ageing Well,Prestige Care & Support Ltd,Home Care - Private Contractors Payment,556.94,0.00,COMMERCIAL SUPPLIER 
 08-01-2024,People - Ageing Well,Prestige Care & Support Ltd,Home Care - Private Contractors Payment,1147.01,0.00,COMMERCIAL SUPPLIER 
 08-01-2024,People - Ageing Well,Prestige Care & Support Ltd,Home Care - Private Contractors Payment,611.54,0.00,COMMERCIAL SUPPLIER 
 08-01-2024,People - Ageing Well,Prestige Care & Support Ltd,Home Care - Private Contractors Payment,1835.36,0.00,COMMERCIAL SUPPLIER 
 08-01-2024,People - Ageing Well,Prestige Care & Support Ltd,Home Care - Private Contractors Payment,1157.56,0.00,COMMERCIAL SUPPLIER 
 08-01-2024,People - Ageing Well,Prestige Care & Support Ltd,Home Care - Private Contractors Payment,937.70,0.00,COMMERCIAL SUPPLIER 
 08-01-2024,People - Ageing Well,Prestige Care & Support Ltd,Home Care - Private Contractors Payment,882.72,0.00,COMMERCIAL SUPPLIER 
 08-01-2024,People - Ageing Well,Prestige Care & Support Ltd,Home Care - Private Contractors Payment,2450.90,0.00,COMMERCIAL SUPPLIER 
 08-01-2024,People - Ageing Well,Prestige Care & Support Ltd,Home Care - Private Contractors Payment,2245.23,0.00,COMMERCIAL SUPPLIER 
 08-01-2024,People - Ageing Well,Prestige Care & Support Ltd,Home Care - Private Contractors Payment,765.88,0.00,COMMERCIAL SUPPLIER 
 08-01-2024,People - Ageing Well,Prestige Care & Support Ltd,Home Care - Private Contractors Payment,2742.83,0.00,COMMERCIAL SUPPLIER 
 08-01-2024,People - Ageing Well,Prestige Care & Support Ltd,Home Care - Private Contractors Payment,1231.46,0.00,COMMERCIAL SUPPLIER 
 08-01-2024,People - Ageing Well,Prestige Care & Support Ltd,Home Care - Private Contractors Payment,2498.22,0.00,COMMERCIAL SUPPLIER 
 08-01-2024,People - Ageing Well,Prestige Care & Support Ltd,Home Care - Private Contractors Payment,2464.73,0.00,COMMERCIAL SUPPLIER 
 08-01-2024,People - Ageing Well,Prestige Care & Support Ltd,Home Care - Private Contractors Payment,615.18,0.00,COMMERCIAL SUPPLIER 
 08-01-2024,People - Ageing Well,Prestige Care & Support Ltd,Home Care - Private Contractors Payment,923.14,0.00,COMMERCIAL SUPPLIER 
 08-01-2024,People - Ageing Well,Prestige Care & Support Ltd,Home Care - Private Contractors Payment,2457.09,0.00,COMMERCIAL SUPPLIER 
 08-01-2024,People - Ageing Well,Prestige Care & Support Ltd,Home Care - Private Contractors Payment,2445.44,0.00,COMMERCIAL SUPPLIER 
 08-01-2024,People - Ageing Well,Prestige Care & Support Ltd,Home Care - Private Contractors Payment,1217.26,0.00,COMMERCIAL SUPPLIER 
 08-01-2024,People - Ageing Well,Prestige Care & Support Ltd,Home Care - Private Contractors Payment,1100.04,0.00,COMMERCIAL SUPPLIER 
 08-01-2024,People - Ageing Well,Prestige Care & Support Ltd,Home Care - Private Contractors Payment,1039.26,0.00,COMMERCIAL SUPPLIER 
 08-01-2024,People - Ageing Well,Prestige Care & Support Ltd,Home Care - Private Contractors Payment,2211.74,0.00,COMMERCIAL SUPPLIER 
 08-01-2024,People - Ageing Well,Prestige Care & Support Ltd,Home Care - Private Contractors Payment,2123.65,0.00,COMMERCIAL SUPPLIER 
 08-01-2024,People - Ageing Well,Prestige Care & Support Ltd,Home Care - Private Contractors Payment,862.71,0.00,COMMERCIAL SUPPLIER 
 08-01-2024,People - Ageing Well,Prestige Care & Support Ltd,Home Care - Private Contractors Payment,2388.65,0.00,COMMERCIAL SUPPLIER 
 08-01-2024,People - Ageing Well,Prestige Care & Support Ltd,Home Care - Private Contractors Payment,1238.37,0.00,COMMERCIAL SUPPLIER 
 08-01-2024,People - Ageing Well,Prestige Care & Support Ltd,Home Care - Private Contractors Payment,643.21,0.00,COMMERCIAL SUPPLIER 
 08-01-2024,People - Ageing Well,Prestige Care & Support Ltd,Home Care - Private Contractors Payment,2446.17,0.00,COMMERCIAL SUPPLIER 
 08-01-2024,People - Ageing Well,Prestige Care & Support Ltd,Home Care - Private Contractors Payment,2231.40,0.00,COMMERCIAL SUPPLIER 
 08-01-2024,People - Ageing Well,Prestige Care & Support Ltd,Home Care - Private Contractors Payment,840.87,0.00,COMMERCIAL SUPPLIER 
 08-01-2024,People - Ageing Well,Prestige Care & Support Ltd,Home Care - Private Contractors Payment,2457.09,0.00,COMMERCIAL SUPPLIER 
 08-01-2024,People - Ageing Well,Mayflower Travel,Client Transport,860.00,0.00,COMMERCIAL SUPPLIER 
 08-01-2024,People - Ageing Well,London Borough of Barking & Dagenham_a,Daycare - Private Contractors Payment,3104.00,0.00,LOCAL AUTHORITY SERVICES 
 08-01-2024,People - Ageing Well,London Borough of Barking & Dagenham_a,Daycare - Private Contractors Payment,3104.00,0.00,LOCAL AUTHORITY SERVICES 
 08-01-2024,People - Ageing Well,London Borough of Barking & Dagenham_a,Daycare - Private Contractors Payment,1940.00,0.00,LOCAL AUTHORITY SERVICES 
 08-01-2024,People - Ageing Well,London Borough of Barking & Dagenham_a,Daycare - Private Contractors Payment,3104.00,0.00,LOCAL AUTHORITY SERVICES 
 08-01-2024,People - Ageing Well,London Borough of Barking & Dagenham_a,Daycare - Private Contractors Payment,3104.00,0.00,LOCAL AUTHORITY SERVICES 
 08-01-2024,People - Ageing Well,London Borough of Barking & Dagenham_a,Daycare - Private Contractors Payment,1746.00,0.00,LOCAL AUTHORITY SERVICES 
 08-01-2024,People - Ageing Well,London Borough of Barking & Dagenham_a,Daycare - Private Contractors Payment,776.00,0.00,LOCAL AUTHORITY SERVICES 
 08-01-2024,People - Ageing Well,London Borough of Barking & Dagenham_a,Daycare - Private Contractors Payment,1358.00,0.00,LOCAL AUTHORITY SERVICES 
 08-01-2024,People - Ageing Well,London Borough of Barking & Dagenham_a,Daycare - Private Contractors Payment,1552.00,0.00,LOCAL AUTHORITY SERVICES 
 08-01-2024,People - Ageing Well,Prepaid Financial Services 266 Corporate,Books Publications And Resources,500.00,0.00,COMMERCIAL SUPPLIER 
 08-01-2024,People - Ageing Well,Prepaid Financial Services 266 Corporate,Books Publications And Resources,500.00,0.00,COMMERCIAL SUPPLIER 
 08-01-2024,People - Ageing Well,Prepaid Financial Services 266 Corporate,Private Contractors Payment - Other,500.00,0.00,COMMERCIAL SUPPLIER 
 08-01-2024,People - Ageing Well,Prepaid Financial Services 266 Corporate,Purchase - Equipment Furniture And Materials,500.00,0.00,COMMERCIAL SUPPLIER 
 08-01-2024,People - Ageing Well,Spring Consult UK Ltd,Home Care - Private Contractors Payment,13860.00,0.00,COMMERCIAL SUPPLIER 
 08-01-2024,People - Ageing Well,Care-Away Ltd T/A Care Support,Home Care - Private Contractors Payment,687.12,0.00,COMMERCIAL SUPPLIER 
 08-01-2024,People - Ageing Well,Care-Away Ltd T/A Care Support,Home Care - Private Contractors Payment,1030.68,0.00,COMMERCIAL SUPPLIER 
 08-01-2024,People - Ageing Well,Care-Away Ltd T/A Care Support,Home Care - Private Contractors Payment,916.16,0.00,COMMERCIAL SUPPLIER 
 08-01-2024,People - Ageing Well,Care-Away Ltd T/A Care Support,Home Care - Private Contractors Payment,916.16,0.00,COMMERCIAL SUPPLIER 
 08-01-2024,People - Ageing Well,Care-Away Ltd T/A Care Support,Home Care - Private Contractors Payment,916.16,0.00,COMMERCIAL SUPPLIER 
 08-01-2024,People - Ageing Well,Care-Away Ltd T/A Care Support,Home Care - Private Contractors Payment,1161.56,0.00,COMMERCIAL SUPPLIER 
 08-01-2024,People - Ageing Well,Care-Away Ltd T/A Care Support,Home Care - Private Contractors Payment,687.12,0.00,COMMERCIAL SUPPLIER 
 08-01-2024,People - Ageing Well,Care-Away Ltd T/A Care Support,Home Care - Private Contractors Payment,523.52,0.00,COMMERCIAL SUPPLIER 
 08-01-2024,People - Ageing Well,Care-Away Ltd T/A Care Support,Home Care - Private Contractors Payment,515.34,0.00,COMMERCIAL SUPPLIER 
 08-01-2024,People - Ageing Well,Care-Away Ltd T/A Care Support,Home Care - Private Contractors Payment,2519.44,0.00,COMMERCIAL SUPPLIER 
 08-01-2024,People - Ageing Well,Care-Away Ltd T/A Care Support,Home Care - Private Contractors Payment,1030.68,0.00,COMMERCIAL SUPPLIER 
 08-01-2024,People - Ageing Well,Care-Away Ltd T/A Care Support,Home Care - Private Contractors Payment,1145.20,0.00,COMMERCIAL SUPPLIER 
 08-01-2024,People - Ageing Well,Care-Away Ltd T/A Care Support,Home Care - Private Contractors Payment,916.16,0.00,COMMERCIAL SUPPLIER 
 08-01-2024,People - Ageing Well,Care-Away Ltd T/A Care Support,Home Care - Private Contractors Payment,2085.90,0.00,COMMERCIAL SUPPLIER 
 08-01-2024,People - Ageing Well,Care-Away Ltd T/A Care Support,Home Care - Private Contractors Payment,916.16,0.00,COMMERCIAL SUPPLIER 
 08-01-2024,People - Ageing Well,Care-Away Ltd T/A Care Support,Home Care - Private Contractors Payment,687.12,0.00,COMMERCIAL SUPPLIER 
 08-01-2024,People - Ageing Well,Care-Away Ltd T/A Care Support,Home Care - Private Contractors Payment,2290.40,0.00,COMMERCIAL SUPPLIER 
 08-01-2024,People - Ageing Well,Care-Away Ltd T/A Care Support,Home Care - Private Contractors Payment,2748.48,0.00,COMMERCIAL SUPPLIER 
 08-01-2024,People - Ageing Well,Care-Away Ltd T/A Care Support,Home Care - Private Contractors Payment,1603.28,0.00,COMMERCIAL SUPPLIER 
 08-01-2024,People - Ageing Well,Care-Away Ltd T/A Care Support,Home Care - Private Contractors Payment,588.96,0.00,COMMERCIAL SUPPLIER 
 08-01-2024,People - Ageing Well,Care-Away Ltd T/A Care Support,Home Care - Private Contractors Payment,997.96,0.00,COMMERCIAL SUPPLIER 
 08-01-2024,People - Ageing Well,All Therapy Solutions Ltd,Occupational Health,4240.00,0.00,COMMERCIAL SUPPLIER 
 08-01-2024,People - Ageing Well,All Therapy Solutions Ltd,Occupational Health,3960.00,0.00,COMMERCIAL SUPPLIER 
 08-01-2024,People - Ageing Well,Potton Services Ltd,Home Care - Private Contractors Payment,788.70,0.00,COMMERCIAL SUPPLIER 
 08-01-2024,People - Ageing Well,Flex360 Limited,Private Contractors Payment - Other,700.00,0.00,COMMERCIAL SUPPLIER 
 08-01-2024,People - Ageing Well,Outreach Support Services Ltd,Home Care - Private Contractors Payment,611.53,0.00,COMMERCIAL SUPPLIER 
 08-01-2024,People - Ageing Well,Outreach Support Services Ltd,Home Care - Private Contractors Payment,1375.96,0.00,COMMERCIAL SUPPLIER 
 08-01-2024,People - Ageing Well,Outreach Support Services Ltd,Home Care - Private Contractors Payment,655.22,0.00,COMMERCIAL SUPPLIER 
 08-01-2024,People - Ageing Well,Outreach Support Services Ltd,Home Care - Private Contractors Payment,1223.08,0.00,COMMERCIAL SUPPLIER 
 08-01-2024,People - Ageing Well,Outreach Support Services Ltd,Home Care - Private Contractors Payment,2205.89,0.00,COMMERCIAL SUPPLIER 
 08-01-2024,People - Ageing Well,Outreach Support Services Ltd,Home Care - Private Contractors Payment,2271.40,0.00,COMMERCIAL SUPPLIER 
 08-01-2024,People - Ageing Well,Outreach Support Services Ltd,Home Care - Private Contractors Payment,2271.40,0.00,COMMERCIAL SUPPLIER 
 08-01-2024,People - Ageing Well,Outreach Support Services Ltd,Home Care - Private Contractors Payment,2271.40,0.00,COMMERCIAL SUPPLIER 
 08-01-2024,People - Ageing Well,Outreach Support Services Ltd,Home Care - Private Contractors Payment,1863.99,0.00,COMMERCIAL SUPPLIER 
 08-01-2024,People - Ageing Well,Outreach Support Services Ltd,Home Care - Private Contractors Payment,1863.99,0.00,COMMERCIAL SUPPLIER 
 08-01-2024,People - Ageing Well,Outreach Support Services Ltd,Home Care - Private Contractors Payment,1812.76,0.00,COMMERCIAL SUPPLIER 
 08-01-2024,People - Ageing Well,Outreach Support Services Ltd,Home Care - Private Contractors Payment,1223.08,0.00,COMMERCIAL SUPPLIER 
 08-01-2024,People - Ageing Well,Outreach Support Services Ltd,Home Care - Private Contractors Payment,2271.40,0.00,COMMERCIAL SUPPLIER 
 08-01-2024,People - Ageing Well,Outreach Support Services Ltd,Home Care - Private Contractors Payment,1223.08,0.00,COMMERCIAL SUPPLIER 
 08-01-2024,People - Ageing Well,Outreach Support Services Ltd,Home Care - Private Contractors Payment,1223.08,0.00,COMMERCIAL SUPPLIER 
 08-01-2024,People - Ageing Well,Outreach Support Services Ltd,Home Care - Private Contractors Payment,1223.08,0.00,COMMERCIAL SUPPLIER 
 08-01-2024,People - Ageing Well,Outreach Support Services Ltd,Home Care - Private Contractors Payment,1223.08,0.00,COMMERCIAL SUPPLIER 
 08-01-2024,People - Ageing Well,Outreach Support Services Ltd,Home Care - Private Contractors Payment,917.31,0.00,COMMERCIAL SUPPLIER 
 08-01-2024,People - Ageing Well,Outreach Support Services Ltd,Home Care - Private Contractors Payment,786.26,0.00,COMMERCIAL SUPPLIER 
 08-01-2024,People - Ageing Well,Outreach Support Services Ltd,Home Care - Private Contractors Payment,1375.96,0.00,COMMERCIAL SUPPLIER 
 08-01-2024,People - Ageing Well,Outreach Support Services Ltd,Home Care - Private Contractors Payment,1375.96,0.00,COMMERCIAL SUPPLIER 
 08-01-2024,People - Ageing Well,Phoenix Care Havering Ltd,Home Care - Private Contractors Payment,917.31,0.00,COMMERCIAL SUPPLIER 
 08-01-2024,People - Ageing Well,Phoenix Care Havering Ltd,Home Care - Private Contractors Payment,1015.59,0.00,COMMERCIAL SUPPLIER 
 08-01-2024,People - Ageing Well,Phoenix Care Havering Ltd,Home Care - Private Contractors Payment,933.69,0.00,COMMERCIAL SUPPLIER 
 09-01-2024,People - Ageing Well,Hospiva Care & Associates Agency Ltd_a,Home Care - Private Contractors Payment,967.55,0.00,COMMERCIAL SUPPLIER 
 09-01-2024,People - Ageing Well,Hospiva Care & Associates Agency Ltd_a,Home Care - Private Contractors Payment,1411.64,0.00,COMMERCIAL SUPPLIER 
 09-01-2024,People - Ageing Well,Hospiva Care & Associates Agency Ltd_a,Home Care - Private Contractors Payment,1411.64,0.00,COMMERCIAL SUPPLIER 
 09-01-2024,People - Ageing Well,Hospiva Care & Associates Agency Ltd_a,Home Care - Private Contractors Payment,1291.15,0.00,COMMERCIAL SUPPLIER 
 09-01-2024,People - Ageing Well,Hospiva Care & Associates Agency Ltd_a,Home Care - Private Contractors Payment,640.30,0.00,COMMERCIAL SUPPLIER 
 09-01-2024,People - Ageing Well,Hospiva Care & Associates Agency Ltd_a,Home Care - Private Contractors Payment,625.37,0.00,COMMERCIAL SUPPLIER 
 09-01-2024,People - Ageing Well,Hospiva Care & Associates Agency Ltd_a,Home Care - Private Contractors Payment,982.82,0.00,COMMERCIAL SUPPLIER 
 09-01-2024,People - Ageing Well,Hospiva Care & Associates Agency Ltd_a,Home Care - Private Contractors Payment,583.88,0.00,COMMERCIAL SUPPLIER 
 09-01-2024,People - Ageing Well,Hospiva Care & Associates Agency Ltd_a,Home Care - Private Contractors Payment,1367.59,0.00,COMMERCIAL SUPPLIER 
 09-01-2024,People - Ageing Well,Hospiva Care & Associates Agency Ltd_a,Home Care - Private Contractors Payment,1367.59,0.00,COMMERCIAL SUPPLIER 
 09-01-2024,People - Ageing Well,Hospiva Care & Associates Agency Ltd_a,Home Care - Private Contractors Payment,927.51,0.00,COMMERCIAL SUPPLIER 
 09-01-2024,People - Ageing Well,Hospiva Care & Associates Agency Ltd_a,Home Care - Private Contractors Payment,1337.38,0.00,COMMERCIAL SUPPLIER 
 09-01-2024,People - Ageing Well,Hospiva Care & Associates Agency Ltd_a,Home Care - Private Contractors Payment,5592.00,0.00,COMMERCIAL SUPPLIER 
 09-01-2024,People - Ageing Well,Hospiva Care & Associates Agency Ltd_a,Home Care - Private Contractors Payment,915.86,0.00,COMMERCIAL SUPPLIER 
 09-01-2024,People - Ageing Well,Hospiva Care & Associates Agency Ltd_a,Home Care - Private Contractors Payment,915.86,0.00,COMMERCIAL SUPPLIER 
 09-01-2024,People - Ageing Well,Hospiva Care & Associates Agency Ltd_a,Home Care - Private Contractors Payment,1462.23,0.00,COMMERCIAL SUPPLIER 
 09-01-2024,People - Ageing Well,Hospiva Care & Associates Agency Ltd_a,Home Care - Private Contractors Payment,593.70,0.00,COMMERCIAL SUPPLIER 
 09-01-2024,People - Ageing Well,Hospiva Care & Associates Agency Ltd_a,Home Care - Private Contractors Payment,925.69,0.00,COMMERCIAL SUPPLIER 
 09-01-2024,People - Ageing Well,Hospiva Care & Associates Agency Ltd_a,Home Care - Private Contractors Payment,925.69,0.00,COMMERCIAL SUPPLIER 
 09-01-2024,People - Ageing Well,Hospiva Care & Associates Agency Ltd_a,Home Care - Private Contractors Payment,1216.17,0.00,COMMERCIAL SUPPLIER 
 09-01-2024,People - Ageing Well,Hospiva Care & Associates Agency Ltd_a,Home Care - Private Contractors Payment,622.83,0.00,COMMERCIAL SUPPLIER 
 09-01-2024,People - Ageing Well,Hospiva Care & Associates Agency Ltd_a,Home Care - Private Contractors Payment,1388.70,0.00,COMMERCIAL SUPPLIER 
 09-01-2024,People - Ageing Well,Hospiva Care & Associates Agency Ltd_a,Home Care - Private Contractors Payment,1711.21,0.00,COMMERCIAL SUPPLIER 
 09-01-2024,People - Ageing Well,Hospiva Care & Associates Agency Ltd_a,Home Care - Private Contractors Payment,2273.60,0.00,COMMERCIAL SUPPLIER 
 09-01-2024,People - Ageing Well,Hospiva Care & Associates Agency Ltd_a,Home Care - Private Contractors Payment,1389.07,0.00,COMMERCIAL SUPPLIER 
 09-01-2024,People - Ageing Well,Hospiva Care & Associates Agency Ltd_a,Home Care - Private Contractors Payment,2442.83,0.00,COMMERCIAL SUPPLIER 
 09-01-2024,People - Ageing Well,Hospiva Care & Associates Agency Ltd_a,Home Care - Private Contractors Payment,1223.81,0.00,COMMERCIAL SUPPLIER 
 09-01-2024,People - Ageing Well,Hospiva Care & Associates Agency Ltd_a,Home Care - Private Contractors Payment,1310.44,0.00,COMMERCIAL SUPPLIER 
 09-01-2024,People - Ageing Well,Hospiva Care & Associates Agency Ltd_a,Home Care - Private Contractors Payment,1310.44,0.00,COMMERCIAL SUPPLIER 
 09-01-2024,People - Ageing Well,Hospiva Care & Associates Agency Ltd_a,Home Care - Private Contractors Payment,624.28,0.00,COMMERCIAL SUPPLIER 
 09-01-2024,People - Ageing Well,Hospiva Care & Associates Agency Ltd_a,Home Care - Private Contractors Payment,1529.57,0.00,COMMERCIAL SUPPLIER 
 09-01-2024,People - Ageing Well,Hospiva Care & Associates Agency Ltd_a,Home Care - Private Contractors Payment,1529.57,0.00,COMMERCIAL SUPPLIER 
 09-01-2024,People - Ageing Well,Hospiva Care & Associates Agency Ltd_a,Home Care - Private Contractors Payment,6600.00,0.00,COMMERCIAL SUPPLIER 
 09-01-2024,People - Ageing Well,Hospiva Care & Associates Agency Ltd_a,Home Care - Private Contractors Payment,1201.60,0.00,COMMERCIAL SUPPLIER 
 09-01-2024,People - Ageing Well,Hospiva Care & Associates Agency Ltd_a,Home Care - Private Contractors Payment,1201.97,0.00,COMMERCIAL SUPPLIER 
 09-01-2024,People - Ageing Well,Hospiva Care & Associates Agency Ltd_a,Home Care - Private Contractors Payment,1174.65,0.00,COMMERCIAL SUPPLIER 
 09-01-2024,People - Ageing Well,Hospiva Care & Associates Agency Ltd_a,Home Care - Private Contractors Payment,1174.65,0.00,COMMERCIAL SUPPLIER 
 09-01-2024,People - Ageing Well,Hospiva Care & Associates Agency Ltd_a,Home Care - Private Contractors Payment,2314.26,0.00,COMMERCIAL SUPPLIER 
 09-01-2024,People - Ageing Well,Hospiva Care & Associates Agency Ltd_a,Home Care - Private Contractors Payment,571.50,0.00,COMMERCIAL SUPPLIER 
 09-01-2024,People - Ageing Well,Cera Care Operations Ltd,Home Care - Private Contractors Payment,993.38,0.00,COMMERCIAL SUPPLIER 
 09-01-2024,People - Ageing Well,Cera Care Operations Ltd,Home Care - Private Contractors Payment,1435.66,0.00,COMMERCIAL SUPPLIER 
 09-01-2024,People - Ageing Well,Cera Care Operations Ltd,Home Care - Private Contractors Payment,835.77,0.00,COMMERCIAL SUPPLIER 
 09-01-2024,People - Ageing Well,Cera Care Operations Ltd,Home Care - Private Contractors Payment,567.86,0.00,COMMERCIAL SUPPLIER 
 09-01-2024,People - Ageing Well,Cera Care Operations Ltd,Home Care - Private Contractors Payment,1288.24,0.00,COMMERCIAL SUPPLIER 
 09-01-2024,People - Ageing Well,Cera Care Operations Ltd,Home Care - Private Contractors Payment,620.28,0.00,COMMERCIAL SUPPLIER 
 09-01-2024,People - Ageing Well,Cera Care Operations Ltd,Home Care - Private Contractors Payment,1412.00,0.00,COMMERCIAL SUPPLIER 
 09-01-2024,People - Ageing Well,Cera Care Operations Ltd,Home Care - Private Contractors Payment,1416.73,0.00,COMMERCIAL SUPPLIER 
 09-01-2024,People - Ageing Well,Cera Care Operations Ltd,Home Care - Private Contractors Payment,612.63,0.00,COMMERCIAL SUPPLIER 
 09-01-2024,People - Ageing Well,Cera Care Operations Ltd,Home Care - Private Contractors Payment,600.62,0.00,COMMERCIAL SUPPLIER 
 09-01-2024,People - Ageing Well,Cera Care Operations Ltd,Home Care - Private Contractors Payment,1057.09,0.00,COMMERCIAL SUPPLIER 
 09-01-2024,People - Ageing Well,Cera Care Operations Ltd,Home Care - Private Contractors Payment,833.59,0.00,COMMERCIAL SUPPLIER 
 09-01-2024,People - Ageing Well,Cera Care Operations Ltd,Home Care - Private Contractors Payment,568.59,0.00,COMMERCIAL SUPPLIER 
 09-01-2024,People - Ageing Well,Cera Care Operations Ltd,Home Care - Private Contractors Payment,571.86,0.00,COMMERCIAL SUPPLIER 
 09-01-2024,People - Ageing Well,Cera Care Operations Ltd,Home Care - Private Contractors Payment,717.10,0.00,COMMERCIAL SUPPLIER 
 09-01-2024,People - Ageing Well,Cera Care Operations Ltd,Home Care - Private Contractors Payment,1272.95,0.00,COMMERCIAL SUPPLIER 
 09-01-2024,People - Ageing Well,Cera Care Operations Ltd,Home Care - Private Contractors Payment,585.69,0.00,COMMERCIAL SUPPLIER 
 09-01-2024,People - Ageing Well,Cera Care Operations Ltd,Home Care - Private Contractors Payment,6572.80,0.00,COMMERCIAL SUPPLIER 
 09-01-2024,People - Ageing Well,Cera Care Operations Ltd,Home Care - Private Contractors Payment,1393.80,0.00,COMMERCIAL SUPPLIER 
 09-01-2024,People - Ageing Well,Cera Care Operations Ltd,Home Care - Private Contractors Payment,1245.65,0.00,COMMERCIAL SUPPLIER 
 09-01-2024,People - Ageing Well,Cera Care Operations Ltd,Home Care - Private Contractors Payment,761.51,0.00,COMMERCIAL SUPPLIER 
 09-01-2024,People - Ageing Well,Cera Care Operations Ltd,Home Care - Private Contractors Payment,859.07,0.00,COMMERCIAL SUPPLIER 
 09-01-2024,People - Ageing Well,Cera Care Operations Ltd,Home Care - Private Contractors Payment,1264.58,0.00,COMMERCIAL SUPPLIER 
 09-01-2024,People - Ageing Well,Cera Care Operations Ltd,Home Care - Private Contractors Payment,856.16,0.00,COMMERCIAL SUPPLIER 
 09-01-2024,People - Ageing Well,Cera Care Operations Ltd,Home Care - Private Contractors Payment,998.49,0.00,COMMERCIAL SUPPLIER 
 09-01-2024,People - Ageing Well,Cera Care Operations Ltd,Home Care - Private Contractors Payment,1104.04,0.00,COMMERCIAL SUPPLIER 
 09-01-2024,People - Ageing Well,Cera Care Operations Ltd,Home Care - Private Contractors Payment,947.16,0.00,COMMERCIAL SUPPLIER 
 09-01-2024,People - Ageing Well,Cera Care Operations Ltd,Home Care - Private Contractors Payment,860.53,0.00,COMMERCIAL SUPPLIER 
 09-01-2024,People - Ageing Well,Cera Care Operations Ltd,Home Care - Private Contractors Payment,819.76,0.00,COMMERCIAL SUPPLIER 
 09-01-2024,People - Ageing Well,Cera Care Operations Ltd,Home Care - Private Contractors Payment,887.83,0.00,COMMERCIAL SUPPLIER 
 09-01-2024,People - Ageing Well,Cera Care Operations Ltd,Home Care - Private Contractors Payment,1608.20,0.00,COMMERCIAL SUPPLIER 
 09-01-2024,People - Ageing Well,Cera Care Operations Ltd,Home Care - Private Contractors Payment,943.15,0.00,COMMERCIAL SUPPLIER 
 09-01-2024,People - Ageing Well,Cera Care Operations Ltd,Home Care - Private Contractors Payment,1232.91,0.00,COMMERCIAL SUPPLIER 
 09-01-2024,People - Ageing Well,Cera Care Operations Ltd,Home Care - Private Contractors Payment,1241.28,0.00,COMMERCIAL SUPPLIER 
 09-01-2024,People - Ageing Well,Cera Care Operations Ltd,Home Care - Private Contractors Payment,883.10,0.00,COMMERCIAL SUPPLIER 
 09-01-2024,People - Ageing Well,Cera Care Operations Ltd,Home Care - Private Contractors Payment,523.45,0.00,COMMERCIAL SUPPLIER 
 09-01-2024,People - Ageing Well,Cera Care Operations Ltd,Home Care - Private Contractors Payment,1237.28,0.00,COMMERCIAL SUPPLIER 
 09-01-2024,People - Ageing Well,Cera Care Operations Ltd,Home Care - Private Contractors Payment,1244.92,0.00,COMMERCIAL SUPPLIER 
 09-01-2024,People - Ageing Well,Cera Care Operations Ltd,Home Care - Private Contractors Payment,914.04,0.00,COMMERCIAL SUPPLIER 
 09-01-2024,People - Ageing Well,Com Safer Care Ltd,Payment To Private Sector Landlords (Psl),2720.00,0.00,COMMERCIAL SUPPLIER 
 09-01-2024,People - Ageing Well,Harrich Builders Ltd,Maintenance - Equipment Furniture And Materials,955.00,0.00,CIS 
 09-01-2024,People - Ageing Well,Com Safer Care Ltd,Payment To Private Sector Landlords (Psl),3570.00,0.00,COMMERCIAL SUPPLIER 
 09-01-2024,People - Ageing Well,Com Safer Care Ltd,Payment To Private Sector Landlords (Psl),3570.00,0.00,COMMERCIAL SUPPLIER 
 10-01-2024,People - Ageing Well,Castle Water Limited,Water And Sewerage,922.49,0.00,COMMERCIAL SUPPLIER 
 10-01-2024,People - Ageing Well,Home Sweet Home Care Ltd,Home Care - Private Contractors Payment,1113.88,0.00,COMMERCIAL SUPPLIER 
 10-01-2024,People - Ageing Well,Home Sweet Home Care Ltd,Home Care - Private Contractors Payment,1113.88,0.00,COMMERCIAL SUPPLIER 
 10-01-2024,People - Ageing Well,Home Sweet Home Care Ltd,Home Care - Private Contractors Payment,973.74,0.00,COMMERCIAL SUPPLIER 
 10-01-2024,People - Ageing Well,Home Sweet Home Care Ltd,Home Care - Private Contractors Payment,895.47,0.00,COMMERCIAL SUPPLIER 
 10-01-2024,People - Ageing Well,Home Sweet Home Care Ltd,Home Care - Private Contractors Payment,895.47,0.00,COMMERCIAL SUPPLIER 
 10-01-2024,People - Ageing Well,Home Sweet Home Care Ltd,Home Care - Private Contractors Payment,502.34,0.00,COMMERCIAL SUPPLIER 
 10-01-2024,People - Ageing Well,Home Sweet Home Care Ltd,Home Care - Private Contractors Payment,753.51,0.00,COMMERCIAL SUPPLIER 
 10-01-2024,People - Ageing Well,Home Sweet Home Care Ltd,Home Care - Private Contractors Payment,753.51,0.00,COMMERCIAL SUPPLIER 
 10-01-2024,People - Ageing Well,Home Sweet Home Care Ltd,Home Care - Private Contractors Payment,677.06,0.00,COMMERCIAL SUPPLIER 
 10-01-2024,People - Ageing Well,Home Sweet Home Care Ltd,Home Care - Private Contractors Payment,971.92,0.00,COMMERCIAL SUPPLIER 
 10-01-2024,People - Ageing Well,Home Sweet Home Care Ltd,Home Care - Private Contractors Payment,1223.08,0.00,COMMERCIAL SUPPLIER 
 10-01-2024,People - Ageing Well,Home Sweet Home Care Ltd,Home Care - Private Contractors Payment,1215.80,0.00,COMMERCIAL SUPPLIER 
 10-01-2024,People - Ageing Well,Home Sweet Home Care Ltd,Home Care - Private Contractors Payment,1217.26,0.00,COMMERCIAL SUPPLIER 
 10-01-2024,People - Ageing Well,Home Sweet Home Care Ltd,Home Care - Private Contractors Payment,546.02,0.00,COMMERCIAL SUPPLIER 
 10-01-2024,People - Ageing Well,Home Sweet Home Care Ltd,Home Care - Private Contractors Payment,651.22,0.00,COMMERCIAL SUPPLIER 
 10-01-2024,People - Ageing Well,Home Sweet Home Care Ltd,Home Care - Private Contractors Payment,507.07,0.00,COMMERCIAL SUPPLIER 
 10-01-2024,People - Ageing Well,Home Sweet Home Care Ltd,Home Care - Private Contractors Payment,770.25,0.00,COMMERCIAL SUPPLIER 
 10-01-2024,People - Ageing Well,Home Sweet Home Care Ltd,Home Care - Private Contractors Payment,833.59,0.00,COMMERCIAL SUPPLIER 
 10-01-2024,People - Ageing Well,Home Sweet Home Care Ltd,Home Care - Private Contractors Payment,1279.87,0.00,COMMERCIAL SUPPLIER 
 10-01-2024,People - Ageing Well,Home Sweet Home Care Ltd,Home Care - Private Contractors Payment,1284.60,0.00,COMMERCIAL SUPPLIER 
 10-01-2024,People - Ageing Well,Home Sweet Home Care Ltd,Home Care - Private Contractors Payment,1244.20,0.00,COMMERCIAL SUPPLIER 
 10-01-2024,People - Ageing Well,Home Sweet Home Care Ltd,Home Care - Private Contractors Payment,1502.64,0.00,COMMERCIAL SUPPLIER 
 10-01-2024,People - Ageing Well,Home Sweet Home Care Ltd,Home Care - Private Contractors Payment,502.34,0.00,COMMERCIAL SUPPLIER 
 10-01-2024,People - Ageing Well,Home Sweet Home Care Ltd,Home Care - Private Contractors Payment,1231.09,0.00,COMMERCIAL SUPPLIER 
 10-01-2024,People - Ageing Well,Home Sweet Home Care Ltd,Home Care - Private Contractors Payment,1363.95,0.00,COMMERCIAL SUPPLIER 
 10-01-2024,People - Ageing Well,Home Sweet Home Care Ltd,Home Care - Private Contractors Payment,844.15,0.00,COMMERCIAL SUPPLIER 
 10-01-2024,People - Ageing Well,Home Sweet Home Care Ltd,Home Care - Private Contractors Payment,921.68,0.00,COMMERCIAL SUPPLIER 
 10-01-2024,People - Ageing Well,Home Sweet Home Care Ltd,Home Care - Private Contractors Payment,626.47,0.00,COMMERCIAL SUPPLIER 
 10-01-2024,People - Ageing Well,Home Sweet Home Care Ltd,Home Care - Private Contractors Payment,1168.48,0.00,COMMERCIAL SUPPLIER 
 10-01-2024,People - Ageing Well,Home Sweet Home Care Ltd,Home Care - Private Contractors Payment,790.64,0.00,COMMERCIAL SUPPLIER 
 10-01-2024,People - Ageing Well,Home Sweet Home Care Ltd,Home Care - Private Contractors Payment,600.62,0.00,COMMERCIAL SUPPLIER 
 10-01-2024,People - Ageing Well,Home Sweet Home Care Ltd,Home Care - Private Contractors Payment,877.64,0.00,COMMERCIAL SUPPLIER 
 10-01-2024,People - Ageing Well,Home Sweet Home Care Ltd,Home Care - Private Contractors Payment,600.99,0.00,COMMERCIAL SUPPLIER 
 10-01-2024,People - Ageing Well,Home Sweet Home Care Ltd,Home Care - Private Contractors Payment,1392.71,0.00,COMMERCIAL SUPPLIER 
 10-01-2024,People - Ageing Well,Home Sweet Home Care Ltd,Home Care - Private Contractors Payment,1106.59,0.00,COMMERCIAL SUPPLIER 
 10-01-2024,People - Ageing Well,Home Sweet Home Care Ltd,Home Care - Private Contractors Payment,1215.44,0.00,COMMERCIAL SUPPLIER 
 10-01-2024,People - Ageing Well,Home Sweet Home Care Ltd,Home Care - Private Contractors Payment,582.42,0.00,COMMERCIAL SUPPLIER 
 10-01-2024,People - Ageing Well,Home Sweet Home Care Ltd,Home Care - Private Contractors Payment,615.55,0.00,COMMERCIAL SUPPLIER 
 10-01-2024,People - Ageing Well,Home Sweet Home Care Ltd,Home Care - Private Contractors Payment,1241.28,0.00,COMMERCIAL SUPPLIER 
 10-01-2024,People - Ageing Well,Home Sweet Home Care Ltd,Home Care - Private Contractors Payment,705.09,0.00,COMMERCIAL SUPPLIER 
 10-01-2024,People - Ageing Well,Home Sweet Home Care Ltd,Home Care - Private Contractors Payment,732.03,0.00,COMMERCIAL SUPPLIER 
 10-01-2024,People - Ageing Well,Home Sweet Home Care Ltd,Home Care - Private Contractors Payment,906.39,0.00,COMMERCIAL SUPPLIER 
 10-01-2024,People - Ageing Well,Home Sweet Home Care Ltd,Home Care - Private Contractors Payment,904.57,0.00,COMMERCIAL SUPPLIER 
 10-01-2024,People - Ageing Well,Home Sweet Home Care Ltd,Home Care - Private Contractors Payment,611.54,0.00,COMMERCIAL SUPPLIER 
 10-01-2024,People - Ageing Well,Home Sweet Home Care Ltd,Home Care - Private Contractors Payment,611.54,0.00,COMMERCIAL SUPPLIER 
 10-01-2024,People - Ageing Well,Home Sweet Home Care Ltd,Home Care - Private Contractors Payment,1190.32,0.00,COMMERCIAL SUPPLIER 
 10-01-2024,People - Ageing Well,Home Sweet Home Care Ltd,Home Care - Private Contractors Payment,1190.32,0.00,COMMERCIAL SUPPLIER 
 10-01-2024,People - Ageing Well,Home Sweet Home Care Ltd,Home Care - Private Contractors Payment,662.50,0.00,COMMERCIAL SUPPLIER 
 10-01-2024,People - Ageing Well,Home Sweet Home Care Ltd,Home Care - Private Contractors Payment,1213.26,0.00,COMMERCIAL SUPPLIER 
 10-01-2024,People - Ageing Well,Home Sweet Home Care Ltd,Home Care - Private Contractors Payment,1214.71,0.00,COMMERCIAL SUPPLIER 
 10-01-2024,People - Ageing Well,Home Sweet Home Care Ltd,Home Care - Private Contractors Payment,587.15,0.00,COMMERCIAL SUPPLIER 
 10-01-2024,People - Ageing Well,Home Sweet Home Care Ltd,Home Care - Private Contractors Payment,598.80,0.00,COMMERCIAL SUPPLIER 
 10-01-2024,People - Ageing Well,Home Sweet Home Care Ltd,Home Care - Private Contractors Payment,1192.51,0.00,COMMERCIAL SUPPLIER 
 10-01-2024,People - Ageing Well,Home Sweet Home Care Ltd,Home Care - Private Contractors Payment,917.31,0.00,COMMERCIAL SUPPLIER 
 10-01-2024,People - Ageing Well,Home Sweet Home Care Ltd,Home Care - Private Contractors Payment,1297.34,0.00,COMMERCIAL SUPPLIER 
 10-01-2024,People - Ageing Well,Home Sweet Home Care Ltd,Home Care - Private Contractors Payment,1318.45,0.00,COMMERCIAL SUPPLIER 
 10-01-2024,People - Ageing Well,Home Sweet Home Care Ltd,Home Care - Private Contractors Payment,611.54,0.00,COMMERCIAL SUPPLIER 
 10-01-2024,People - Ageing Well,Home Sweet Home Care Ltd,Home Care - Private Contractors Payment,961.35,0.00,COMMERCIAL SUPPLIER 
 10-01-2024,People - Ageing Well,Home Sweet Home Care Ltd,Home Care - Private Contractors Payment,1234.73,0.00,COMMERCIAL SUPPLIER 
 10-01-2024,People - Ageing Well,Home Sweet Home Care Ltd,Home Care - Private Contractors Payment,886.74,0.00,COMMERCIAL SUPPLIER 
 10-01-2024,People - Ageing Well,Home Sweet Home Care Ltd,Home Care - Private Contractors Payment,892.56,0.00,COMMERCIAL SUPPLIER 
 10-01-2024,People - Ageing Well,Home Sweet Home Care Ltd,Home Care - Private Contractors Payment,573.68,0.00,COMMERCIAL SUPPLIER 
 10-01-2024,People - Ageing Well,Home Sweet Home Care Ltd,Home Care - Private Contractors Payment,1045.45,0.00,COMMERCIAL SUPPLIER 
 10-01-2024,People - Ageing Well,Home Sweet Home Care Ltd,Home Care - Private Contractors Payment,1224.90,0.00,COMMERCIAL SUPPLIER 
 10-01-2024,People - Ageing Well,Home Sweet Home Care Ltd,Home Care - Private Contractors Payment,1225.63,0.00,COMMERCIAL SUPPLIER 
 10-01-2024,People - Ageing Well,Home Sweet Home Care Ltd,Home Care - Private Contractors Payment,510.71,0.00,COMMERCIAL SUPPLIER 
 10-01-2024,People - Ageing Well,Home Sweet Home Care Ltd,Home Care - Private Contractors Payment,510.71,0.00,COMMERCIAL SUPPLIER 
 10-01-2024,People - Ageing Well,Home Sweet Home Care Ltd,Home Care - Private Contractors Payment,1272.95,0.00,COMMERCIAL SUPPLIER 
 10-01-2024,People - Ageing Well,Home Sweet Home Care Ltd,Home Care - Private Contractors Payment,1272.95,0.00,COMMERCIAL SUPPLIER 
 10-01-2024,People - Ageing Well,Home Sweet Home Care Ltd,Home Care - Private Contractors Payment,1255.84,0.00,COMMERCIAL SUPPLIER 
 10-01-2024,People - Ageing Well,Home Sweet Home Care Ltd,Home Care - Private Contractors Payment,1256.94,0.00,COMMERCIAL SUPPLIER 
 10-01-2024,People - Ageing Well,Home Sweet Home Care Ltd,Home Care - Private Contractors Payment,1223.45,0.00,COMMERCIAL SUPPLIER 
 10-01-2024,People - Ageing Well,Home Sweet Home Care Ltd,Home Care - Private Contractors Payment,1223.08,0.00,COMMERCIAL SUPPLIER 
 10-01-2024,People - Ageing Well,Home Sweet Home Care Ltd,Home Care - Private Contractors Payment,1223.08,0.00,COMMERCIAL SUPPLIER 
 10-01-2024,People - Ageing Well,Home Sweet Home Care Ltd,Home Care - Private Contractors Payment,1237.28,0.00,COMMERCIAL SUPPLIER 
 10-01-2024,People - Ageing Well,Home Sweet Home Care Ltd,Home Care - Private Contractors Payment,1238.01,0.00,COMMERCIAL SUPPLIER 
 10-01-2024,People - Ageing Well,Home Sweet Home Care Ltd,Home Care - Private Contractors Payment,618.46,0.00,COMMERCIAL SUPPLIER 
 10-01-2024,People - Ageing Well,Home Sweet Home Care Ltd,Home Care - Private Contractors Payment,726.21,0.00,COMMERCIAL SUPPLIER 
 10-01-2024,People - Ageing Well,Home Sweet Home Care Ltd,Home Care - Private Contractors Payment,1270.77,0.00,COMMERCIAL SUPPLIER 
 10-01-2024,People - Ageing Well,Home Sweet Home Care Ltd,Home Care - Private Contractors Payment,1448.40,0.00,COMMERCIAL SUPPLIER 
 10-01-2024,People - Ageing Well,Home Sweet Home Care Ltd,Home Care - Private Contractors Payment,622.10,0.00,COMMERCIAL SUPPLIER 
 10-01-2024,People - Ageing Well,Home Sweet Home Care Ltd,Home Care - Private Contractors Payment,1368.31,0.00,COMMERCIAL SUPPLIER 
 10-01-2024,People - Ageing Well,Home Sweet Home Care Ltd,Home Care - Private Contractors Payment,580.97,0.00,COMMERCIAL SUPPLIER 
 10-01-2024,People - Ageing Well,Home Sweet Home Care Ltd,Home Care - Private Contractors Payment,1097.14,0.00,COMMERCIAL SUPPLIER 
 10-01-2024,People - Ageing Well,Home Sweet Home Care Ltd,Home Care - Private Contractors Payment,1232.91,0.00,COMMERCIAL SUPPLIER 
 10-01-2024,People - Ageing Well,Home Sweet Home Care Ltd,Home Care - Private Contractors Payment,1936.52,0.00,COMMERCIAL SUPPLIER 
 10-01-2024,People - Ageing Well,Home Sweet Home Care Ltd,Home Care - Private Contractors Payment,600.62,0.00,COMMERCIAL SUPPLIER 
 10-01-2024,People - Ageing Well,Home Sweet Home Care Ltd,Home Care - Private Contractors Payment,1243.10,0.00,COMMERCIAL SUPPLIER 
 10-01-2024,People - Ageing Well,Home Sweet Home Care Ltd,Home Care - Private Contractors Payment,1254.02,0.00,COMMERCIAL SUPPLIER 
 10-01-2024,People - Ageing Well,Home Sweet Home Care Ltd,Home Care - Private Contractors Payment,617.00,0.00,COMMERCIAL SUPPLIER 
 10-01-2024,People - Ageing Well,Home Sweet Home Care Ltd,Home Care - Private Contractors Payment,882.00,0.00,COMMERCIAL SUPPLIER 
 10-01-2024,People - Ageing Well,Home Sweet Home Care Ltd,Home Care - Private Contractors Payment,1368.68,0.00,COMMERCIAL SUPPLIER 
 10-01-2024,People - Ageing Well,Home Sweet Home Care Ltd,Home Care - Private Contractors Payment,1393.07,0.00,COMMERCIAL SUPPLIER 
 10-01-2024,People - Ageing Well,Home Sweet Home Care Ltd,Home Care - Private Contractors Payment,873.63,0.00,COMMERCIAL SUPPLIER 
 10-01-2024,People - Ageing Well,Home Sweet Home Care Ltd,Home Care - Private Contractors Payment,1265.67,0.00,COMMERCIAL SUPPLIER 
 10-01-2024,People - Ageing Well,Home Sweet Home Care Ltd,Home Care - Private Contractors Payment,1270.77,0.00,COMMERCIAL SUPPLIER 
 10-01-2024,People - Ageing Well,Home Sweet Home Care Ltd,Home Care - Private Contractors Payment,1530.66,0.00,COMMERCIAL SUPPLIER 
 10-01-2024,People - Ageing Well,Home Sweet Home Care Ltd,Home Care - Private Contractors Payment,611.54,0.00,COMMERCIAL SUPPLIER 
 10-01-2024,People - Ageing Well,Home Sweet Home Care Ltd,Home Care - Private Contractors Payment,1234.00,0.00,COMMERCIAL SUPPLIER 
 10-01-2024,People - Ageing Well,Home Sweet Home Care Ltd,Home Care - Private Contractors Payment,633.75,0.00,COMMERCIAL SUPPLIER 
 10-01-2024,People - Ageing Well,Home Sweet Home Care Ltd,Home Care - Private Contractors Payment,1368.31,0.00,COMMERCIAL SUPPLIER 
 10-01-2024,People - Ageing Well,Home Sweet Home Care Ltd,Home Care - Private Contractors Payment,3619.48,0.00,COMMERCIAL SUPPLIER 
 10-01-2024,People - Ageing Well,Home Sweet Home Care Ltd,Home Care - Private Contractors Payment,582.42,0.00,COMMERCIAL SUPPLIER 
 10-01-2024,People - Ageing Well,Home Support Services (Havering & Essex) Ltd,Home Care - Private Contractors Payment,2458.55,0.00,COMMERCIAL SUPPLIER 
 10-01-2024,People - Ageing Well,Home Support Services (Havering & Essex) Ltd,Home Care - Private Contractors Payment,611.54,0.00,COMMERCIAL SUPPLIER 
 10-01-2024,People - Ageing Well,Home Support Services (Havering & Essex) Ltd,Home Care - Private Contractors Payment,2581.58,0.00,COMMERCIAL SUPPLIER 
 10-01-2024,People - Ageing Well,Home Support Services (Havering & Essex) Ltd,Home Care - Private Contractors Payment,2475.65,0.00,COMMERCIAL SUPPLIER 
 10-01-2024,People - Ageing Well,Home Support Services (Havering & Essex) Ltd,Home Care - Private Contractors Payment,4181.71,0.00,COMMERCIAL SUPPLIER 
 10-01-2024,People - Ageing Well,Home Support Services (Havering & Essex) Ltd,Home Care - Private Contractors Payment,903.84,0.00,COMMERCIAL SUPPLIER 
 10-01-2024,People - Ageing Well,Home Support Services (Havering & Essex) Ltd,Home Care - Private Contractors Payment,633.02,0.00,COMMERCIAL SUPPLIER 
 10-01-2024,People - Ageing Well,Home Support Services (Havering & Essex) Ltd,Home Care - Private Contractors Payment,1300.98,0.00,COMMERCIAL SUPPLIER 
 10-01-2024,People - Ageing Well,Home Support Services (Havering & Essex) Ltd,Home Care - Private Contractors Payment,1137.54,0.00,COMMERCIAL SUPPLIER 
 10-01-2024,People - Ageing Well,Home Support Services (Havering & Essex) Ltd,Home Care - Private Contractors Payment,2530.25,0.00,COMMERCIAL SUPPLIER 
 10-01-2024,People - Ageing Well,Home Support Services (Havering & Essex) Ltd,Home Care - Private Contractors Payment,3806.46,0.00,COMMERCIAL SUPPLIER 
 10-01-2024,People - Ageing Well,Home Support Services (Havering & Essex) Ltd,Home Care - Private Contractors Payment,2315.12,0.00,COMMERCIAL SUPPLIER 
 10-01-2024,People - Ageing Well,Home Support Services (Havering & Essex) Ltd,Home Care - Private Contractors Payment,1015.59,0.00,COMMERCIAL SUPPLIER 
 10-01-2024,People - Ageing Well,Home Support Services (Havering & Essex) Ltd,Home Care - Private Contractors Payment,2846.21,0.00,COMMERCIAL SUPPLIER 
 10-01-2024,People - Ageing Well,Home Support Services (Havering & Essex) Ltd,Home Care - Private Contractors Payment,2545.18,0.00,COMMERCIAL SUPPLIER 
 10-01-2024,People - Ageing Well,Home Support Services (Havering & Essex) Ltd,Home Care - Private Contractors Payment,2464.37,0.00,COMMERCIAL SUPPLIER 
 10-01-2024,People - Ageing Well,Home Support Services (Havering & Essex) Ltd,Home Care - Private Contractors Payment,1613.67,0.00,COMMERCIAL SUPPLIER 
 10-01-2024,People - Ageing Well,Home Support Services (Havering & Essex) Ltd,Home Care - Private Contractors Payment,1203.06,0.00,COMMERCIAL SUPPLIER 
 10-01-2024,People - Ageing Well,Home Support Services (Havering & Essex) Ltd,Home Care - Private Contractors Payment,507.07,0.00,COMMERCIAL SUPPLIER 
 10-01-2024,People - Ageing Well,Home Support Services (Havering & Essex) Ltd,Home Care - Private Contractors Payment,917.31,0.00,COMMERCIAL SUPPLIER 
 10-01-2024,People - Ageing Well,Home Support Services (Havering & Essex) Ltd,Home Care - Private Contractors Payment,1206.70,0.00,COMMERCIAL SUPPLIER 
 10-01-2024,People - Ageing Well,Home Support Services (Havering & Essex) Ltd,Home Care - Private Contractors Payment,3029.66,0.00,COMMERCIAL SUPPLIER 
 10-01-2024,People - Ageing Well,Home Support Services (Havering & Essex) Ltd,Home Care - Private Contractors Payment,1371.96,0.00,COMMERCIAL SUPPLIER 
 10-01-2024,People - Ageing Well,Home Support Services (Havering & Essex) Ltd,Home Care - Private Contractors Payment,2072.69,0.00,COMMERCIAL SUPPLIER 
 10-01-2024,People - Ageing Well,Home Support Services (Havering & Essex) Ltd,Home Care - Private Contractors Payment,1312.63,0.00,COMMERCIAL SUPPLIER 
 10-01-2024,People - Ageing Well,Home Support Services (Havering & Essex) Ltd,Home Care - Private Contractors Payment,1137.18,0.00,COMMERCIAL SUPPLIER 
 10-01-2024,People - Ageing Well,Home Support Services (Havering & Essex) Ltd,Home Care - Private Contractors Payment,1308.63,0.00,COMMERCIAL SUPPLIER 
 10-01-2024,People - Ageing Well,Home Support Services (Havering & Essex) Ltd,Home Care - Private Contractors Payment,919.13,0.00,COMMERCIAL SUPPLIER 
 10-01-2024,People - Ageing Well,Home Support Services (Havering & Essex) Ltd,Home Care - Private Contractors Payment,2230.31,0.00,COMMERCIAL SUPPLIER 
 10-01-2024,People - Ageing Well,Home Support Services (Havering & Essex) Ltd,Home Care - Private Contractors Payment,557.67,0.00,COMMERCIAL SUPPLIER 
 10-01-2024,People - Ageing Well,Home Support Services (Havering & Essex) Ltd,Home Care - Private Contractors Payment,908.94,0.00,COMMERCIAL SUPPLIER 
 10-01-2024,People - Ageing Well,Home Support Services (Havering & Essex) Ltd,Home Care - Private Contractors Payment,2453.09,0.00,COMMERCIAL SUPPLIER 
 10-01-2024,People - Ageing Well,Home Support Services (Havering & Essex) Ltd,Home Care - Private Contractors Payment,937.33,0.00,COMMERCIAL SUPPLIER 
 10-01-2024,People - Ageing Well,Home Support Services (Havering & Essex) Ltd,Home Care - Private Contractors Payment,2446.17,0.00,COMMERCIAL SUPPLIER 
 10-01-2024,People - Ageing Well,Home Support Services (Havering & Essex) Ltd,Home Care - Private Contractors Payment,2457.09,0.00,COMMERCIAL SUPPLIER 
 10-01-2024,People - Ageing Well,Home Support Services (Havering & Essex) Ltd,Home Care - Private Contractors Payment,1190.32,0.00,COMMERCIAL SUPPLIER 
 10-01-2024,People - Ageing Well,Home Support Services (Havering & Essex) Ltd,Home Care - Private Contractors Payment,664.69,0.00,COMMERCIAL SUPPLIER 
 10-01-2024,People - Ageing Well,Home Support Services (Havering & Essex) Ltd,Home Care - Private Contractors Payment,691.99,0.00,COMMERCIAL SUPPLIER 
 10-01-2024,People - Ageing Well,Home Support Services (Havering & Essex) Ltd,Home Care - Private Contractors Payment,864.90,0.00,COMMERCIAL SUPPLIER 
 10-01-2024,People - Ageing Well,Home Support Services (Havering & Essex) Ltd,Home Care - Private Contractors Payment,1042.17,0.00,COMMERCIAL SUPPLIER 
 10-01-2024,People - Ageing Well,Home Support Services (Havering & Essex) Ltd,Home Care - Private Contractors Payment,875.09,0.00,COMMERCIAL SUPPLIER 
 10-01-2024,People - Ageing Well,Home Support Services (Havering & Essex) Ltd,Home Care - Private Contractors Payment,2280.54,0.00,COMMERCIAL SUPPLIER 
 10-01-2024,People - Ageing Well,Home Support Services (Havering & Essex) Ltd,Home Care - Private Contractors Payment,2427.97,0.00,COMMERCIAL SUPPLIER 
 10-01-2024,People - Ageing Well,Home Support Services (Havering & Essex) Ltd,Home Care - Private Contractors Payment,2002.79,0.00,COMMERCIAL SUPPLIER 
 10-01-2024,People - Ageing Well,Home Support Services (Havering & Essex) Ltd,Home Care - Private Contractors Payment,637.75,0.00,COMMERCIAL SUPPLIER 
 10-01-2024,People - Ageing Well,Home Support Services (Havering & Essex) Ltd,Home Care - Private Contractors Payment,722.20,0.00,COMMERCIAL SUPPLIER 
 10-01-2024,People - Ageing Well,Home Support Services (Havering & Essex) Ltd,Home Care - Private Contractors Payment,7993.44,0.00,COMMERCIAL SUPPLIER 
 10-01-2024,People - Ageing Well,Home Support Services (Havering & Essex) Ltd,Home Care - Private Contractors Payment,524.18,0.00,COMMERCIAL SUPPLIER 
 10-01-2024,People - Ageing Well,Home Support Services (Havering & Essex) Ltd,Home Care - Private Contractors Payment,570.76,0.00,COMMERCIAL SUPPLIER 
 10-01-2024,People - Ageing Well,Home Support Services (Havering & Essex) Ltd,Home Care - Private Contractors Payment,634.83,0.00,COMMERCIAL SUPPLIER 
 10-01-2024,People - Ageing Well,Home Support Services (Havering & Essex) Ltd,Home Care - Private Contractors Payment,1809.50,0.00,COMMERCIAL SUPPLIER 
 10-01-2024,People - Ageing Well,Home Support Services (Havering & Essex) Ltd,Home Care - Private Contractors Payment,619.19,0.00,COMMERCIAL SUPPLIER 
 10-01-2024,People - Ageing Well,Home Support Services (Havering & Essex) Ltd,Home Care - Private Contractors Payment,2184.44,0.00,COMMERCIAL SUPPLIER 
 10-01-2024,People - Ageing Well,Home Support Services (Havering & Essex) Ltd,Home Care - Private Contractors Payment,799.01,0.00,COMMERCIAL SUPPLIER 
 10-01-2024,People - Ageing Well,Home Support Services (Havering & Essex) Ltd,Home Care - Private Contractors Payment,645.03,0.00,COMMERCIAL SUPPLIER 
 10-01-2024,People - Ageing Well,Home Support Services (Havering & Essex) Ltd,Home Care - Private Contractors Payment,1201.61,0.00,COMMERCIAL SUPPLIER 
 10-01-2024,People - Ageing Well,Home Support Services (Havering & Essex) Ltd,Home Care - Private Contractors Payment,1316.27,0.00,COMMERCIAL SUPPLIER 
 10-01-2024,People - Ageing Well,Home Support Services (Havering & Essex) Ltd,Home Care - Private Contractors Payment,2481.11,0.00,COMMERCIAL SUPPLIER 
 10-01-2024,People - Ageing Well,Home Support Services (Havering & Essex) Ltd,Home Care - Private Contractors Payment,509.25,0.00,COMMERCIAL SUPPLIER 
 10-01-2024,People - Ageing Well,Home Support Services (Havering & Essex) Ltd,Home Care - Private Contractors Payment,1256.21,0.00,COMMERCIAL SUPPLIER 
 10-01-2024,People - Ageing Well,Home Support Services (Havering & Essex) Ltd,Home Care - Private Contractors Payment,665.05,0.00,COMMERCIAL SUPPLIER 
 10-01-2024,People - Ageing Well,Home Support Services (Havering & Essex) Ltd,Home Care - Private Contractors Payment,1406.54,0.00,COMMERCIAL SUPPLIER 
 10-01-2024,People - Ageing Well,Home Support Services (Havering & Essex) Ltd,Home Care - Private Contractors Payment,631.20,0.00,COMMERCIAL SUPPLIER 
 10-01-2024,People - Ageing Well,Home Support Services (Havering & Essex) Ltd,Home Care - Private Contractors Payment,755.33,0.00,COMMERCIAL SUPPLIER 
 10-01-2024,People - Ageing Well,Home Support Services (Havering & Essex) Ltd,Home Care - Private Contractors Payment,1666.81,0.00,COMMERCIAL SUPPLIER 
 10-01-2024,People - Ageing Well,Home Support Services (Havering & Essex) Ltd,Home Care - Private Contractors Payment,843.05,0.00,COMMERCIAL SUPPLIER 
 10-01-2024,People - Ageing Well,Home Support Services (Havering & Essex) Ltd,Home Care - Private Contractors Payment,1825.16,0.00,COMMERCIAL SUPPLIER 
 10-01-2024,People - Ageing Well,Home Support Services (Havering & Essex) Ltd,Home Care - Private Contractors Payment,1834.63,0.00,COMMERCIAL SUPPLIER 
 10-01-2024,People - Ageing Well,Home Support Services (Havering & Essex) Ltd,Home Care - Private Contractors Payment,2416.32,0.00,COMMERCIAL SUPPLIER 
 10-01-2024,People - Ageing Well,Home Support Services (Havering & Essex) Ltd,Home Care - Private Contractors Payment,769.89,0.00,COMMERCIAL SUPPLIER 
 10-01-2024,People - Ageing Well,Home Support Services (Havering & Essex) Ltd,Home Care - Private Contractors Payment,1868.12,0.00,COMMERCIAL SUPPLIER 
 10-01-2024,People - Ageing Well,Home Support Services (Havering & Essex) Ltd,Home Care - Private Contractors Payment,1270.41,0.00,COMMERCIAL SUPPLIER 
 10-01-2024,People - Ageing Well,Home Support Services (Havering & Essex) Ltd,Home Care - Private Contractors Payment,1172.85,0.00,COMMERCIAL SUPPLIER 
 10-01-2024,People - Ageing Well,Home Support Services (Havering & Essex) Ltd,Home Care - Private Contractors Payment,1729.79,0.00,COMMERCIAL SUPPLIER 
 10-01-2024,People - Ageing Well,Home Support Services (Havering & Essex) Ltd,Home Care - Private Contractors Payment,1005.40,0.00,COMMERCIAL SUPPLIER 
 10-01-2024,People - Ageing Well,Home Support Services (Havering & Essex) Ltd,Home Care - Private Contractors Payment,1189.59,0.00,COMMERCIAL SUPPLIER 
 10-01-2024,People - Ageing Well,Home Support Services (Havering & Essex) Ltd,Home Care - Private Contractors Payment,1267.86,0.00,COMMERCIAL SUPPLIER 
 10-01-2024,People - Ageing Well,Home Support Services (Havering & Essex) Ltd,Home Care - Private Contractors Payment,895.47,0.00,COMMERCIAL SUPPLIER 
 10-01-2024,People - Ageing Well,Home Support Services (Havering & Essex) Ltd,Home Care - Private Contractors Payment,2483.30,0.00,COMMERCIAL SUPPLIER 
 10-01-2024,People - Ageing Well,Home Support Services (Havering & Essex) Ltd,Home Care - Private Contractors Payment,1544.50,0.00,COMMERCIAL SUPPLIER 
 10-01-2024,People - Ageing Well,Home Support Services (Havering & Essex) Ltd,Home Care - Private Contractors Payment,1638.06,0.00,COMMERCIAL SUPPLIER 
 10-01-2024,People - Ageing Well,Home Support Services (Havering & Essex) Ltd,Home Care - Private Contractors Payment,775.35,0.00,COMMERCIAL SUPPLIER 
 10-01-2024,People - Ageing Well,Home Support Services (Havering & Essex) Ltd,Home Care - Private Contractors Payment,1227.45,0.00,COMMERCIAL SUPPLIER 
 10-01-2024,People - Ageing Well,Home Support Services (Havering & Essex) Ltd,Home Care - Private Contractors Payment,953.35,0.00,COMMERCIAL SUPPLIER 
 10-01-2024,People - Ageing Well,Home Support Services (Havering & Essex) Ltd,Home Care - Private Contractors Payment,652.67,0.00,COMMERCIAL SUPPLIER 
 10-01-2024,People - Ageing Well,Home Support Services (Havering & Essex) Ltd,Home Care - Private Contractors Payment,1676.28,0.00,COMMERCIAL SUPPLIER 
 10-01-2024,People - Ageing Well,Home Support Services (Havering & Essex) Ltd,Home Care - Private Contractors Payment,517.99,0.00,COMMERCIAL SUPPLIER 
 10-01-2024,People - Ageing Well,Home Support Services (Havering & Essex) Ltd,Home Care - Private Contractors Payment,1837.17,0.00,COMMERCIAL SUPPLIER 
 10-01-2024,People - Ageing Well,Home Support Services (Havering & Essex) Ltd,Home Care - Private Contractors Payment,976.28,0.00,COMMERCIAL SUPPLIER 
 10-01-2024,People - Ageing Well,Home Support Services (Havering & Essex) Ltd,Home Care - Private Contractors Payment,598.80,0.00,COMMERCIAL SUPPLIER 
 10-01-2024,People - Ageing Well,Home Support Services (Havering & Essex) Ltd,Home Care - Private Contractors Payment,1436.75,0.00,COMMERCIAL SUPPLIER 
 10-01-2024,People - Ageing Well,Home Support Services (Havering & Essex) Ltd,Home Care - Private Contractors Payment,1670.46,0.00,COMMERCIAL SUPPLIER 
 10-01-2024,People - Ageing Well,Home Support Services (Havering & Essex) Ltd,Home Care - Private Contractors Payment,1567.44,0.00,COMMERCIAL SUPPLIER 
 10-01-2024,People - Ageing Well,Home Support Services (Havering & Essex) Ltd,Home Care - Private Contractors Payment,1159.02,0.00,COMMERCIAL SUPPLIER 
 10-01-2024,People - Ageing Well,Home Support Services (Havering & Essex) Ltd,Home Care - Private Contractors Payment,1128.08,0.00,COMMERCIAL SUPPLIER 
 10-01-2024,People - Ageing Well,Home Support Services (Havering & Essex) Ltd,Home Care - Private Contractors Payment,655.22,0.00,COMMERCIAL SUPPLIER 
 10-01-2024,People - Ageing Well,Home Support Services (Havering & Essex) Ltd,Home Care - Private Contractors Payment,1141.18,0.00,COMMERCIAL SUPPLIER 
 10-01-2024,People - Ageing Well,Home Support Services (Havering & Essex) Ltd,Home Care - Private Contractors Payment,2446.17,0.00,COMMERCIAL SUPPLIER 
 10-01-2024,People - Ageing Well,Home Support Services (Havering & Essex) Ltd,Home Care - Private Contractors Payment,2470.92,0.00,COMMERCIAL SUPPLIER 
 10-01-2024,People - Ageing Well,Home Support Services (Havering & Essex) Ltd,Home Care - Private Contractors Payment,537.65,0.00,COMMERCIAL SUPPLIER 
 10-01-2024,People - Ageing Well,Home Support Services (Havering & Essex) Ltd,Home Care - Private Contractors Payment,987.56,0.00,COMMERCIAL SUPPLIER 
 10-01-2024,People - Ageing Well,Home Support Services (Havering & Essex) Ltd,Home Care - Private Contractors Payment,578.78,0.00,COMMERCIAL SUPPLIER 
 10-01-2024,People - Ageing Well,Home Support Services (Havering & Essex) Ltd,Home Care - Private Contractors Payment,1236.92,0.00,COMMERCIAL SUPPLIER 
 10-01-2024,People - Ageing Well,Home Support Services (Havering & Essex) Ltd,Home Care - Private Contractors Payment,1266.40,0.00,COMMERCIAL SUPPLIER 
 10-01-2024,People - Ageing Well,Home Support Services (Havering & Essex) Ltd,Home Care - Private Contractors Payment,1933.64,0.00,COMMERCIAL SUPPLIER 
 10-01-2024,People - Ageing Well,Home Support Services (Havering & Essex) Ltd,Home Care - Private Contractors Payment,2446.17,0.00,COMMERCIAL SUPPLIER 
 10-01-2024,People - Ageing Well,Home Support Services (Havering & Essex) Ltd,Home Care - Private Contractors Payment,560.58,0.00,COMMERCIAL SUPPLIER 
 10-01-2024,People - Ageing Well,Home Support Services (Havering & Essex) Ltd,Home Care - Private Contractors Payment,917.31,0.00,COMMERCIAL SUPPLIER 
 10-01-2024,People - Ageing Well,Home Support Services (Havering & Essex) Ltd,Home Care - Private Contractors Payment,770.62,0.00,COMMERCIAL SUPPLIER 
 10-01-2024,People - Ageing Well,Home Support Services (Havering & Essex) Ltd,Home Care - Private Contractors Payment,504.52,0.00,COMMERCIAL SUPPLIER 
 10-01-2024,People - Ageing Well,Home Support Services (Havering & Essex) Ltd,Home Care - Private Contractors Payment,2447.99,0.00,COMMERCIAL SUPPLIER 
 10-01-2024,People - Ageing Well,Home Support Services (Havering & Essex) Ltd,Home Care - Private Contractors Payment,653.40,0.00,COMMERCIAL SUPPLIER 
 10-01-2024,People - Ageing Well,Home Support Services (Havering & Essex) Ltd,Home Care - Private Contractors Payment,594.80,0.00,COMMERCIAL SUPPLIER 
 10-01-2024,People - Ageing Well,Home Support Services (Havering & Essex) Ltd,Home Care - Private Contractors Payment,1223.45,0.00,COMMERCIAL SUPPLIER 
 10-01-2024,People - Ageing Well,Home Support Services (Havering & Essex) Ltd,Home Care - Private Contractors Payment,1924.54,0.00,COMMERCIAL SUPPLIER 
 10-01-2024,People - Ageing Well,Home Support Services (Havering & Essex) Ltd,Home Care - Private Contractors Payment,1136.08,0.00,COMMERCIAL SUPPLIER 
 10-01-2024,People - Ageing Well,Home Support Services (Havering & Essex) Ltd,Home Care - Private Contractors Payment,1286.05,0.00,COMMERCIAL SUPPLIER 
 10-01-2024,People - Ageing Well,Home Support Services (Havering & Essex) Ltd,Home Care - Private Contractors Payment,1180.13,0.00,COMMERCIAL SUPPLIER 
 10-01-2024,People - Ageing Well,Home Support Services (Havering & Essex) Ltd,Home Care - Private Contractors Payment,1113.88,0.00,COMMERCIAL SUPPLIER 
 10-01-2024,People - Ageing Well,Home Support Services (Havering & Essex) Ltd,Home Care - Private Contractors Payment,2755.57,0.00,COMMERCIAL SUPPLIER 
 10-01-2024,People - Ageing Well,Home Support Services (Havering & Essex) Ltd,Home Care - Private Contractors Payment,2446.17,0.00,COMMERCIAL SUPPLIER 
 10-01-2024,People - Ageing Well,Home Support Services (Havering & Essex) Ltd,Home Care - Private Contractors Payment,602.08,0.00,COMMERCIAL SUPPLIER 
 10-01-2024,People - Ageing Well,Home Support Services (Havering & Essex) Ltd,Home Care - Private Contractors Payment,899.48,0.00,COMMERCIAL SUPPLIER 
 10-01-2024,People - Ageing Well,Havering Women's Aid,Payments To Voluntary Sector,21904.17,0.00,NON COMMERCIAL SUPPLIER 
 10-01-2024,People - Ageing Well,Matrix SCM Ltd,Agency Staff,974.40,0.00,COMMERCIAL SUPPLIER 
 10-01-2024,People - Ageing Well,Matrix SCM Ltd,Agency Staff,1037.92,0.00,COMMERCIAL SUPPLIER 
 10-01-2024,People - Ageing Well,Matrix SCM Ltd,Agency Staff,722.40,0.00,COMMERCIAL SUPPLIER 
 10-01-2024,People - Ageing Well,Matrix SCM Ltd,Agency Staff,1037.92,0.00,COMMERCIAL SUPPLIER 
 10-01-2024,People - Ageing Well,Matrix SCM Ltd,Agency Staff,1385.28,0.00,COMMERCIAL SUPPLIER 
 10-01-2024,People - Ageing Well,Matrix SCM Ltd,Agency Staff,1037.64,0.00,COMMERCIAL SUPPLIER 
 10-01-2024,People - Ageing Well,Matrix SCM Ltd,Agency Staff,1385.28,0.00,COMMERCIAL SUPPLIER 
 10-01-2024,People - Ageing Well,Matrix SCM Ltd,Agency Staff,1115.92,0.00,COMMERCIAL SUPPLIER 
 10-01-2024,People - Ageing Well,Matrix SCM Ltd,Agency Staff,557.75,0.00,COMMERCIAL SUPPLIER 
 10-01-2024,People - Ageing Well,Matrix SCM Ltd,Agency Staff,1024.65,0.00,COMMERCIAL SUPPLIER 
 10-01-2024,People - Ageing Well,Matrix SCM Ltd,Agency Staff,999.92,0.00,COMMERCIAL SUPPLIER 
 10-01-2024,People - Ageing Well,Matrix SCM Ltd,Agency Staff,741.32,0.00,COMMERCIAL SUPPLIER 
 10-01-2024,People - Ageing Well,Matrix SCM Ltd,Agency Staff,624.08,0.00,COMMERCIAL SUPPLIER 
 10-01-2024,People - Ageing Well,Matrix SCM Ltd,Agency Staff,806.03,0.00,COMMERCIAL SUPPLIER 
 10-01-2024,People - Ageing Well,Matrix SCM Ltd,Agency Staff,603.75,0.00,COMMERCIAL SUPPLIER 
 10-01-2024,People - Ageing Well,Matrix SCM Ltd,Agency Staff,1037.64,0.00,COMMERCIAL SUPPLIER 
 10-01-2024,People - Ageing Well,Matrix SCM Ltd,Agency Staff,1009.80,0.00,COMMERCIAL SUPPLIER 
 10-01-2024,People - Ageing Well,Matrix SCM Ltd,Agency Staff,1018.62,0.00,COMMERCIAL SUPPLIER 
 10-01-2024,People - Ageing Well,Matrix SCM Ltd,Agency Staff,749.94,0.00,COMMERCIAL SUPPLIER 
 10-01-2024,People - Ageing Well,Matrix SCM Ltd,Agency Staff,1020.05,0.00,COMMERCIAL SUPPLIER 
 10-01-2024,People - Ageing Well,Matrix SCM Ltd,Agency Staff,1028.69,0.00,COMMERCIAL SUPPLIER 
 10-01-2024,People - Ageing Well,Matrix SCM Ltd,Agency Staff,769.28,0.00,COMMERCIAL SUPPLIER 
 10-01-2024,People - Ageing Well,Matrix SCM Ltd,Agency Staff,991.30,0.00,COMMERCIAL SUPPLIER 
 10-01-2024,People - Ageing Well,Matrix SCM Ltd,Agency Staff,1017.47,0.00,COMMERCIAL SUPPLIER 
 10-01-2024,People - Ageing Well,Matrix SCM Ltd,Agency Staff,956.82,0.00,COMMERCIAL SUPPLIER 
 10-01-2024,People - Ageing Well,Matrix SCM Ltd,Agency Staff,795.70,0.00,COMMERCIAL SUPPLIER 
 10-01-2024,People - Ageing Well,Matrix SCM Ltd,Agency Staff,508.05,0.00,COMMERCIAL SUPPLIER 
 10-01-2024,People - Ageing Well,Matrix SCM Ltd,Agency Staff,1384.58,0.00,COMMERCIAL SUPPLIER 
 10-01-2024,People - Ageing Well,Matrix SCM Ltd,Agency Staff,1060.26,0.00,COMMERCIAL SUPPLIER 
 10-01-2024,People - Ageing Well,Matrix SCM Ltd,Agency Staff,991.30,0.00,COMMERCIAL SUPPLIER 
 11-01-2024,People - Ageing Well,London Care Plc_a,Home Care - Private Contractors Payment,1572.52,0.00,COMMERCIAL SUPPLIER 
 11-01-2024,People - Ageing Well,London Care Plc_a,Home Care - Private Contractors Payment,1587.81,0.00,COMMERCIAL SUPPLIER 
 11-01-2024,People - Ageing Well,London Care Plc_a,Home Care - Private Contractors Payment,1448.77,0.00,COMMERCIAL SUPPLIER 
 11-01-2024,People - Ageing Well,London Care Plc_a,Home Care - Private Contractors Payment,1386.88,0.00,COMMERCIAL SUPPLIER 
 11-01-2024,People - Ageing Well,London Care Plc_a,Home Care - Private Contractors Payment,1381.42,0.00,COMMERCIAL SUPPLIER 
 11-01-2024,People - Ageing Well,London Care Plc_a,Home Care - Private Contractors Payment,940.97,0.00,COMMERCIAL SUPPLIER 
 11-01-2024,People - Ageing Well,Everycare Romford ,Home Care - Private Contractors Payment,2664.48,0.00,COMMERCIAL SUPPLIER 
 11-01-2024,People - Ageing Well,Everycare Romford ,Home Care - Private Contractors Payment,1921.92,0.00,COMMERCIAL SUPPLIER 
 12-01-2024,People - Ageing Well,Anytime Care 2020_a,Home Care - Private Contractors Payment,909.30,0.00,COMMERCIAL SUPPLIER 
 12-01-2024,People - Ageing Well,Anytime Care 2020_a,Home Care - Private Contractors Payment,630.11,0.00,COMMERCIAL SUPPLIER 
 12-01-2024,People - Ageing Well,Anytime Care 2020_a,Home Care - Private Contractors Payment,613.73,0.00,COMMERCIAL SUPPLIER 
 12-01-2024,People - Ageing Well,Anytime Care 2020_a,Home Care - Private Contractors Payment,514.35,0.00,COMMERCIAL SUPPLIER 
 12-01-2024,People - Ageing Well,Anytime Care 2020_a,Home Care - Private Contractors Payment,1410.18,0.00,COMMERCIAL SUPPLIER 
 12-01-2024,People - Ageing Well,Anytime Care 2020_a,Home Care - Private Contractors Payment,2087.95,0.00,COMMERCIAL SUPPLIER 
 12-01-2024,People - Ageing Well,Anytime Care 2020_a,Home Care - Private Contractors Payment,1124.80,0.00,COMMERCIAL SUPPLIER 
 12-01-2024,People - Ageing Well,Anytime Care 2020_a,Home Care - Private Contractors Payment,1228.91,0.00,COMMERCIAL SUPPLIER 
 12-01-2024,People - Ageing Well,Anytime Care 2020_a,Home Care - Private Contractors Payment,699.63,0.00,COMMERCIAL SUPPLIER 
 12-01-2024,People - Ageing Well,Anytime Care 2020_a,Home Care - Private Contractors Payment,921.68,0.00,COMMERCIAL SUPPLIER 
 12-01-2024,People - Ageing Well,Anytime Care 2020_a,Home Care - Private Contractors Payment,556.94,0.00,COMMERCIAL SUPPLIER 
 12-01-2024,People - Ageing Well,Anytime Care 2020_a,Home Care - Private Contractors Payment,891.10,0.00,COMMERCIAL SUPPLIER 
 12-01-2024,People - Ageing Well,Anytime Care 2020_a,Home Care - Private Contractors Payment,780.81,0.00,COMMERCIAL SUPPLIER 
 12-01-2024,People - Ageing Well,Anytime Care 2020_a,Home Care - Private Contractors Payment,845.24,0.00,COMMERCIAL SUPPLIER 
 12-01-2024,People - Ageing Well,Anytime Care 2020_a,Home Care - Private Contractors Payment,591.52,0.00,COMMERCIAL SUPPLIER 
 12-01-2024,People - Ageing Well,Anytime Care 2020_a,Home Care - Private Contractors Payment,592.61,0.00,COMMERCIAL SUPPLIER 
 12-01-2024,People - Ageing Well,Anytime Care 2020_a,Home Care - Private Contractors Payment,655.22,0.00,COMMERCIAL SUPPLIER 
 12-01-2024,People - Ageing Well,Anytime Care 2020_a,Home Care - Private Contractors Payment,682.51,0.00,COMMERCIAL SUPPLIER 
 12-01-2024,People - Ageing Well,Anytime Care 2020_a,Home Care - Private Contractors Payment,666.51,0.00,COMMERCIAL SUPPLIER 
 12-01-2024,People - Ageing Well,Anytime Care 2020_a,Home Care - Private Contractors Payment,551.12,0.00,COMMERCIAL SUPPLIER 
 12-01-2024,People - Ageing Well,Anytime Care 2020_a,Home Care - Private Contractors Payment,690.90,0.00,COMMERCIAL SUPPLIER 
 12-01-2024,People - Ageing Well,Anytime Care 2020_a,Home Care - Private Contractors Payment,1124.80,0.00,COMMERCIAL SUPPLIER 
 12-01-2024,People - Ageing Well,Anytime Care 2020_a,Home Care - Private Contractors Payment,1228.91,0.00,COMMERCIAL SUPPLIER 
 12-01-2024,People - Ageing Well,Anytime Care 2020_a,Home Care - Private Contractors Payment,556.94,0.00,COMMERCIAL SUPPLIER 
 12-01-2024,People - Ageing Well,Anytime Care 2020_a,Home Care - Private Contractors Payment,1310.81,0.00,COMMERCIAL SUPPLIER 
 12-01-2024,People - Ageing Well,Anytime Care 2020_a,Home Care - Private Contractors Payment,611.54,0.00,COMMERCIAL SUPPLIER 
 12-01-2024,People - Ageing Well,Anytime Care 2020_a,Home Care - Private Contractors Payment,613.73,0.00,COMMERCIAL SUPPLIER 
 12-01-2024,People - Ageing Well,Anytime Care 2020_a,Home Care - Private Contractors Payment,1223.08,0.00,COMMERCIAL SUPPLIER 
 12-01-2024,People - Ageing Well,Anytime Care 2020_a,Home Care - Private Contractors Payment,1422.92,0.00,COMMERCIAL SUPPLIER 
 12-01-2024,People - Ageing Well,Anytime Care 2020_a,Home Care - Private Contractors Payment,634.84,0.00,COMMERCIAL SUPPLIER 
 12-01-2024,People - Ageing Well,Anytime Care 2020_a,Home Care - Private Contractors Payment,644.67,0.00,COMMERCIAL SUPPLIER 
 12-01-2024,People - Ageing Well,Anytime Care 2020_a,Home Care - Private Contractors Payment,911.48,0.00,COMMERCIAL SUPPLIER 
 12-01-2024,People - Ageing Well,Anytime Care 2020_a,Home Care - Private Contractors Payment,1228.18,0.00,COMMERCIAL SUPPLIER 
 12-01-2024,People - Ageing Well,Anytime Care 2020_a,Home Care - Private Contractors Payment,1229.64,0.00,COMMERCIAL SUPPLIER 
 12-01-2024,People - Ageing Well,Anytime Care 2020_a,Home Care - Private Contractors Payment,638.83,0.00,COMMERCIAL SUPPLIER 
 12-01-2024,People - Ageing Well,Anytime Care 2020_a,Home Care - Private Contractors Payment,567.86,0.00,COMMERCIAL SUPPLIER 
 12-01-2024,People - Ageing Well,Anytime Care 2020_a,Home Care - Private Contractors Payment,567.86,0.00,COMMERCIAL SUPPLIER 
 12-01-2024,People - Ageing Well,Anytime Care 2020_a,Home Care - Private Contractors Payment,1295.16,0.00,COMMERCIAL SUPPLIER 
 12-01-2024,People - Ageing Well,Anytime Care 2020_a,Home Care - Private Contractors Payment,1359.22,0.00,COMMERCIAL SUPPLIER 
 12-01-2024,People - Ageing Well,Anytime Care 2020_a,Home Care - Private Contractors Payment,1051.26,0.00,COMMERCIAL SUPPLIER 
 12-01-2024,People - Ageing Well,Anytime Care 2020_a,Home Care - Private Contractors Payment,1216.90,0.00,COMMERCIAL SUPPLIER 
 12-01-2024,People - Ageing Well,Anytime Care 2020_a,Home Care - Private Contractors Payment,549.30,0.00,COMMERCIAL SUPPLIER 
 12-01-2024,People - Ageing Well,Anytime Care 2020_a,Home Care - Private Contractors Payment,540.92,0.00,COMMERCIAL SUPPLIER 
 12-01-2024,People - Ageing Well,Anytime Care 2020_a,Home Care - Private Contractors Payment,1307.90,0.00,COMMERCIAL SUPPLIER 
 12-01-2024,People - Ageing Well,Anytime Care 2020_a,Home Care - Private Contractors Payment,614.82,0.00,COMMERCIAL SUPPLIER 
 12-01-2024,People - Ageing Well,Anytime Care 2020_a,Home Care - Private Contractors Payment,659.23,0.00,COMMERCIAL SUPPLIER 
 12-01-2024,People - Ageing Well,Anytime Care 2020_a,Home Care - Private Contractors Payment,514.70,0.00,COMMERCIAL SUPPLIER 
 12-01-2024,People - Ageing Well,Anytime Care 2020_a,Home Care - Private Contractors Payment,1198.70,0.00,COMMERCIAL SUPPLIER 
 12-01-2024,People - Ageing Well,Anytime Care 2020_a,Home Care - Private Contractors Payment,1223.08,0.00,COMMERCIAL SUPPLIER 
 12-01-2024,People - Ageing Well,Anytime Care 2020_a,Home Care - Private Contractors Payment,1234.01,0.00,COMMERCIAL SUPPLIER 
 12-01-2024,People - Ageing Well,Homestead Care Service,Home Care - Private Contractors Payment,1243.10,0.00,COMMERCIAL SUPPLIER 
 12-01-2024,People - Ageing Well,Homestead Care Service,Home Care - Private Contractors Payment,1244.56,0.00,COMMERCIAL SUPPLIER 
 12-01-2024,People - Ageing Well,Homestead Care Service,Home Care - Private Contractors Payment,771.71,0.00,COMMERCIAL SUPPLIER 
 12-01-2024,People - Ageing Well,Homestead Care Service,Home Care - Private Contractors Payment,845.97,0.00,COMMERCIAL SUPPLIER 
 12-01-2024,People - Ageing Well,Homestead Care Service,Home Care - Private Contractors Payment,1191.42,0.00,COMMERCIAL SUPPLIER 
 12-01-2024,People - Ageing Well,Homestead Care Service,Home Care - Private Contractors Payment,1209.25,0.00,COMMERCIAL SUPPLIER 
 12-01-2024,People - Ageing Well,Homestead Care Service,Home Care - Private Contractors Payment,1083.67,0.00,COMMERCIAL SUPPLIER 
 12-01-2024,People - Ageing Well,Homestead Care Service,Home Care - Private Contractors Payment,1094.95,0.00,COMMERCIAL SUPPLIER 
 12-01-2024,People - Ageing Well,Homestead Care Service,Home Care - Private Contractors Payment,1197.24,0.00,COMMERCIAL SUPPLIER 
 12-01-2024,People - Ageing Well,Homestead Care Service,Home Care - Private Contractors Payment,1198.70,0.00,COMMERCIAL SUPPLIER 
 12-01-2024,People - Ageing Well,Homestead Care Service,Home Care - Private Contractors Payment,641.74,0.00,COMMERCIAL SUPPLIER 
 12-01-2024,People - Ageing Well,Homestead Care Service,Home Care - Private Contractors Payment,1205.61,0.00,COMMERCIAL SUPPLIER 
 12-01-2024,People - Ageing Well,Homestead Care Service,Home Care - Private Contractors Payment,1205.98,0.00,COMMERCIAL SUPPLIER 
 12-01-2024,People - Ageing Well,Homestead Care Service,Home Care - Private Contractors Payment,768.07,0.00,COMMERCIAL SUPPLIER 
 12-01-2024,People - Ageing Well,Homestead Care Service,Home Care - Private Contractors Payment,768.07,0.00,COMMERCIAL SUPPLIER 
 12-01-2024,People - Ageing Well,Homestead Care Service,Home Care - Private Contractors Payment,703.99,0.00,COMMERCIAL SUPPLIER 
 12-01-2024,People - Ageing Well,Homestead Care Service,Home Care - Private Contractors Payment,1069.82,0.00,COMMERCIAL SUPPLIER 
 12-01-2024,People - Ageing Well,Homestead Care Service,Home Care - Private Contractors Payment,1503.71,0.00,COMMERCIAL SUPPLIER 
 12-01-2024,People - Ageing Well,Homestead Care Service,Home Care - Private Contractors Payment,510.33,0.00,COMMERCIAL SUPPLIER 
 12-01-2024,People - Ageing Well,Homestead Care Service,Home Care - Private Contractors Payment,1209.97,0.00,COMMERCIAL SUPPLIER 
 12-01-2024,People - Ageing Well,Homestead Care Service,Home Care - Private Contractors Payment,1109.50,0.00,COMMERCIAL SUPPLIER 
 12-01-2024,People - Ageing Well,Homestead Care Service,Home Care - Private Contractors Payment,1027.24,0.00,COMMERCIAL SUPPLIER 
 12-01-2024,People - Ageing Well,Homestead Care Service,Home Care - Private Contractors Payment,1323.91,0.00,COMMERCIAL SUPPLIER 
 12-01-2024,People - Ageing Well,Homestead Care Service,Home Care - Private Contractors Payment,1323.91,0.00,COMMERCIAL SUPPLIER 
 12-01-2024,People - Ageing Well,Homestead Care Service,Home Care - Private Contractors Payment,1295.52,0.00,COMMERCIAL SUPPLIER 
 12-01-2024,People - Ageing Well,Homestead Care Service,Home Care - Private Contractors Payment,1327.92,0.00,COMMERCIAL SUPPLIER 
 12-01-2024,People - Ageing Well,Homestead Care Service,Home Care - Private Contractors Payment,1334.10,0.00,COMMERCIAL SUPPLIER 
 12-01-2024,People - Ageing Well,Homestead Care Service,Home Care - Private Contractors Payment,1282.78,0.00,COMMERCIAL SUPPLIER 
 12-01-2024,People - Ageing Well,Homestead Care Service,Home Care - Private Contractors Payment,1295.52,0.00,COMMERCIAL SUPPLIER 
 12-01-2024,People - Ageing Well,Homestead Care Service,Home Care - Private Contractors Payment,1296.61,0.00,COMMERCIAL SUPPLIER 
 12-01-2024,People - Ageing Well,Homestead Care Service,Home Care - Private Contractors Payment,1296.61,0.00,COMMERCIAL SUPPLIER 
 12-01-2024,People - Ageing Well,Homestead Care Service,Home Care - Private Contractors Payment,1267.49,0.00,COMMERCIAL SUPPLIER 
 12-01-2024,People - Ageing Well,Homestead Care Service,Home Care - Private Contractors Payment,1273.31,0.00,COMMERCIAL SUPPLIER 
 12-01-2024,People - Ageing Well,Homestead Care Service,Home Care - Private Contractors Payment,912.94,0.00,COMMERCIAL SUPPLIER 
 12-01-2024,People - Ageing Well,Homestead Care Service,Home Care - Private Contractors Payment,647.94,0.00,COMMERCIAL SUPPLIER 
 12-01-2024,People - Ageing Well,Homestead Care Service,Home Care - Private Contractors Payment,566.04,0.00,COMMERCIAL SUPPLIER 
 12-01-2024,People - Ageing Well,Homestead Care Service,Home Care - Private Contractors Payment,1239.46,0.00,COMMERCIAL SUPPLIER 
 12-01-2024,People - Ageing Well,Homestead Care Service,Home Care - Private Contractors Payment,1252.20,0.00,COMMERCIAL SUPPLIER 
 12-01-2024,People - Ageing Well,Homestead Care Service,Home Care - Private Contractors Payment,1332.65,0.00,COMMERCIAL SUPPLIER 
 12-01-2024,People - Ageing Well,Homestead Care Service,Home Care - Private Contractors Payment,561.31,0.00,COMMERCIAL SUPPLIER 
 12-01-2024,People - Ageing Well,Homestead Care Service,Home Care - Private Contractors Payment,567.86,0.00,COMMERCIAL SUPPLIER 
 12-01-2024,People - Ageing Well,Homestead Care Service,Home Care - Private Contractors Payment,928.23,0.00,COMMERCIAL SUPPLIER 
 12-01-2024,People - Ageing Well,Homestead Care Service,Home Care - Private Contractors Payment,939.15,0.00,COMMERCIAL SUPPLIER 
 12-01-2024,People - Ageing Well,Homestead Care Service,Home Care - Private Contractors Payment,825.22,0.00,COMMERCIAL SUPPLIER 
 12-01-2024,People - Ageing Well,Homestead Care Service,Home Care - Private Contractors Payment,706.55,0.00,COMMERCIAL SUPPLIER 
 12-01-2024,People - Ageing Well,Homestead Care Service,Home Care - Private Contractors Payment,698.54,0.00,COMMERCIAL SUPPLIER 
 12-01-2024,People - Ageing Well,Homestead Care Service,Home Care - Private Contractors Payment,1215.44,0.00,COMMERCIAL SUPPLIER 
 12-01-2024,People - Ageing Well,Homestead Care Service,Home Care - Private Contractors Payment,1232.91,0.00,COMMERCIAL SUPPLIER 
 12-01-2024,People - Ageing Well,Homestead Care Service,Home Care - Private Contractors Payment,1061.46,0.00,COMMERCIAL SUPPLIER 
 12-01-2024,People - Ageing Well,Homestead Care Service,Home Care - Private Contractors Payment,1203.06,0.00,COMMERCIAL SUPPLIER 
 12-01-2024,People - Ageing Well,Homestead Care Service,Home Care - Private Contractors Payment,1262.40,0.00,COMMERCIAL SUPPLIER 
 12-01-2024,People - Ageing Well,Homestead Care Service,Home Care - Private Contractors Payment,1263.12,0.00,COMMERCIAL SUPPLIER 
 12-01-2024,People - Ageing Well,Homestead Care Service,Home Care - Private Contractors Payment,1126.24,0.00,COMMERCIAL SUPPLIER 
 12-01-2024,People - Ageing Well,Homestead Care Service,Home Care - Private Contractors Payment,1213.98,0.00,COMMERCIAL SUPPLIER 
 12-01-2024,People - Ageing Well,Homestead Care Service,Home Care - Private Contractors Payment,1217.62,0.00,COMMERCIAL SUPPLIER 
 12-01-2024,People - Ageing Well,Homestead Care Service,Home Care - Private Contractors Payment,1543.77,0.00,COMMERCIAL SUPPLIER 
 12-01-2024,People - Ageing Well,Homestead Care Service,Home Care - Private Contractors Payment,1543.77,0.00,COMMERCIAL SUPPLIER 
 12-01-2024,People - Ageing Well,Homestead Care Service,Home Care - Private Contractors Payment,889.28,0.00,COMMERCIAL SUPPLIER 
 12-01-2024,People - Ageing Well,Homestead Care Service,Home Care - Private Contractors Payment,1040.34,0.00,COMMERCIAL SUPPLIER 
 12-01-2024,People - Ageing Well,Homestead Care Service,Home Care - Private Contractors Payment,1047.26,0.00,COMMERCIAL SUPPLIER 
 12-01-2024,People - Ageing Well,Homestead Care Service,Home Care - Private Contractors Payment,1214.71,0.00,COMMERCIAL SUPPLIER 
 12-01-2024,People - Ageing Well,Homestead Care Service,Home Care - Private Contractors Payment,906.76,0.00,COMMERCIAL SUPPLIER 
 12-01-2024,People - Ageing Well,Homestead Care Service,Home Care - Private Contractors Payment,911.85,0.00,COMMERCIAL SUPPLIER 
 12-01-2024,People - Ageing Well,Homestead Care Service,Home Care - Private Contractors Payment,912.22,0.00,COMMERCIAL SUPPLIER 
 12-01-2024,People - Ageing Well,Homestead Care Service,Home Care - Private Contractors Payment,699.27,0.00,COMMERCIAL SUPPLIER 
 12-01-2024,People - Ageing Well,Homestead Care Service,Home Care - Private Contractors Payment,618.82,0.00,COMMERCIAL SUPPLIER 
 12-01-2024,People - Ageing Well,Homestead Care Service,Home Care - Private Contractors Payment,803.38,0.00,COMMERCIAL SUPPLIER 
 12-01-2024,People - Ageing Well,Homestead Care Service,Home Care - Private Contractors Payment,803.38,0.00,COMMERCIAL SUPPLIER 
 12-01-2024,People - Ageing Well,Homestead Care Service,Home Care - Private Contractors Payment,588.61,0.00,COMMERCIAL SUPPLIER 
 12-01-2024,People - Ageing Well,Homestead Care Service,Home Care - Private Contractors Payment,588.61,0.00,COMMERCIAL SUPPLIER 
 12-01-2024,People - Ageing Well,Homestead Care Service,Home Care - Private Contractors Payment,973.00,0.00,COMMERCIAL SUPPLIER 
 12-01-2024,People - Ageing Well,Homestead Care Service,Home Care - Private Contractors Payment,1177.95,0.00,COMMERCIAL SUPPLIER 
 12-01-2024,People - Ageing Well,Homestead Care Service,Home Care - Private Contractors Payment,1189.59,0.00,COMMERCIAL SUPPLIER 
 12-01-2024,People - Ageing Well,Homestead Care Service,Home Care - Private Contractors Payment,663.23,0.00,COMMERCIAL SUPPLIER 
 12-01-2024,People - Ageing Well,Homestead Care Service,Home Care - Private Contractors Payment,1212.53,0.00,COMMERCIAL SUPPLIER 
 12-01-2024,People - Ageing Well,Homestead Care Service,Home Care - Private Contractors Payment,1223.45,0.00,COMMERCIAL SUPPLIER 
 12-01-2024,People - Ageing Well,Homestead Care Service,Home Care - Private Contractors Payment,558.40,0.00,COMMERCIAL SUPPLIER 
 12-01-2024,People - Ageing Well,Homestead Care Service,Home Care - Private Contractors Payment,637.02,0.00,COMMERCIAL SUPPLIER 
 12-01-2024,People - Ageing Well,Homestead Care Service,Home Care - Private Contractors Payment,1227.45,0.00,COMMERCIAL SUPPLIER 
 12-01-2024,People - Ageing Well,Homestead Care Service,Home Care - Private Contractors Payment,1421.84,0.00,COMMERCIAL SUPPLIER 
 12-01-2024,People - Ageing Well,Homestead Care Service,Home Care - Private Contractors Payment,1282.42,0.00,COMMERCIAL SUPPLIER 
 12-01-2024,People - Ageing Well,Homestead Care Service,Home Care - Private Contractors Payment,1343.57,0.00,COMMERCIAL SUPPLIER 
 12-01-2024,People - Ageing Well,Homestead Care Service,Home Care - Private Contractors Payment,569.32,0.00,COMMERCIAL SUPPLIER 
 12-01-2024,People - Ageing Well,Homestead Care Service,Home Care - Private Contractors Payment,1404.36,0.00,COMMERCIAL SUPPLIER 
 12-01-2024,People - Ageing Well,Homestead Care Service,Home Care - Private Contractors Payment,1030.51,0.00,COMMERCIAL SUPPLIER 
 12-01-2024,People - Ageing Well,Homestead Care Service,Home Care - Private Contractors Payment,1208.16,0.00,COMMERCIAL SUPPLIER 
 12-01-2024,People - Ageing Well,Homestead Care Service,Home Care - Private Contractors Payment,1209.25,0.00,COMMERCIAL SUPPLIER 
 12-01-2024,People - Ageing Well,Homestead Care Service,Home Care - Private Contractors Payment,892.92,0.00,COMMERCIAL SUPPLIER 
 12-01-2024,People - Ageing Well,Homestead Care Service,Home Care - Private Contractors Payment,1223.08,0.00,COMMERCIAL SUPPLIER 
 12-01-2024,People - Ageing Well,Homestead Care Service,Home Care - Private Contractors Payment,1223.08,0.00,COMMERCIAL SUPPLIER 
 12-01-2024,People - Ageing Well,Homestead Care Service,Home Care - Private Contractors Payment,1217.62,0.00,COMMERCIAL SUPPLIER 
 12-01-2024,People - Ageing Well,Homestead Care Service,Home Care - Private Contractors Payment,860.16,0.00,COMMERCIAL SUPPLIER 
 12-01-2024,People - Ageing Well,Homestead Care Service,Home Care - Private Contractors Payment,1228.54,0.00,COMMERCIAL SUPPLIER 
 12-01-2024,People - Ageing Well,Homestead Care Service,Home Care - Private Contractors Payment,1278.78,0.00,COMMERCIAL SUPPLIER 
 12-01-2024,People - Ageing Well,Homestead Care Service,Home Care - Private Contractors Payment,1268.95,0.00,COMMERCIAL SUPPLIER 
 12-01-2024,People - Ageing Well,Homestead Care Service,Home Care - Private Contractors Payment,1346.12,0.00,COMMERCIAL SUPPLIER 
 12-01-2024,People - Ageing Well,Homestead Care Service,Home Care - Private Contractors Payment,1257.66,0.00,COMMERCIAL SUPPLIER 
 12-01-2024,People - Ageing Well,Homestead Care Service,Home Care - Private Contractors Payment,1260.58,0.00,COMMERCIAL SUPPLIER 
 12-01-2024,People - Ageing Well,Homestead Care Service,Home Care - Private Contractors Payment,1225.27,0.00,COMMERCIAL SUPPLIER 
 12-01-2024,People - Ageing Well,Homestead Care Service,Home Care - Private Contractors Payment,1236.19,0.00,COMMERCIAL SUPPLIER 
 12-01-2024,People - Ageing Well,Fountains Care Centre - Bondcare,Nursing Homes - Private Contractors Payment,2856.64,0.00,COMMERCIAL SUPPLIER 
 12-01-2024,People - Ageing Well,Fountains Care Centre - Bondcare,Nursing Homes - Private Contractors Payment,3010.32,0.00,COMMERCIAL SUPPLIER 
 12-01-2024,People - Ageing Well,Fountains Care Centre - Bondcare,Nursing Homes - Private Contractors Payment,7728.00,0.00,COMMERCIAL SUPPLIER 
 12-01-2024,People - Ageing Well,Fountains Care Centre - Bondcare,Nursing Homes - Private Contractors Payment,3864.00,0.00,COMMERCIAL SUPPLIER 
 12-01-2024,People - Ageing Well,Fountains Care Centre - Bondcare,Nursing Homes - Private Contractors Payment,3010.32,0.00,COMMERCIAL SUPPLIER 
 12-01-2024,People - Ageing Well,Fountains Care Centre - Bondcare,Nursing Homes - Private Contractors Payment,3010.32,0.00,COMMERCIAL SUPPLIER 
 12-01-2024,People - Ageing Well,Fountains Care Centre - Bondcare,Nursing Homes - Private Contractors Payment,3920.00,0.00,COMMERCIAL SUPPLIER 
 12-01-2024,People - Ageing Well,Fountains Care Centre - Bondcare,Nursing Homes - Private Contractors Payment,3010.32,0.00,COMMERCIAL SUPPLIER 
 12-01-2024,People - Ageing Well,Fountains Care Centre - Bondcare,Nursing Homes - Private Contractors Payment,3010.32,0.00,COMMERCIAL SUPPLIER 
 12-01-2024,People - Ageing Well,Fountains Care Centre - Bondcare,Nursing Homes - Private Contractors Payment,3400.00,0.00,COMMERCIAL SUPPLIER 
 12-01-2024,People - Ageing Well,Fountains Care Centre - Bondcare,Nursing Homes - Private Contractors Payment,3920.00,0.00,COMMERCIAL SUPPLIER 
 12-01-2024,People - Ageing Well,Fountains Care Centre - Bondcare,Nursing Homes - Private Contractors Payment,3010.32,0.00,COMMERCIAL SUPPLIER 
 12-01-2024,People - Ageing Well,Fountains Care Centre - Bondcare,Nursing Homes - Private Contractors Payment,3010.32,0.00,COMMERCIAL SUPPLIER 
 12-01-2024,People - Ageing Well,Fountains Care Centre - Bondcare,Nursing Homes - Private Contractors Payment,1680.00,0.00,COMMERCIAL SUPPLIER 
 12-01-2024,People - Ageing Well,Fountains Care Centre - Bondcare,Nursing Homes - Private Contractors Payment,3920.00,0.00,COMMERCIAL SUPPLIER 
 12-01-2024,People - Ageing Well,Fountains Care Centre - Bondcare,Nursing Homes - Private Contractors Payment,3920.00,0.00,COMMERCIAL SUPPLIER 
 12-01-2024,People - Ageing Well,Fountains Care Centre - Bondcare,Residential Placements - Private Contractors Payment,2802.40,0.00,COMMERCIAL SUPPLIER 
 12-01-2024,People - Ageing Well,Fountains Care Centre - Bondcare,Nursing Homes - Private Contractors Payment,3528.57,0.00,COMMERCIAL SUPPLIER 
 12-01-2024,People - Ageing Well,Fountains Care Centre - Bondcare,Residential Placements - Private Contractors Payment,10488.00,0.00,COMMERCIAL SUPPLIER 
 12-01-2024,People - Ageing Well,Fountains Care Centre - Bondcare,Residential Placements - Private Contractors Payment,2802.40,0.00,COMMERCIAL SUPPLIER 
 12-01-2024,People - Ageing Well,Fountains Care Centre - Bondcare,Nursing Homes - Private Contractors Payment,3010.32,0.00,COMMERCIAL SUPPLIER 
 12-01-2024,People - Ageing Well,Fountains Care Centre - Bondcare,Nursing Homes - Private Contractors Payment,3010.32,0.00,COMMERCIAL SUPPLIER 
 12-01-2024,People - Ageing Well,Fountains Care Centre - Bondcare,Nursing Homes - Private Contractors Payment,3010.32,0.00,COMMERCIAL SUPPLIER 
 12-01-2024,People - Ageing Well,Fountains Care Centre - Bondcare,Nursing Homes - Private Contractors Payment,3010.32,0.00,COMMERCIAL SUPPLIER 
 12-01-2024,People - Ageing Well,Fountains Care Centre - Bondcare,Residential Placements - Private Contractors Payment,3085.80,0.00,COMMERCIAL SUPPLIER 
 12-01-2024,People - Ageing Well,Fountains Care Centre - Bondcare,Nursing Homes - Private Contractors Payment,3010.32,0.00,COMMERCIAL SUPPLIER 
 12-01-2024,People - Ageing Well,Fountains Care Centre - Bondcare,Nursing Homes - Private Contractors Payment,3010.32,0.00,COMMERCIAL SUPPLIER 
 12-01-2024,People - Ageing Well,Fountains Care Centre - Bondcare,Nursing Homes - Private Contractors Payment,3920.00,0.00,COMMERCIAL SUPPLIER 
 12-01-2024,People - Ageing Well,Fountains Care Centre - Bondcare,Nursing Homes - Private Contractors Payment,3920.00,0.00,COMMERCIAL SUPPLIER 
 12-01-2024,People - Ageing Well,Fountains Care Centre - Bondcare,Nursing Homes - Private Contractors Payment,5200.00,0.00,COMMERCIAL SUPPLIER 
 12-01-2024,People - Ageing Well,Fountains Care Centre - Bondcare,Residential Placements - Private Contractors Payment,12696.00,0.00,COMMERCIAL SUPPLIER 
 12-01-2024,People - Ageing Well,Fountains Care Centre - Bondcare,Nursing Homes - Private Contractors Payment,3010.32,0.00,COMMERCIAL SUPPLIER 
 12-01-2024,People - Ageing Well,Fountains Care Centre - Bondcare,Nursing Homes - Private Contractors Payment,3685.52,0.00,COMMERCIAL SUPPLIER 
 12-01-2024,People - Ageing Well,Black Swan International Ltd - Belamacanda,Residential Placements - Private Contractors Payment,4600.00,0.00,COMMERCIAL SUPPLIER 
 12-01-2024,People - Ageing Well,Black Swan International Ltd - Belamacanda,Residential Placements - Private Contractors Payment,3843.36,0.00,COMMERCIAL SUPPLIER 
 12-01-2024,People - Ageing Well,Voyage Ltd - Solar-Grange Liss,Nursing Homes - Private Contractors Payment,5721.12,0.00,COMMERCIAL SUPPLIER 
 12-01-2024,People - Ageing Well,Havering Care Homes Ltd t/a Abbscross Nursing Home,Nursing Homes - Private Contractors Payment,3010.32,0.00,COMMERCIAL SUPPLIER 
 12-01-2024,People - Ageing Well,Havering Care Homes Ltd t/a Abbscross Nursing Home,Nursing Homes - Private Contractors Payment,4809.08,0.00,COMMERCIAL SUPPLIER 
 12-01-2024,People - Ageing Well,Havering Care Homes Ltd t/a Abbscross Nursing Home,Nursing Homes - Private Contractors Payment,3010.32,0.00,COMMERCIAL SUPPLIER 
 12-01-2024,People - Ageing Well,Havering Care Homes Ltd t/a Abbscross Nursing Home,Nursing Homes - Private Contractors Payment,3010.32,0.00,COMMERCIAL SUPPLIER 
 12-01-2024,People - Ageing Well,Havering Care Homes Ltd t/a Abbscross Nursing Home,Nursing Homes - Private Contractors Payment,2856.64,0.00,COMMERCIAL SUPPLIER 
 12-01-2024,People - Ageing Well,One Tree Estates Ltd t/a Ashbrook Nursing Home,Nursing Homes - Private Contractors Payment,14784.00,0.00,COMMERCIAL SUPPLIER 
 12-01-2024,People - Ageing Well,One Tree Estates Ltd t/a Ashbrook Nursing Home,Nursing Homes - Private Contractors Payment,3800.00,0.00,COMMERCIAL SUPPLIER 
 12-01-2024,People - Ageing Well,One Tree Estates Ltd t/a Ashbrook Nursing Home,Nursing Homes - Private Contractors Payment,3259.52,0.00,COMMERCIAL SUPPLIER 
 12-01-2024,People - Ageing Well,One Tree Estates Ltd t/a Ashbrook Nursing Home,Nursing Homes - Private Contractors Payment,3694.12,0.00,COMMERCIAL SUPPLIER 
 12-01-2024,People - Ageing Well,One Tree Estates Ltd t/a Ashbrook Nursing Home,Nursing Homes - Private Contractors Payment,2736.00,0.00,COMMERCIAL SUPPLIER 
 12-01-2024,People - Ageing Well,One Tree Estates Ltd t/a Ashbrook Nursing Home,Nursing Homes - Private Contractors Payment,8870.40,0.00,COMMERCIAL SUPPLIER 
 12-01-2024,People - Ageing Well,One Tree Estates Ltd t/a Ashbrook Nursing Home,Nursing Homes - Private Contractors Payment,4800.00,0.00,COMMERCIAL SUPPLIER 
 12-01-2024,People - Ageing Well,One Tree Estates Ltd t/a Ashbrook Nursing Home,Nursing Homes - Private Contractors Payment,3604.00,0.00,COMMERCIAL SUPPLIER 
 12-01-2024,People - Ageing Well,One Tree Estates Ltd t/a Ashbrook Nursing Home,Nursing Homes - Private Contractors Payment,4600.00,0.00,COMMERCIAL SUPPLIER 
 12-01-2024,People - Ageing Well,One Tree Estates Ltd t/a Ashbrook Nursing Home,Nursing Homes - Private Contractors Payment,4457.14,0.00,COMMERCIAL SUPPLIER 
 12-01-2024,People - Ageing Well,One Tree Estates Ltd t/a Ashbrook Nursing Home,Nursing Homes - Private Contractors Payment,5200.00,0.00,COMMERCIAL SUPPLIER 
 12-01-2024,People - Ageing Well,One Tree Estates Ltd t/a Ashbrook Nursing Home,Nursing Homes - Private Contractors Payment,4600.00,0.00,COMMERCIAL SUPPLIER 
 12-01-2024,People - Ageing Well,One Tree Estates Ltd t/a Ashbrook Nursing Home,Nursing Homes - Private Contractors Payment,3600.00,0.00,COMMERCIAL SUPPLIER 
 12-01-2024,People - Ageing Well,One Tree Estates Ltd t/a Ashbrook Nursing Home,Nursing Homes - Private Contractors Payment,5512.00,0.00,COMMERCIAL SUPPLIER 
 12-01-2024,People - Ageing Well,One Tree Estates Ltd t/a Ashbrook Nursing Home,Nursing Homes - Private Contractors Payment,4000.00,0.00,COMMERCIAL SUPPLIER 
 12-01-2024,People - Ageing Well,One Tree Estates Ltd t/a Ashbrook Nursing Home,Nursing Homes - Private Contractors Payment,3010.32,0.00,COMMERCIAL SUPPLIER 
 12-01-2024,People - Ageing Well,One Tree Estates Ltd t/a Ashbrook Nursing Home,Nursing Homes - Private Contractors Payment,3298.72,0.00,COMMERCIAL SUPPLIER 
 12-01-2024,People - Ageing Well,One Tree Estates Ltd t/a Ashbrook Nursing Home,Nursing Homes - Private Contractors Payment,3392.00,0.00,COMMERCIAL SUPPLIER 
 12-01-2024,People - Ageing Well,One Tree Estates Ltd t/a Ashbrook Nursing Home,Nursing Homes - Private Contractors Payment,8064.00,0.00,COMMERCIAL SUPPLIER 
 12-01-2024,People - Ageing Well,One Tree Estates Ltd t/a Ashbrook Nursing Home,Nursing Homes - Private Contractors Payment,3010.32,0.00,COMMERCIAL SUPPLIER 
 12-01-2024,People - Ageing Well,One Tree Estates Ltd t/a Ashbrook Nursing Home,Nursing Homes - Private Contractors Payment,3243.84,0.00,COMMERCIAL SUPPLIER 
 12-01-2024,People - Ageing Well,One Tree Estates Ltd t/a Ashbrook Nursing Home,Nursing Homes - Private Contractors Payment,15456.00,0.00,COMMERCIAL SUPPLIER 
 12-01-2024,People - Ageing Well,One Tree Estates Ltd t/a Ashbrook Nursing Home,Nursing Homes - Private Contractors Payment,4800.00,0.00,COMMERCIAL SUPPLIER 
 12-01-2024,People - Ageing Well,One Tree Estates Ltd t/a Ashbrook Nursing Home,Nursing Homes - Private Contractors Payment,3816.00,0.00,COMMERCIAL SUPPLIER 
 12-01-2024,People - Ageing Well,One Tree Estates Ltd t/a Ashbrook Nursing Home,Nursing Homes - Private Contractors Payment,3010.32,0.00,COMMERCIAL SUPPLIER 
 12-01-2024,People - Ageing Well,One Tree Estates Ltd t/a Ashbrook Nursing Home,Nursing Homes - Private Contractors Payment,2400.00,0.00,COMMERCIAL SUPPLIER 
 12-01-2024,People - Ageing Well,One Tree Estates Ltd t/a Ashbrook Nursing Home,Nursing Homes - Private Contractors Payment,4285.71,0.00,COMMERCIAL SUPPLIER 
 12-01-2024,People - Ageing Well,One Tree Estates Ltd t/a Ashbrook Nursing Home,Nursing Homes - Private Contractors Payment,5000.00,0.00,COMMERCIAL SUPPLIER 
 12-01-2024,People - Ageing Well,One Tree Estates Ltd t/a Ashbrook Nursing Home,Nursing Homes - Private Contractors Payment,5000.00,0.00,COMMERCIAL SUPPLIER 
 12-01-2024,People - Ageing Well,One Tree Estates Ltd t/a Ashbrook Nursing Home,Nursing Homes - Private Contractors Payment,3125.12,0.00,COMMERCIAL SUPPLIER 
 12-01-2024,People - Ageing Well,One Tree Estates Ltd t/a Ashbrook Nursing Home,Nursing Homes - Private Contractors Payment,4452.00,0.00,COMMERCIAL SUPPLIER 
 12-01-2024,People - Ageing Well,One Tree Estates Ltd t/a Ashbrook Nursing Home,Nursing Homes - Private Contractors Payment,15456.00,0.00,COMMERCIAL SUPPLIER 
 12-01-2024,People - Ageing Well,One Tree Estates Ltd t/a Ashbrook Nursing Home,Nursing Homes - Private Contractors Payment,4400.00,0.00,COMMERCIAL SUPPLIER 
 12-01-2024,People - Ageing Well,One Tree Estates Ltd t/a Ashbrook Nursing Home,Nursing Homes - Private Contractors Payment,3259.52,0.00,COMMERCIAL SUPPLIER 
 12-01-2024,People - Ageing Well,One Tree Estates Ltd t/a Ashbrook Nursing Home,Nursing Homes - Private Contractors Payment,5649.80,0.00,COMMERCIAL SUPPLIER 
 12-01-2024,People - Ageing Well,Highfield Care Homes Ltd t/a Romford Grange Care Home,Nursing Homes - Private Contractors Payment,2794.32,0.00,COMMERCIAL SUPPLIER 
 12-01-2024,People - Ageing Well,Highfield Care Homes Ltd t/a Romford Grange Care Home,Nursing Homes - Private Contractors Payment,2794.32,0.00,COMMERCIAL SUPPLIER 
 12-01-2024,People - Ageing Well,Highfield Care Homes Ltd t/a Romford Grange Care Home,Nursing Homes - Private Contractors Payment,2794.32,0.00,COMMERCIAL SUPPLIER 
 12-01-2024,People - Ageing Well,Highfield Care Homes Ltd t/a Romford Grange Care Home,Nursing Homes - Private Contractors Payment,2794.32,0.00,COMMERCIAL SUPPLIER 
 12-01-2024,People - Ageing Well,Highfield Care Homes Ltd t/a Romford Grange Care Home,Nursing Homes - Private Contractors Payment,2794.32,0.00,COMMERCIAL SUPPLIER 
 12-01-2024,People - Ageing Well,Highfield Care Homes Ltd t/a Romford Grange Care Home,Nursing Homes - Private Contractors Payment,2794.32,0.00,COMMERCIAL SUPPLIER 
 12-01-2024,People - Ageing Well,Highfield Care Homes Ltd t/a Romford Grange Care Home,Nursing Homes - Private Contractors Payment,2794.32,0.00,COMMERCIAL SUPPLIER 
 12-01-2024,People - Ageing Well,Highfield Care Homes Ltd t/a Romford Grange Care Home,Nursing Homes - Private Contractors Payment,2794.32,0.00,COMMERCIAL SUPPLIER 
 12-01-2024,People - Ageing Well,Highfield Care Homes Ltd t/a Romford Grange Care Home,Nursing Homes - Private Contractors Payment,2794.32,0.00,COMMERCIAL SUPPLIER 
 12-01-2024,People - Ageing Well,Highfield Care Homes Ltd t/a Romford Grange Care Home,Nursing Homes - Private Contractors Payment,2794.32,0.00,COMMERCIAL SUPPLIER 
 12-01-2024,People - Ageing Well,Highfield Care Homes Ltd t/a Romford Grange Care Home,Nursing Homes - Private Contractors Payment,2794.32,0.00,COMMERCIAL SUPPLIER 
 12-01-2024,People - Ageing Well,Highfield Care Homes Ltd t/a Romford Grange Care Home,Residential Placements - Private Contractors Payment,2856.64,0.00,COMMERCIAL SUPPLIER 
 12-01-2024,People - Ageing Well,Highfield Care Homes Ltd t/a Romford Grange Care Home,Residential Placements - Private Contractors Payment,2856.64,0.00,COMMERCIAL SUPPLIER 
 12-01-2024,People - Ageing Well,Highfield Care Homes Ltd t/a Romford Grange Care Home,Residential Placements - Private Contractors Payment,2856.64,0.00,COMMERCIAL SUPPLIER 
 12-01-2024,People - Ageing Well,Highfield Care Homes Ltd t/a Romford Grange Care Home,Residential Placements - Private Contractors Payment,2856.64,0.00,COMMERCIAL SUPPLIER 
 12-01-2024,People - Ageing Well,Highfield Care Homes Ltd t/a Romford Grange Care Home,Residential Placements - Private Contractors Payment,2856.64,0.00,COMMERCIAL SUPPLIER 
 12-01-2024,People - Ageing Well,Highfield Care Homes Ltd t/a Romford Grange Care Home,Residential Placements - Private Contractors Payment,2856.64,0.00,COMMERCIAL SUPPLIER 
 12-01-2024,People - Ageing Well,Highfield Care Homes Ltd t/a Romford Grange Care Home,Residential Placements - Private Contractors Payment,2856.64,0.00,COMMERCIAL SUPPLIER 
 12-01-2024,People - Ageing Well,Highfield Care Homes Ltd t/a Romford Grange Care Home,Nursing Homes - Private Contractors Payment,2698.00,0.00,COMMERCIAL SUPPLIER 
 12-01-2024,People - Ageing Well,Highfield Care Homes Ltd t/a Romford Grange Care Home,Nursing Homes - Private Contractors Payment,3976.00,0.00,COMMERCIAL SUPPLIER 
 12-01-2024,People - Ageing Well,Highfield Care Homes Ltd t/a Romford Grange Care Home,Nursing Homes - Private Contractors Payment,2856.64,0.00,COMMERCIAL SUPPLIER 
 12-01-2024,People - Ageing Well,Highfield Care Homes Ltd t/a Romford Grange Care Home,Nursing Homes - Private Contractors Payment,2856.64,0.00,COMMERCIAL SUPPLIER 
 12-01-2024,People - Ageing Well,Highfield Care Homes Ltd t/a Romford Grange Care Home,Nursing Homes - Private Contractors Payment,2856.64,0.00,COMMERCIAL SUPPLIER 
 12-01-2024,People - Ageing Well,Highfield Care Homes Ltd t/a Romford Grange Care Home,Nursing Homes - Private Contractors Payment,3010.32,0.00,COMMERCIAL SUPPLIER 
 12-01-2024,People - Ageing Well,Highfield Care Homes Ltd t/a Romford Grange Care Home,Residential Placements - Private Contractors Payment,2802.40,0.00,COMMERCIAL SUPPLIER 
 12-01-2024,People - Ageing Well,Highfield Care Homes Ltd t/a Romford Grange Care Home,Nursing Homes - Private Contractors Payment,3010.32,0.00,COMMERCIAL SUPPLIER 
 12-01-2024,People - Ageing Well,Highfield Care Homes Ltd t/a Romford Grange Care Home,Nursing Homes - Private Contractors Payment,3010.32,0.00,COMMERCIAL SUPPLIER 
 12-01-2024,People - Ageing Well,Highfield Care Homes Ltd t/a Romford Grange Care Home,Nursing Homes - Private Contractors Payment,2856.64,0.00,COMMERCIAL SUPPLIER 
 12-01-2024,People - Ageing Well,Highfield Care Homes Ltd t/a Romford Grange Care Home,Nursing Homes - Private Contractors Payment,3010.32,0.00,COMMERCIAL SUPPLIER 
 12-01-2024,People - Ageing Well,Highfield Care Homes Ltd t/a Romford Grange Care Home,Residential Placements - Private Contractors Payment,3085.80,0.00,COMMERCIAL SUPPLIER 
 12-01-2024,People - Ageing Well,Highfield Care Homes Ltd t/a Romford Grange Care Home,Residential Placements - Private Contractors Payment,2856.64,0.00,COMMERCIAL SUPPLIER 
 12-01-2024,People - Ageing Well,Highfield Care Homes Ltd t/a Romford Grange Care Home,Residential Placements - Private Contractors Payment,2856.64,0.00,COMMERCIAL SUPPLIER 
 12-01-2024,People - Ageing Well,Highfield Care Homes Ltd t/a Romford Grange Care Home,Residential Placements - Private Contractors Payment,2856.64,0.00,COMMERCIAL SUPPLIER 
 12-01-2024,People - Ageing Well,Highfield Care Homes Ltd t/a Romford Grange Care Home,Residential Placements - Private Contractors Payment,2856.64,0.00,COMMERCIAL SUPPLIER 
 12-01-2024,People - Ageing Well,Kripa Care Ltd,Nursing Homes - Private Contractors Payment,3010.32,0.00,COMMERCIAL SUPPLIER 
 12-01-2024,People - Ageing Well,Kripa Care Ltd,Residential Placements - Private Contractors Payment,3782.88,0.00,COMMERCIAL SUPPLIER 
 12-01-2024,People - Ageing Well,Bupa Care Homes (HVC) - Havering Court,Nursing Homes - Private Contractors Payment,4252.44,0.00,COMMERCIAL SUPPLIER 
 12-01-2024,People - Ageing Well,Bupa Care Homes (HVC) - Havering Court,Nursing Homes - Private Contractors Payment,4623.72,0.00,COMMERCIAL SUPPLIER 
 12-01-2024,People - Ageing Well,Bupa Care Homes (HVC) - Havering Court,Nursing Homes - Private Contractors Payment,4553.88,0.00,COMMERCIAL SUPPLIER 
 12-01-2024,People - Ageing Well,Bupa Care Homes (HVC) - Havering Court,Nursing Homes - Private Contractors Payment,5206.80,0.00,COMMERCIAL SUPPLIER 
 12-01-2024,People - Ageing Well,Bupa Care Homes (HVC) - Havering Court,Nursing Homes - Private Contractors Payment,3661.08,0.00,COMMERCIAL SUPPLIER 
 12-01-2024,People - Ageing Well,Bupa Care Homes (HVC) - Havering Court,Nursing Homes - Private Contractors Payment,3874.00,0.00,COMMERCIAL SUPPLIER 
 12-01-2024,People - Ageing Well,Bupa Care Homes (HVC) - Havering Court,Nursing Homes - Private Contractors Payment,5300.16,0.00,COMMERCIAL SUPPLIER 
 12-01-2024,People - Ageing Well,Bupa Care Homes (HVC) - Havering Court,Nursing Homes - Private Contractors Payment,4260.68,0.00,COMMERCIAL SUPPLIER 
 12-01-2024,People - Ageing Well,Bupa Care Homes (HVC) - Havering Court,Nursing Homes - Private Contractors Payment,4201.96,0.00,COMMERCIAL SUPPLIER 
 12-01-2024,People - Ageing Well,Bupa Care Homes (HVC) - Havering Court,Nursing Homes - Private Contractors Payment,3010.32,0.00,COMMERCIAL SUPPLIER 
 12-01-2024,People - Ageing Well,2 Peel Way - Outlook Care,Supported Other Accommodation - Private Contractors Payment,2532.56,0.00,NON COMMERCIAL SUPPLIER 
 12-01-2024,People - Ageing Well,2 Peel Way - Outlook Care,Supported Other Accommodation - Private Contractors Payment,1858.68,0.00,NON COMMERCIAL SUPPLIER 
 12-01-2024,People - Ageing Well,2 Peel Way - Outlook Care,Supported Other Accommodation - Private Contractors Payment,1041.04,0.00,NON COMMERCIAL SUPPLIER 
 12-01-2024,People - Ageing Well,2 Peel Way - Outlook Care,Supported Other Accommodation - Private Contractors Payment,3298.24,0.00,NON COMMERCIAL SUPPLIER 
 12-01-2024,People - Ageing Well,2 Peel Way - Outlook Care,Supported Other Accommodation - Private Contractors Payment,3106.80,0.00,NON COMMERCIAL SUPPLIER 
 12-01-2024,People - Ageing Well,2 Peel Way - Outlook Care,Supported Other Accommodation - Private Contractors Payment,1858.20,0.00,NON COMMERCIAL SUPPLIER 
 12-01-2024,People - Ageing Well,2 Peel Way - Outlook Care,Supported Other Accommodation - Private Contractors Payment,4255.24,0.00,NON COMMERCIAL SUPPLIER 
 12-01-2024,People - Ageing Well,2 Peel Way - Outlook Care,Supported Other Accommodation - Private Contractors Payment,967.20,0.00,NON COMMERCIAL SUPPLIER 
 12-01-2024,People - Ageing Well,Outlook Care - 4 Peel Way,Supported Other Accommodation - Private Contractors Payment,3773.52,0.00,COMMERCIAL SUPPLIER 
 12-01-2024,People - Ageing Well,Outlook Care - 4 Peel Way,Supported Other Accommodation - Private Contractors Payment,1117.88,0.00,COMMERCIAL SUPPLIER 
 12-01-2024,People - Ageing Well,Outlook Care - 4 Peel Way,Supported Other Accommodation - Private Contractors Payment,1939.76,0.00,COMMERCIAL SUPPLIER 
 12-01-2024,People - Ageing Well,Outlook Care - 4 Peel Way,Supported Other Accommodation - Private Contractors Payment,991.00,0.00,COMMERCIAL SUPPLIER 
 12-01-2024,People - Ageing Well,Outlook Care - 4 Peel Way,Supported Other Accommodation - Private Contractors Payment,3553.40,0.00,COMMERCIAL SUPPLIER 
 12-01-2024,People - Ageing Well,Outlook Care - 4 Peel Way,Supported Other Accommodation - Private Contractors Payment,3090.84,0.00,COMMERCIAL SUPPLIER 
 12-01-2024,People - Ageing Well,Outlook Care - 4 Peel Way,Supported Other Accommodation - Private Contractors Payment,1696.48,0.00,COMMERCIAL SUPPLIER 
 12-01-2024,People - Ageing Well,Outlook Care - 4 Peel Way,Supported Other Accommodation - Private Contractors Payment,1939.76,0.00,COMMERCIAL SUPPLIER 
 12-01-2024,People - Ageing Well,Outlook Care - 4 Peel Way,Supported Other Accommodation - Private Contractors Payment,1857.40,0.00,COMMERCIAL SUPPLIER 
 12-01-2024,People - Ageing Well,The Avenues Trust - 6 Peel Way,Residential Placements - Private Contractors Payment,6584.60,0.00,COMMERCIAL SUPPLIER 
 12-01-2024,People - Ageing Well,The Avenues Trust - 6 Peel Way,Residential Placements - Private Contractors Payment,6584.60,0.00,COMMERCIAL SUPPLIER 
 12-01-2024,People - Ageing Well,The Avenues Trust - 6 Peel Way,Residential Placements - Private Contractors Payment,6584.60,0.00,COMMERCIAL SUPPLIER 
 12-01-2024,People - Ageing Well,The Avenues Trust - 6 Peel Way,Residential Placements - Private Contractors Payment,6584.60,0.00,COMMERCIAL SUPPLIER 
 12-01-2024,People - Ageing Well,Voyage Ltd - Solar Care Melbreck,Nursing Homes - Private Contractors Payment,4536.24,0.00,COMMERCIAL SUPPLIER 
 12-01-2024,People - Ageing Well,Fitzroy Support,Residential Placements - Private Contractors Payment,5746.04,0.00,COMMERCIAL SUPPLIER 
 12-01-2024,People - Ageing Well,St Michaels Homes Ltd,Residential Placements - Private Contractors Payment,3940.00,0.00,COMMERCIAL SUPPLIER 
 12-01-2024,People - Ageing Well,St Michaels Homes Ltd,Residential Placements - Private Contractors Payment,3085.80,0.00,COMMERCIAL SUPPLIER 
 12-01-2024,People - Ageing Well,St Michaels Homes Ltd,Residential Placements - Private Contractors Payment,3085.80,0.00,COMMERCIAL SUPPLIER 
 12-01-2024,People - Ageing Well,Bupa Care Homes - Hutton Village,Nursing Homes - Private Contractors Payment,3010.32,0.00,COMMERCIAL SUPPLIER 
 12-01-2024,People - Ageing Well,Havering Care Homes Ltd t/a Upminster Nursing Home,Nursing Homes - Private Contractors Payment,3010.32,0.00,COMMERCIAL SUPPLIER 
 12-01-2024,People - Ageing Well,Havering Care Homes Ltd t/a Upminster Nursing Home,Nursing Homes - Private Contractors Payment,2856.64,0.00,COMMERCIAL SUPPLIER 
 12-01-2024,People - Ageing Well,Havering Care Homes Ltd t/a Upminster Nursing Home,Nursing Homes - Private Contractors Payment,3010.32,0.00,COMMERCIAL SUPPLIER 
 12-01-2024,People - Ageing Well,Havering Care Homes Ltd t/a Upminster Nursing Home,Residential Placements - Private Contractors Payment,3085.80,0.00,COMMERCIAL SUPPLIER 
 12-01-2024,People - Ageing Well,Havering Care Homes Ltd t/a Upminster Nursing Home,Nursing Homes - Private Contractors Payment,4134.00,0.00,COMMERCIAL SUPPLIER 
 12-01-2024,People - Ageing Well,Havering Care Homes Ltd t/a Upminster Nursing Home,Nursing Homes - Private Contractors Payment,3132.00,0.00,COMMERCIAL SUPPLIER 
 12-01-2024,People - Ageing Well,Havering Care Homes Ltd t/a Upminster Nursing Home,Nursing Homes - Private Contractors Payment,2856.64,0.00,COMMERCIAL SUPPLIER 
 12-01-2024,People - Ageing Well,Havering Care Homes Ltd t/a Upminster Nursing Home,Nursing Homes - Private Contractors Payment,2856.64,0.00,COMMERCIAL SUPPLIER 
 12-01-2024,People - Ageing Well,Havering Care Homes Ltd t/a Upminster Nursing Home,Nursing Homes - Private Contractors Payment,3010.32,0.00,COMMERCIAL SUPPLIER 
 12-01-2024,People - Ageing Well,Havering Care Homes Ltd t/a Upminster Nursing Home,Nursing Homes - Private Contractors Payment,593.87,0.00,COMMERCIAL SUPPLIER 
 12-01-2024,People - Ageing Well,Havering Care Homes Ltd t/a Upminster Nursing Home,Nursing Homes - Private Contractors Payment,3010.32,0.00,COMMERCIAL SUPPLIER 
 12-01-2024,People - Ageing Well,Essex Care Consortium Ltd_a,Residential Placements - Private Contractors Payment,4759.24,0.00,COMMERCIAL SUPPLIER 
 12-01-2024,People - Ageing Well,Mundy House,Residential Placements - Private Contractors Payment,2734.64,0.00,COMMERCIAL SUPPLIER 
 12-01-2024,People - Ageing Well,Mundy House,Residential Placements - Private Contractors Payment,3085.80,0.00,COMMERCIAL SUPPLIER 
 12-01-2024,People - Ageing Well,St Michaels Homes Ltd,Residential Placements - Private Contractors Payment,4400.00,0.00,COMMERCIAL SUPPLIER 
 12-01-2024,People - Ageing Well,St Michaels Homes Ltd,Residential Placements - Private Contractors Payment,4560.00,0.00,COMMERCIAL SUPPLIER 
 12-01-2024,People - Ageing Well,Lukka Care Homes Ltd - Ravenscourt,Nursing Homes - Private Contractors Payment,4320.00,0.00,COMMERCIAL SUPPLIER 
 12-01-2024,People - Ageing Well,Lukka Care Homes Ltd - Ravenscourt,Nursing Homes - Private Contractors Payment,4399.88,0.00,COMMERCIAL SUPPLIER 
 12-01-2024,People - Ageing Well,Lukka Care Homes Ltd - Ravenscourt,Nursing Homes - Private Contractors Payment,4000.00,0.00,COMMERCIAL SUPPLIER 
 12-01-2024,People - Ageing Well,Lukka Care Homes Ltd - Ravenscourt,Nursing Homes - Private Contractors Payment,3428.57,0.00,COMMERCIAL SUPPLIER 
 12-01-2024,People - Ageing Well,Lukka Care Homes Ltd - Ravenscourt,Nursing Homes - Private Contractors Payment,3530.68,0.00,COMMERCIAL SUPPLIER 
 12-01-2024,People - Ageing Well,Lukka Care Homes Ltd - Ravenscourt,Nursing Homes - Private Contractors Payment,4000.00,0.00,COMMERCIAL SUPPLIER 
 12-01-2024,People - Ageing Well,Lukka Care Homes Ltd - Ravenscourt,Nursing Homes - Private Contractors Payment,3010.32,0.00,COMMERCIAL SUPPLIER 
 12-01-2024,People - Ageing Well,Lukka Care Homes Ltd - Ravenscourt,Nursing Homes - Private Contractors Payment,3800.00,0.00,COMMERCIAL SUPPLIER 
 12-01-2024,People - Ageing Well,Lukka Care Homes Ltd - Ravenscourt,Nursing Homes - Private Contractors Payment,3800.00,0.00,COMMERCIAL SUPPLIER 
 12-01-2024,People - Ageing Well,Lukka Care Homes Ltd - Ravenscourt,Nursing Homes - Private Contractors Payment,3125.12,0.00,COMMERCIAL SUPPLIER 
 12-01-2024,People - Ageing Well,Lukka Care Homes Ltd - Ravenscourt,Nursing Homes - Private Contractors Payment,4028.00,0.00,COMMERCIAL SUPPLIER 
 12-01-2024,People - Ageing Well,Lukka Care Homes Ltd - Ravenscourt,Nursing Homes - Private Contractors Payment,3800.00,0.00,COMMERCIAL SUPPLIER 
 12-01-2024,People - Ageing Well,Lukka Care Homes Ltd - Ravenscourt,Nursing Homes - Private Contractors Payment,4000.00,0.00,COMMERCIAL SUPPLIER 
 12-01-2024,People - Ageing Well,Lukka Care Homes Ltd - Ravenscourt,Nursing Homes - Private Contractors Payment,5319.52,0.00,COMMERCIAL SUPPLIER 
 12-01-2024,People - Ageing Well,Lukka Care Homes Ltd - Ravenscourt,Nursing Homes - Private Contractors Payment,4000.00,0.00,COMMERCIAL SUPPLIER 
 12-01-2024,People - Ageing Well,Lukka Care Homes Ltd - Ravenscourt,Nursing Homes - Private Contractors Payment,3600.00,0.00,COMMERCIAL SUPPLIER 
 12-01-2024,People - Ageing Well,Lukka Care Homes Ltd - Ravenscourt,Nursing Homes - Private Contractors Payment,4000.00,0.00,COMMERCIAL SUPPLIER 
 12-01-2024,People - Ageing Well,Barchester Healthcare Ltd - Park View Care Home,Nursing Homes - Private Contractors Payment,4527.44,0.00,COMMERCIAL SUPPLIER 
 12-01-2024,People - Ageing Well,Barchester Healthcare Ltd - Park View Care Home,Nursing Homes - Private Contractors Payment,4725.88,0.00,COMMERCIAL SUPPLIER 
 12-01-2024,People - Ageing Well,Barchester Healthcare Ltd - Park View Care Home,Nursing Homes - Private Contractors Payment,4527.44,0.00,COMMERCIAL SUPPLIER 
 12-01-2024,People - Ageing Well,Barchester Healthcare Ltd - Park View Care Home,Nursing Homes - Private Contractors Payment,4482.92,0.00,COMMERCIAL SUPPLIER 
 12-01-2024,People - Ageing Well,Barchester Healthcare Ltd - Park View Care Home,Nursing Homes - Private Contractors Payment,4134.00,0.00,COMMERCIAL SUPPLIER 
 12-01-2024,People - Ageing Well,Barchester Healthcare Ltd - Park View Care Home,Nursing Homes - Private Contractors Payment,3921.16,0.00,COMMERCIAL SUPPLIER 
 12-01-2024,People - Ageing Well,Barchester Healthcare Ltd - Park View Care Home,Residential Placements - Private Contractors Payment,5270.32,0.00,COMMERCIAL SUPPLIER 
 12-01-2024,People - Ageing Well,Barchester Healthcare Ltd - Park View Care Home,Nursing Homes - Private Contractors Payment,3125.12,0.00,COMMERCIAL SUPPLIER 
 12-01-2024,People - Ageing Well,Barchester Healthcare Ltd - Park View Care Home,Nursing Homes - Private Contractors Payment,5988.96,0.00,COMMERCIAL SUPPLIER 
 12-01-2024,People - Ageing Well,Barchester Healthcare Ltd - Park View Care Home,Nursing Homes - Private Contractors Payment,4122.00,0.00,COMMERCIAL SUPPLIER 
 12-01-2024,People - Ageing Well,Barchester Healthcare Ltd - Park View Care Home,Nursing Homes - Private Contractors Payment,4060.92,0.00,COMMERCIAL SUPPLIER 
 12-01-2024,People - Ageing Well,Barchester Healthcare Ltd - Park View Care Home,Residential Placements - Private Contractors Payment,3085.80,0.00,COMMERCIAL SUPPLIER 
 12-01-2024,People - Ageing Well,Barchester Healthcare Ltd - Park View Care Home,Residential Placements - Private Contractors Payment,5400.00,0.00,COMMERCIAL SUPPLIER 
 12-01-2024,People - Ageing Well,Westminster Health Care Ltd Derham House,Nursing Homes - Private Contractors Payment,6113.16,0.00,COMMERCIAL SUPPLIER 
 12-01-2024,People - Ageing Well,Westminster Health Care Ltd Derham House,Residential Placements - Private Contractors Payment,5592.00,0.00,COMMERCIAL SUPPLIER 
 12-01-2024,People - Ageing Well,Westminster Health Care Ltd Derham House,Residential Placements - Private Contractors Payment,6162.64,0.00,COMMERCIAL SUPPLIER 
 12-01-2024,People - Ageing Well,Westminster Health Care Ltd Derham House,Nursing Homes - Private Contractors Payment,6152.28,0.00,COMMERCIAL SUPPLIER 
 12-01-2024,People - Ageing Well,Westminster Health Care Ltd Derham House,Nursing Homes - Private Contractors Payment,5800.00,0.00,COMMERCIAL SUPPLIER 
 12-01-2024,People - Ageing Well,Westminster Health Care Ltd Derham House,Nursing Homes - Private Contractors Payment,6992.00,0.00,COMMERCIAL SUPPLIER 
 12-01-2024,People - Ageing Well,Westminster Health Care Ltd Derham House,Nursing Homes - Private Contractors Payment,4198.56,0.00,COMMERCIAL SUPPLIER 
 12-01-2024,People - Ageing Well,Westminster Health Care Ltd Derham House,Residential Placements - Private Contractors Payment,6360.00,0.00,COMMERCIAL SUPPLIER 
 12-01-2024,People - Ageing Well,Westminster Health Care Ltd Derham House,Nursing Homes - Private Contractors Payment,6152.28,0.00,COMMERCIAL SUPPLIER 
 12-01-2024,People - Ageing Well,Westminster Health Care Ltd Derham House,Nursing Homes - Private Contractors Payment,6989.04,0.00,COMMERCIAL SUPPLIER 
 12-01-2024,People - Ageing Well,Westminster Health Care Ltd Derham House,Nursing Homes - Private Contractors Payment,3010.32,0.00,COMMERCIAL SUPPLIER 
 12-01-2024,People - Ageing Well,Westminster Health Care Ltd Derham House,Nursing Homes - Private Contractors Payment,3010.32,0.00,COMMERCIAL SUPPLIER 
 12-01-2024,People - Ageing Well,Westminster Health Care Ltd Derham House,Nursing Homes - Private Contractors Payment,3010.32,0.00,COMMERCIAL SUPPLIER 
 12-01-2024,People - Ageing Well,Westminster Health Care Ltd Derham House,Nursing Homes - Private Contractors Payment,3010.32,0.00,COMMERCIAL SUPPLIER 
 12-01-2024,People - Ageing Well,Westminster Health Care Ltd Derham House,Nursing Homes - Private Contractors Payment,3010.32,0.00,COMMERCIAL SUPPLIER 
 12-01-2024,People - Ageing Well,Westminster Health Care Ltd Derham House,Nursing Homes - Private Contractors Payment,3010.32,0.00,COMMERCIAL SUPPLIER 
 12-01-2024,People - Ageing Well,Westminster Health Care Ltd Derham House,Residential Placements - Private Contractors Payment,6084.00,0.00,COMMERCIAL SUPPLIER 
 12-01-2024,People - Ageing Well,Westminster Health Care Ltd Derham House,Nursing Homes - Private Contractors Payment,6499.92,0.00,COMMERCIAL SUPPLIER 
 12-01-2024,People - Ageing Well,Westminster Health Care Ltd Derham House,Nursing Homes - Private Contractors Payment,3010.32,0.00,COMMERCIAL SUPPLIER 
 12-01-2024,People - Ageing Well,Westminster Health Care Ltd Derham House,Nursing Homes - Private Contractors Payment,3010.32,0.00,COMMERCIAL SUPPLIER 
 12-01-2024,People - Ageing Well,Westminster Health Care Ltd Derham House,Nursing Homes - Private Contractors Payment,3010.32,0.00,COMMERCIAL SUPPLIER 
 12-01-2024,People - Ageing Well,Westminster Health Care Ltd Derham House,Nursing Homes - Private Contractors Payment,3010.32,0.00,COMMERCIAL SUPPLIER 
 12-01-2024,People - Ageing Well,Westminster Health Care Ltd Derham House,Nursing Homes - Private Contractors Payment,3010.32,0.00,COMMERCIAL SUPPLIER 
 12-01-2024,People - Ageing Well,Gable Court Nursing Home Ltd,Nursing Homes - Private Contractors Payment,4800.00,0.00,COMMERCIAL SUPPLIER 
 12-01-2024,People - Ageing Well,Gable Court Nursing Home Ltd,Nursing Homes - Private Contractors Payment,4800.00,0.00,COMMERCIAL SUPPLIER 
 12-01-2024,People - Ageing Well,Gable Court Nursing Home Ltd,Nursing Homes - Private Contractors Payment,2057.14,0.00,COMMERCIAL SUPPLIER 
 12-01-2024,People - Ageing Well,HC-One Oval Ltd - The Hornchurch Nursing Centre,Residential Placements - Private Contractors Payment,3085.80,0.00,COMMERCIAL SUPPLIER 
 12-01-2024,People - Ageing Well,HC-One Oval Ltd - The Hornchurch Nursing Centre,Residential Placements - Private Contractors Payment,3085.80,0.00,COMMERCIAL SUPPLIER 
 12-01-2024,People - Ageing Well,HC-One Oval Ltd - The Hornchurch Nursing Centre,Residential Placements - Private Contractors Payment,3085.80,0.00,COMMERCIAL SUPPLIER 
 12-01-2024,People - Ageing Well,HC-One Oval Ltd - The Hornchurch Nursing Centre,Residential Placements - Private Contractors Payment,3085.80,0.00,COMMERCIAL SUPPLIER 
 12-01-2024,People - Ageing Well,HC-One Oval Ltd - The Hornchurch Nursing Centre,Residential Placements - Private Contractors Payment,3085.80,0.00,COMMERCIAL SUPPLIER 
 12-01-2024,People - Ageing Well,HC-One Oval Ltd - The Hornchurch Nursing Centre,Residential Placements - Private Contractors Payment,3085.80,0.00,COMMERCIAL SUPPLIER 
 12-01-2024,People - Ageing Well,HC-One Oval Ltd - The Hornchurch Nursing Centre,Residential Placements - Private Contractors Payment,3085.80,0.00,COMMERCIAL SUPPLIER 
 12-01-2024,People - Ageing Well,HC-One Oval Ltd - The Hornchurch Nursing Centre,Residential Placements - Private Contractors Payment,3085.80,0.00,COMMERCIAL SUPPLIER 
 12-01-2024,People - Ageing Well,HC-One Oval Ltd - The Hornchurch Nursing Centre,Residential Placements - Private Contractors Payment,3085.80,0.00,COMMERCIAL SUPPLIER 
 12-01-2024,People - Ageing Well,HC-One Oval Ltd - The Hornchurch Nursing Centre,Nursing Homes - Private Contractors Payment,3010.32,0.00,COMMERCIAL SUPPLIER 
 12-01-2024,People - Ageing Well,HC-One Oval Ltd - The Hornchurch Nursing Centre,Nursing Homes - Private Contractors Payment,3010.32,0.00,COMMERCIAL SUPPLIER 
 12-01-2024,People - Ageing Well,HC-One Oval Ltd - The Hornchurch Nursing Centre,Nursing Homes - Private Contractors Payment,860.09,0.00,COMMERCIAL SUPPLIER 
 12-01-2024,People - Ageing Well,HC-One Oval Ltd - The Hornchurch Nursing Centre,Nursing Homes - Private Contractors Payment,3010.32,0.00,COMMERCIAL SUPPLIER 
 12-01-2024,People - Ageing Well,HC-One Oval Ltd - The Hornchurch Nursing Centre,Residential Placements - Private Contractors Payment,3085.80,0.00,COMMERCIAL SUPPLIER 
 12-01-2024,People - Ageing Well,HC-One Oval Ltd - The Hornchurch Nursing Centre,Nursing Homes - Private Contractors Payment,3800.00,0.00,COMMERCIAL SUPPLIER 
 12-01-2024,People - Ageing Well,HC-One Oval Ltd - The Hornchurch Nursing Centre,Nursing Homes - Private Contractors Payment,3010.32,0.00,COMMERCIAL SUPPLIER 
 12-01-2024,People - Ageing Well,HC-One Oval Ltd - The Hornchurch Nursing Centre,Residential Placements - Private Contractors Payment,3085.80,0.00,COMMERCIAL SUPPLIER 
 12-01-2024,People - Ageing Well,HC-One Oval Ltd - The Hornchurch Nursing Centre,Nursing Homes - Private Contractors Payment,3010.32,0.00,COMMERCIAL SUPPLIER 
 12-01-2024,People - Ageing Well,HC-One Oval Ltd - The Hornchurch Nursing Centre,Residential Placements - Private Contractors Payment,3889.16,0.00,COMMERCIAL SUPPLIER 
 12-01-2024,People - Ageing Well,HC-One Oval Ltd - The Hornchurch Nursing Centre,Nursing Homes - Private Contractors Payment,3010.32,0.00,COMMERCIAL SUPPLIER 
 12-01-2024,People - Ageing Well,HC-One Oval Ltd - The Hornchurch Nursing Centre,Nursing Homes - Private Contractors Payment,3010.32,0.00,COMMERCIAL SUPPLIER 
 12-01-2024,People - Ageing Well,HC-One Oval Ltd - The Hornchurch Nursing Centre,Nursing Care Income,691.20,0.00,COMMERCIAL SUPPLIER 
 12-01-2024,People - Ageing Well,HC-One Oval Ltd - The Hornchurch Nursing Centre,Nursing Homes - Private Contractors Payment,5244.00,0.00,COMMERCIAL SUPPLIER 
 12-01-2024,People - Ageing Well,HC-One Oval Ltd - The Hornchurch Nursing Centre,Respite Care - Private Contractors Payment,822.29,0.00,COMMERCIAL SUPPLIER 
 12-01-2024,People - Ageing Well,HC-One Oval Ltd - The Hornchurch Nursing Centre,Respite Care - Private Contractors Payment,822.29,0.00,COMMERCIAL SUPPLIER 
 12-01-2024,People - Ageing Well,HC-One Oval Ltd - The Hornchurch Nursing Centre,Nursing Homes - Private Contractors Payment,3010.32,0.00,COMMERCIAL SUPPLIER 
 12-01-2024,People - Ageing Well,HC-One Oval Ltd - The Hornchurch Nursing Centre,Nursing Homes - Private Contractors Payment,3010.32,0.00,COMMERCIAL SUPPLIER 
 12-01-2024,People - Ageing Well,HC-One Oval Ltd - The Hornchurch Nursing Centre,Nursing Homes - Private Contractors Payment,3010.32,0.00,COMMERCIAL SUPPLIER 
 12-01-2024,People - Ageing Well,HC-One Oval Ltd - The Hornchurch Nursing Centre,Nursing Homes - Private Contractors Payment,2580.27,0.00,COMMERCIAL SUPPLIER 
 12-01-2024,People - Ageing Well,HC-One Oval Ltd - The Hornchurch Nursing Centre,Nursing Homes - Private Contractors Payment,2856.64,0.00,COMMERCIAL SUPPLIER 
 12-01-2024,People - Ageing Well,HC-One Oval Ltd - The Hornchurch Nursing Centre,Nursing Homes - Private Contractors Payment,3010.32,0.00,COMMERCIAL SUPPLIER 
 12-01-2024,People - Ageing Well,HC-One Oval Ltd - The Hornchurch Nursing Centre,Nursing Homes - Private Contractors Payment,3010.32,0.00,COMMERCIAL SUPPLIER 
 12-01-2024,People - Ageing Well,HC-One Oval Ltd - The Hornchurch Nursing Centre,Nursing Homes - Private Contractors Payment,3010.32,0.00,COMMERCIAL SUPPLIER 
 12-01-2024,People - Ageing Well,HC-One Oval Ltd - The Hornchurch Nursing Centre,Residential Placements - Private Contractors Payment,3800.00,0.00,COMMERCIAL SUPPLIER 
 12-01-2024,People - Ageing Well,HC-One Oval Ltd - The Hornchurch Nursing Centre,Nursing Homes - Private Contractors Payment,3010.32,0.00,COMMERCIAL SUPPLIER 
 12-01-2024,People - Ageing Well,HC-One Oval Ltd - The Hornchurch Nursing Centre,Residential Placements - Private Contractors Payment,3085.80,0.00,COMMERCIAL SUPPLIER 
 12-01-2024,People - Ageing Well,Bramerton Care Home - Community Homes of Intensive Care and Education Ltd,Residential Placements - Private Contractors Payment,8759.00,0.00,COMMERCIAL SUPPLIER 
 12-01-2024,People - Ageing Well,Beechcourt Care Centre - Bondcare,Nursing Homes - Private Contractors Payment,3192.00,0.00,COMMERCIAL SUPPLIER 
 12-01-2024,People - Ageing Well,Beechcourt Care Centre - Bondcare,Nursing Homes - Private Contractors Payment,3008.00,0.00,COMMERCIAL SUPPLIER 
 12-01-2024,People - Ageing Well,Beechcourt Care Centre - Bondcare,Nursing Homes - Private Contractors Payment,3800.00,0.00,COMMERCIAL SUPPLIER 
 12-01-2024,People - Ageing Well,Beechcourt Care Centre - Bondcare,Nursing Homes - Private Contractors Payment,3008.00,0.00,COMMERCIAL SUPPLIER 
 12-01-2024,People - Ageing Well,Beechcourt Care Centre - Bondcare,Nursing Homes - Private Contractors Payment,2171.43,0.00,COMMERCIAL SUPPLIER 
 12-01-2024,People - Ageing Well,Beechcourt Care Centre - Bondcare,Nursing Homes - Private Contractors Payment,3800.00,0.00,COMMERCIAL SUPPLIER 
 12-01-2024,People - Ageing Well,Beechcourt Care Centre - Bondcare,Residential Placements - Private Contractors Payment,4560.00,0.00,COMMERCIAL SUPPLIER 
 12-01-2024,People - Ageing Well,Beechcourt Care Centre - Bondcare,Nursing Homes - Private Contractors Payment,3800.00,0.00,COMMERCIAL SUPPLIER 
 12-01-2024,People - Ageing Well,Beechcourt Care Centre - Bondcare,Nursing Homes - Private Contractors Payment,3192.00,0.00,COMMERCIAL SUPPLIER 
 12-01-2024,People - Ageing Well,Beechcourt Care Centre - Bondcare,Nursing Homes - Private Contractors Payment,3192.00,0.00,COMMERCIAL SUPPLIER 
 12-01-2024,People - Ageing Well,Beechcourt Care Centre - Bondcare,Nursing Homes - Private Contractors Payment,3192.00,0.00,COMMERCIAL SUPPLIER 
 12-01-2024,People - Ageing Well,Beechcourt Care Centre - Bondcare,Nursing Homes - Private Contractors Payment,3072.00,0.00,COMMERCIAL SUPPLIER 
 12-01-2024,People - Ageing Well,Beechcourt Care Centre - Bondcare,Nursing Homes - Private Contractors Payment,3800.00,0.00,COMMERCIAL SUPPLIER 
 12-01-2024,People - Ageing Well,Beechcourt Care Centre - Bondcare,Nursing Homes - Private Contractors Payment,4560.00,0.00,COMMERCIAL SUPPLIER 
 12-01-2024,People - Ageing Well,Beechcourt Care Centre - Bondcare,Nursing Homes - Private Contractors Payment,3008.00,0.00,COMMERCIAL SUPPLIER 
 12-01-2024,People - Ageing Well,Beechcourt Care Centre - Bondcare,Residential Placements - Private Contractors Payment,2480.00,0.00,COMMERCIAL SUPPLIER 
 12-01-2024,People - Ageing Well,Beechcourt Care Centre - Bondcare,Nursing Homes - Private Contractors Payment,3192.00,0.00,COMMERCIAL SUPPLIER 
 12-01-2024,People - Ageing Well,Beechcourt Care Centre - Bondcare,Nursing Homes - Private Contractors Payment,3008.00,0.00,COMMERCIAL SUPPLIER 
 12-01-2024,People - Ageing Well,Beechcourt Care Centre - Bondcare,Nursing Homes - Private Contractors Payment,3008.00,0.00,COMMERCIAL SUPPLIER 
 12-01-2024,People - Ageing Well,Beechcourt Care Centre - Bondcare,Nursing Homes - Private Contractors Payment,3681.16,0.00,COMMERCIAL SUPPLIER 
 12-01-2024,People - Ageing Well,Beechcourt Care Centre - Bondcare,Nursing Care Income,1039.20,0.00,COMMERCIAL SUPPLIER 
 12-01-2024,People - Ageing Well,Beechcourt Care Centre - Bondcare,Nursing Homes - Private Contractors Payment,3192.00,0.00,COMMERCIAL SUPPLIER 
 12-01-2024,People - Ageing Well,Beechcourt Care Centre - Bondcare,Nursing Homes - Private Contractors Payment,3800.00,0.00,COMMERCIAL SUPPLIER 
 12-01-2024,People - Ageing Well,Beechcourt Care Centre - Bondcare,Nursing Homes - Private Contractors Payment,3192.00,0.00,COMMERCIAL SUPPLIER 
 12-01-2024,People - Ageing Well,Beechcourt Care Centre - Bondcare,Nursing Homes - Private Contractors Payment,3192.00,0.00,COMMERCIAL SUPPLIER 
 12-01-2024,People - Ageing Well,Beechcourt Care Centre - Bondcare,Nursing Homes - Private Contractors Payment,3192.00,0.00,COMMERCIAL SUPPLIER 
 12-01-2024,People - Ageing Well,Beechcourt Care Centre - Bondcare,Nursing Care Income,651.70,0.00,COMMERCIAL SUPPLIER 
 12-01-2024,People - Ageing Well,Beechcourt Care Centre - Bondcare,Nursing Homes - Private Contractors Payment,3008.00,0.00,COMMERCIAL SUPPLIER 
 12-01-2024,People - Ageing Well,Beechcourt Care Centre - Bondcare,Nursing Homes - Private Contractors Payment,4620.00,0.00,COMMERCIAL SUPPLIER 
 12-01-2024,People - Ageing Well,Bondcare (London) Ltd ,Nursing Homes - Private Contractors Payment,3010.32,0.00,COMMERCIAL SUPPLIER 
 12-01-2024,People - Ageing Well,Bondcare (London) Ltd ,Nursing Homes - Private Contractors Payment,12432.00,0.00,COMMERCIAL SUPPLIER 
 12-01-2024,People - Ageing Well,Emerson Court_a,Residential Care Income,676.88,0.00,COMMERCIAL SUPPLIER 
 12-01-2024,People - Ageing Well,Emerson Court_a,Residential Placements - Private Contractors Payment,3006.88,0.00,COMMERCIAL SUPPLIER 
 12-01-2024,People - Ageing Well,Emerson Court_a,Residential Placements - Private Contractors Payment,3672.00,0.00,COMMERCIAL SUPPLIER 
 12-01-2024,People - Ageing Well,Emerson Court_a,Residential Care Income,676.88,0.00,COMMERCIAL SUPPLIER 
 12-01-2024,People - Ageing Well,Emerson Court_a,Residential Placements - Private Contractors Payment,3895.52,0.00,COMMERCIAL SUPPLIER 
 12-01-2024,People - Ageing Well,Emerson Court_a,Residential Placements - Private Contractors Payment,3860.00,0.00,COMMERCIAL SUPPLIER 
 12-01-2024,People - Ageing Well,Emerson Court_a,Residential Placements - Private Contractors Payment,3794.80,0.00,COMMERCIAL SUPPLIER 
 12-01-2024,People - Ageing Well,Emerson Court_a,Residential Placements - Private Contractors Payment,3675.00,0.00,COMMERCIAL SUPPLIER 
 12-01-2024,People - Ageing Well,DMP Healthcare (Heatherbrook) Ltd,Nursing Homes - Private Contractors Payment,2856.00,0.00,NON COMMERCIAL SUPPLIER 
 12-01-2024,People - Ageing Well,DMP Healthcare (Heatherbrook) Ltd,Nursing Homes - Private Contractors Payment,2156.04,0.00,NON COMMERCIAL SUPPLIER 
 12-01-2024,People - Ageing Well,DMP Healthcare (Heatherbrook) Ltd,Nursing Homes - Private Contractors Payment,5712.00,0.00,NON COMMERCIAL SUPPLIER 
 12-01-2024,People - Ageing Well,DMP Healthcare (Heatherbrook) Ltd,Nursing Homes - Private Contractors Payment,2885.84,0.00,NON COMMERCIAL SUPPLIER 
 12-01-2024,People - Ageing Well,DMP Healthcare (Heatherbrook) Ltd,Nursing Homes - Private Contractors Payment,3010.32,0.00,NON COMMERCIAL SUPPLIER 
 12-01-2024,People - Ageing Well,DMP Healthcare (Heatherbrook) Ltd,Nursing Homes - Private Contractors Payment,4560.00,0.00,NON COMMERCIAL SUPPLIER 
 12-01-2024,People - Ageing Well,DMP Healthcare (Heatherbrook) Ltd,Residential Placements - Private Contractors Payment,4560.00,0.00,NON COMMERCIAL SUPPLIER 
 12-01-2024,People - Ageing Well,DMP Healthcare (Heatherbrook) Ltd,Nursing Homes - Private Contractors Payment,3010.32,0.00,NON COMMERCIAL SUPPLIER 
 12-01-2024,People - Ageing Well,DMP Healthcare (Heatherbrook) Ltd,Nursing Homes - Private Contractors Payment,3010.32,0.00,NON COMMERCIAL SUPPLIER 
 12-01-2024,People - Ageing Well,DMP Healthcare (Heatherbrook) Ltd,Nursing Homes - Private Contractors Payment,3010.32,0.00,NON COMMERCIAL SUPPLIER 
 12-01-2024,People - Ageing Well,DMP Healthcare (Heatherbrook) Ltd,Nursing Homes - Private Contractors Payment,3010.32,0.00,NON COMMERCIAL SUPPLIER 
 12-01-2024,People - Ageing Well,DMP Healthcare (Heatherbrook) Ltd,Nursing Homes - Private Contractors Payment,7200.00,0.00,NON COMMERCIAL SUPPLIER 
 12-01-2024,People - Ageing Well,DMP Healthcare (Heatherbrook) Ltd,Nursing Homes - Private Contractors Payment,4560.00,0.00,NON COMMERCIAL SUPPLIER 
 12-01-2024,People - Ageing Well,DMP Healthcare (Heatherbrook) Ltd,Nursing Homes - Private Contractors Payment,2856.64,0.00,NON COMMERCIAL SUPPLIER 
 12-01-2024,People - Ageing Well,DMP Healthcare (Heatherbrook) Ltd,Nursing Homes - Private Contractors Payment,3010.32,0.00,NON COMMERCIAL SUPPLIER 
 12-01-2024,People - Ageing Well,DMP Healthcare (Heatherbrook) Ltd,Residential Placements - Private Contractors Payment,1465.71,0.00,NON COMMERCIAL SUPPLIER 
 12-01-2024,People - Ageing Well,DMP Healthcare (Heatherbrook) Ltd,Residential Placements - Private Contractors Payment,4560.00,0.00,NON COMMERCIAL SUPPLIER 
 12-01-2024,People - Ageing Well,DMP Healthcare (Heatherbrook) Ltd,Nursing Homes - Private Contractors Payment,2768.57,0.00,NON COMMERCIAL SUPPLIER 
 12-01-2024,People - Ageing Well,DMP Healthcare (Heatherbrook) Ltd,Nursing Homes - Private Contractors Payment,4397.14,0.00,NON COMMERCIAL SUPPLIER 
 12-01-2024,People - Ageing Well,DMP Healthcare (Heatherbrook) Ltd,Residential Placements - Private Contractors Payment,3085.80,0.00,NON COMMERCIAL SUPPLIER 
 12-01-2024,People - Ageing Well,DMP Healthcare (Heatherbrook) Ltd,Nursing Homes - Private Contractors Payment,4240.00,0.00,NON COMMERCIAL SUPPLIER 
 12-01-2024,People - Ageing Well,DMP Healthcare (Heatherbrook) Ltd,Residential Placements - Private Contractors Payment,3085.80,0.00,NON COMMERCIAL SUPPLIER 
 12-01-2024,People - Ageing Well,DMP Healthcare (Heatherbrook) Ltd,Nursing Homes - Private Contractors Payment,3010.32,0.00,NON COMMERCIAL SUPPLIER 
 12-01-2024,People - Ageing Well,Sense_a,Residential Placements - Private Contractors Payment,9017.44,0.00,COMMERCIAL SUPPLIER 
 12-01-2024,People - Ageing Well,Masumin Ltd t/s Abbeleigh House,Residential Placements - Private Contractors Payment,3085.80,0.00,COMMERCIAL SUPPLIER 
 12-01-2024,People - Ageing Well,Masumin Ltd t/s Abbeleigh House,Residential Placements - Private Contractors Payment,3085.80,0.00,COMMERCIAL SUPPLIER 
 12-01-2024,People - Ageing Well,Masumin Ltd t/s Abbeleigh House,Residential Placements - Private Contractors Payment,1257.14,0.00,COMMERCIAL SUPPLIER 
 12-01-2024,People - Ageing Well,Masumin Ltd t/s Abbeleigh House,Residential Placements - Private Contractors Payment,4400.00,0.00,COMMERCIAL SUPPLIER 
 12-01-2024,People - Ageing Well,Masumin Ltd t/s Abbeleigh House,Residential Placements - Private Contractors Payment,3500.00,0.00,COMMERCIAL SUPPLIER 
 12-01-2024,People - Ageing Well,Masumin Ltd t/s Abbeleigh House,Residential Placements - Private Contractors Payment,3300.00,0.00,COMMERCIAL SUPPLIER 
 12-01-2024,People - Ageing Well,Masumin Ltd t/s Abbeleigh House,Residential Placements - Private Contractors Payment,4400.00,0.00,COMMERCIAL SUPPLIER 
 12-01-2024,People - Ageing Well,Masumin Ltd t/s Abbeleigh House,Residential Placements - Private Contractors Payment,3646.40,0.00,COMMERCIAL SUPPLIER 
 12-01-2024,People - Ageing Well,Masumin Ltd t/s Abbeleigh House,Residential Placements - Private Contractors Payment,3085.80,0.00,COMMERCIAL SUPPLIER 
 12-01-2024,People - Ageing Well,Masumin Ltd t/s Abbeleigh House,Residential Placements - Private Contractors Payment,3085.80,0.00,COMMERCIAL SUPPLIER 
 12-01-2024,People - Ageing Well,Masumin Ltd t/s Abbeleigh House,Residential Placements - Private Contractors Payment,3085.80,0.00,COMMERCIAL SUPPLIER 
 12-01-2024,People - Ageing Well,Masumin Ltd t/s Abbeleigh House,Residential Placements - Private Contractors Payment,3440.00,0.00,COMMERCIAL SUPPLIER 
 12-01-2024,People - Ageing Well,Masumin Ltd t/s Abbeleigh House,Residential Placements - Private Contractors Payment,3400.00,0.00,COMMERCIAL SUPPLIER 
 12-01-2024,People - Ageing Well,Masumin Ltd t/s Abbeleigh House,Residential Placements - Private Contractors Payment,3400.00,0.00,COMMERCIAL SUPPLIER 
 12-01-2024,People - Ageing Well,Masumin Ltd t/s Abbeleigh House,Residential Placements - Private Contractors Payment,728.57,0.00,COMMERCIAL SUPPLIER 
 12-01-2024,People - Ageing Well,Masumin Ltd t/s Abbeleigh House,Residential Placements - Private Contractors Payment,3400.00,0.00,COMMERCIAL SUPPLIER 
 12-01-2024,People - Ageing Well,Masumin Ltd t/s Abbeleigh House,Residential Placements - Private Contractors Payment,3400.00,0.00,COMMERCIAL SUPPLIER 
 12-01-2024,People - Ageing Well,Masumin Ltd t/s Abbeleigh House,Residential Placements - Private Contractors Payment,3700.00,0.00,COMMERCIAL SUPPLIER 
 12-01-2024,People - Ageing Well,Masumin Ltd t/s Abbeleigh House,Residential Placements - Private Contractors Payment,3800.00,0.00,COMMERCIAL SUPPLIER 
 12-01-2024,People - Ageing Well,Masumin Ltd t/s Abbeleigh House,Residential Placements - Private Contractors Payment,3085.80,0.00,COMMERCIAL SUPPLIER 
 12-01-2024,People - Ageing Well,Masumin Ltd t/s Abbeleigh House,Residential Placements - Private Contractors Payment,3800.00,0.00,COMMERCIAL SUPPLIER 
 12-01-2024,People - Ageing Well,Masumin Ltd t/s Abbeleigh House,Residential Placements - Private Contractors Payment,3502.24,0.00,COMMERCIAL SUPPLIER 
 12-01-2024,People - Ageing Well,Masumin Ltd t/s Abbeleigh House,Residential Placements - Private Contractors Payment,3085.80,0.00,COMMERCIAL SUPPLIER 
 12-01-2024,People - Ageing Well,Masumin Ltd t/s Abbeleigh House,Residential Placements - Private Contractors Payment,3085.80,0.00,COMMERCIAL SUPPLIER 
 12-01-2024,People - Ageing Well,Masumin Ltd t/s Abbeleigh House,Residential Placements - Private Contractors Payment,3085.80,0.00,COMMERCIAL SUPPLIER 
 12-01-2024,People - Ageing Well,Masumin Ltd t/s Abbeleigh House,Residential Placements - Private Contractors Payment,3800.00,0.00,COMMERCIAL SUPPLIER 
 12-01-2024,People - Ageing Well,Masumin Ltd t/s Abbeleigh House,Residential Placements - Private Contractors Payment,3085.80,0.00,COMMERCIAL SUPPLIER 
 12-01-2024,People - Ageing Well,EC Romford Holdings Ltd,Residential Placements - Private Contractors Payment,4033.08,0.00,COMMERCIAL SUPPLIER 
 12-01-2024,People - Ageing Well,EC Romford Holdings Ltd,Residential Placements - Private Contractors Payment,4267.08,0.00,COMMERCIAL SUPPLIER 
 12-01-2024,People - Ageing Well,Clover Cottage Ltd,Residential Placements - Private Contractors Payment,2802.40,0.00,COMMERCIAL SUPPLIER 
 12-01-2024,People - Ageing Well,Clover Cottage Ltd,Residential Placements - Private Contractors Payment,4960.80,0.00,COMMERCIAL SUPPLIER 
 12-01-2024,People - Ageing Well,Clover Cottage Ltd,Residential Placements - Private Contractors Payment,2802.40,0.00,COMMERCIAL SUPPLIER 
 12-01-2024,People - Ageing Well,Clover Cottage Ltd,Residential Placements - Private Contractors Payment,2802.40,0.00,COMMERCIAL SUPPLIER 
 12-01-2024,People - Ageing Well,Clover Cottage Ltd,Residential Placements - Private Contractors Payment,3085.80,0.00,COMMERCIAL SUPPLIER 
 12-01-2024,People - Ageing Well,Clover Cottage Ltd,Residential Placements - Private Contractors Payment,4960.80,0.00,COMMERCIAL SUPPLIER 
 12-01-2024,People - Ageing Well,Clover Cottage Ltd,Residential Placements - Private Contractors Payment,3085.80,0.00,COMMERCIAL SUPPLIER 
 12-01-2024,People - Ageing Well,Clover Cottage Ltd,Residential Placements - Private Contractors Payment,3085.80,0.00,COMMERCIAL SUPPLIER 
 12-01-2024,People - Ageing Well,Ebury Court_a,Residential Placements - Private Contractors Payment,5084.64,0.00,COMMERCIAL SUPPLIER 
 12-01-2024,People - Ageing Well,Ebury Court_a,Residential Placements - Private Contractors Payment,3085.80,0.00,COMMERCIAL SUPPLIER 
 12-01-2024,People - Ageing Well,Ebury Court_a,Residential Placements - Private Contractors Payment,3085.80,0.00,COMMERCIAL SUPPLIER 
 12-01-2024,People - Ageing Well,Ebury Court_a,Residential Placements - Private Contractors Payment,4808.16,0.00,COMMERCIAL SUPPLIER 
 12-01-2024,People - Ageing Well,Ebury Court_a,Residential Placements - Private Contractors Payment,3085.80,0.00,COMMERCIAL SUPPLIER 
 12-01-2024,People - Ageing Well,Ebury Court_a,Residential Placements - Private Contractors Payment,4853.52,0.00,COMMERCIAL SUPPLIER 
 12-01-2024,People - Ageing Well,Ebury Court_a,Residential Placements - Private Contractors Payment,4853.52,0.00,COMMERCIAL SUPPLIER 
 12-01-2024,People - Ageing Well,Ebury Court_a,Residential Placements - Private Contractors Payment,2080.08,0.00,COMMERCIAL SUPPLIER 
 12-01-2024,People - Ageing Well,Ebury Court_a,Residential Placements - Private Contractors Payment,5800.00,0.00,COMMERCIAL SUPPLIER 
 12-01-2024,People - Ageing Well,Ebury Court_a,Residential Placements - Private Contractors Payment,4800.00,0.00,COMMERCIAL SUPPLIER 
 12-01-2024,People - Ageing Well,May Residential Homes Ltd,Residential Placements - Private Contractors Payment,3085.80,0.00,COMMERCIAL SUPPLIER 
 12-01-2024,People - Ageing Well,May Residential Homes Ltd,Residential Placements - Private Contractors Payment,3780.00,0.00,COMMERCIAL SUPPLIER 
 12-01-2024,People - Ageing Well,May Residential Homes Ltd,Respite Care - Private Contractors Payment,3780.00,0.00,COMMERCIAL SUPPLIER 
 12-01-2024,People - Ageing Well,May Residential Homes Ltd,Respite Care - Private Contractors Payment,3510.00,0.00,COMMERCIAL SUPPLIER 
 12-01-2024,People - Ageing Well,May Residential Homes Ltd,Respite Care - Private Contractors Payment,3780.00,0.00,COMMERCIAL SUPPLIER 
 12-01-2024,People - Ageing Well,May Residential Homes Ltd,Respite Care - Private Contractors Payment,3780.00,0.00,COMMERCIAL SUPPLIER 
 12-01-2024,People - Ageing Well,May Residential Homes Ltd,Residential Placements - Private Contractors Payment,3932.28,0.00,COMMERCIAL SUPPLIER 
 12-01-2024,People - Ageing Well,May Residential Homes Ltd,Residential Placements - Private Contractors Payment,3948.00,0.00,COMMERCIAL SUPPLIER 
 12-01-2024,People - Ageing Well,May Residential Homes Ltd,Residential Placements - Private Contractors Payment,3908.00,0.00,COMMERCIAL SUPPLIER 
 12-01-2024,People - Ageing Well,May Residential Homes Ltd,Residential Placements - Private Contractors Payment,3085.80,0.00,COMMERCIAL SUPPLIER 
 12-01-2024,People - Ageing Well,May Residential Homes Ltd,Respite Care - Private Contractors Payment,2295.00,0.00,COMMERCIAL SUPPLIER 
 12-01-2024,People - Ageing Well,May Residential Homes Ltd,Respite Care - Private Contractors Payment,3780.00,0.00,COMMERCIAL SUPPLIER 
 12-01-2024,People - Ageing Well,May Residential Homes Ltd,Respite Care - Private Contractors Payment,3780.00,0.00,COMMERCIAL SUPPLIER 
 12-01-2024,People - Ageing Well,EC Romford Holdings Ltd,Residential Placements - Private Contractors Payment,4186.24,0.00,COMMERCIAL SUPPLIER 
 12-01-2024,People - Ageing Well,EC Romford Holdings Ltd,Respite Care - Private Contractors Payment,1542.90,0.00,COMMERCIAL SUPPLIER 
 12-01-2024,People - Ageing Well,Lodge Group Care UK Ltd,Supported Other Accommodation - Private Contractors Payment,9325.24,0.00,COMMERCIAL SUPPLIER 
 12-01-2024,People - Ageing Well,Lodge Group Care UK Ltd,Supported Other Accommodation - Private Contractors Payment,9017.04,0.00,COMMERCIAL SUPPLIER 
 12-01-2024,People - Ageing Well,Lodge Group Care UK Ltd,Supported Other Accommodation - Private Contractors Payment,9619.72,0.00,COMMERCIAL SUPPLIER 
 12-01-2024,People - Ageing Well,Lodge Group Care UK Ltd,Supported Other Accommodation - Private Contractors Payment,9325.24,0.00,COMMERCIAL SUPPLIER 
 12-01-2024,People - Ageing Well,Langley House,Residential Placements - Private Contractors Payment,3085.80,0.00,COMMERCIAL SUPPLIER 
 12-01-2024,People - Ageing Well,Langley House,Residential Placements - Private Contractors Payment,2802.40,0.00,COMMERCIAL SUPPLIER 
 12-01-2024,People - Ageing Well,Langley House,Residential Placements - Private Contractors Payment,3400.00,0.00,COMMERCIAL SUPPLIER 
 12-01-2024,People - Ageing Well,Langley House,Residential Placements - Private Contractors Payment,3085.80,0.00,COMMERCIAL SUPPLIER 
 12-01-2024,People - Ageing Well,Langley House,Residential Placements - Private Contractors Payment,3604.00,0.00,COMMERCIAL SUPPLIER 
 12-01-2024,People - Ageing Well,Langley House,Residential Placements - Private Contractors Payment,3214.29,0.00,COMMERCIAL SUPPLIER 
 12-01-2024,People - Ageing Well,Langley House,Residential Placements - Private Contractors Payment,3600.00,0.00,COMMERCIAL SUPPLIER 
 12-01-2024,People - Ageing Well,Langley House,Residential Placements - Private Contractors Payment,2828.57,0.00,COMMERCIAL SUPPLIER 
 12-01-2024,People - Ageing Well,Langley House,Residential Placements - Private Contractors Payment,3600.00,0.00,COMMERCIAL SUPPLIER 
 12-01-2024,People - Ageing Well,Langley House,Residential Placements - Private Contractors Payment,3085.80,0.00,COMMERCIAL SUPPLIER 
 12-01-2024,People - Ageing Well,Langley House,Residential Placements - Private Contractors Payment,3400.00,0.00,COMMERCIAL SUPPLIER 
 12-01-2024,People - Ageing Well,Langley House,Residential Placements - Private Contractors Payment,3085.80,0.00,COMMERCIAL SUPPLIER 
 12-01-2024,People - Ageing Well,Langley House,Residential Placements - Private Contractors Payment,3085.80,0.00,COMMERCIAL SUPPLIER 
 12-01-2024,People - Ageing Well,Langley House,Residential Placements - Private Contractors Payment,2828.57,0.00,COMMERCIAL SUPPLIER 
 12-01-2024,People - Ageing Well,Langley House,Residential Placements - Private Contractors Payment,3085.80,0.00,COMMERCIAL SUPPLIER 
 12-01-2024,People - Ageing Well,Langley House,Residential Placements - Private Contractors Payment,3342.86,0.00,COMMERCIAL SUPPLIER 
 12-01-2024,People - Ageing Well,Langley House,Residential Placements - Private Contractors Payment,3400.00,0.00,COMMERCIAL SUPPLIER 
 12-01-2024,People - Ageing Well,Langley House,Residential Placements - Private Contractors Payment,3085.80,0.00,COMMERCIAL SUPPLIER 
 12-01-2024,People - Ageing Well,Langley House,Residential Placements - Private Contractors Payment,2802.40,0.00,COMMERCIAL SUPPLIER 
 12-01-2024,People - Ageing Well,Little Gaynes,Residential Placements - Private Contractors Payment,3703.56,0.00,COMMERCIAL SUPPLIER 
 12-01-2024,People - Ageing Well,Little Gaynes,Residential Placements - Private Contractors Payment,3085.80,0.00,COMMERCIAL SUPPLIER 
 12-01-2024,People - Ageing Well,Little Gaynes,Residential Placements - Private Contractors Payment,3731.20,0.00,COMMERCIAL SUPPLIER 
 12-01-2024,People - Ageing Well,Little Gaynes,Residential Placements - Private Contractors Payment,4200.00,0.00,COMMERCIAL SUPPLIER 
 12-01-2024,People - Ageing Well,Little Gaynes,Residential Placements - Private Contractors Payment,5400.00,0.00,COMMERCIAL SUPPLIER 
 12-01-2024,People - Ageing Well,Moreland House_a,Nursing Homes - Private Contractors Payment,3010.32,0.00,COMMERCIAL SUPPLIER 
 12-01-2024,People - Ageing Well,Moreland House_a,Nursing Homes - Private Contractors Payment,4560.00,0.00,COMMERCIAL SUPPLIER 
 12-01-2024,People - Ageing Well,Moreland House_a,Nursing Homes - Private Contractors Payment,3237.08,0.00,COMMERCIAL SUPPLIER 
 12-01-2024,People - Ageing Well,Moreland House_a,Nursing Homes - Private Contractors Payment,3010.32,0.00,COMMERCIAL SUPPLIER 
 12-01-2024,People - Ageing Well,Moreland House_a,Nursing Homes - Private Contractors Payment,3010.32,0.00,COMMERCIAL SUPPLIER 
 12-01-2024,People - Ageing Well,Moreland House_a,Nursing Homes - Private Contractors Payment,2400.00,0.00,COMMERCIAL SUPPLIER 
 12-01-2024,People - Ageing Well,Moreland House_a,Nursing Homes - Private Contractors Payment,3010.32,0.00,COMMERCIAL SUPPLIER 
 12-01-2024,People - Ageing Well,Moreland House_a,Residential Placements - Private Contractors Payment,4134.00,0.00,COMMERCIAL SUPPLIER 
 12-01-2024,People - Ageing Well,Moreland House_a,Nursing Homes - Private Contractors Payment,4560.00,0.00,COMMERCIAL SUPPLIER 
 12-01-2024,People - Ageing Well,Moreland House_a,Nursing Homes - Private Contractors Payment,3010.32,0.00,COMMERCIAL SUPPLIER 
 12-01-2024,People - Ageing Well,Moreland House_a,Nursing Homes - Private Contractors Payment,3010.32,0.00,COMMERCIAL SUPPLIER 
 12-01-2024,People - Ageing Well,Moreland House_a,Nursing Homes - Private Contractors Payment,4560.00,0.00,COMMERCIAL SUPPLIER 
 12-01-2024,People - Ageing Well,Moreland House_a,Nursing Homes - Private Contractors Payment,4480.00,0.00,COMMERCIAL SUPPLIER 
 12-01-2024,People - Ageing Well,Moreland House_a,Nursing Homes - Private Contractors Payment,7680.00,0.00,COMMERCIAL SUPPLIER 
 12-01-2024,People - Ageing Well,Moreland House_a,Nursing Homes - Private Contractors Payment,2880.00,0.00,COMMERCIAL SUPPLIER 
 12-01-2024,People - Ageing Well,Moreland House_a,Nursing Homes - Private Contractors Payment,10560.00,0.00,COMMERCIAL SUPPLIER 
 12-01-2024,People - Ageing Well,Nightingale Residential Care Home Ltd,Residential Placements - Private Contractors Payment,3816.00,0.00,COMMERCIAL SUPPLIER 
 12-01-2024,People - Ageing Well,Nightingale Residential Care Home Ltd,Residential Placements - Private Contractors Payment,3816.00,0.00,COMMERCIAL SUPPLIER 
 12-01-2024,People - Ageing Well,Nightingale Residential Care Home Ltd,Residential Placements - Private Contractors Payment,4240.00,0.00,COMMERCIAL SUPPLIER 
 12-01-2024,People - Ageing Well,Nightingale Residential Care Home Ltd,Residential Placements - Private Contractors Payment,3614.29,0.00,COMMERCIAL SUPPLIER 
 12-01-2024,People - Ageing Well,Nightingale Residential Care Home Ltd,Residential Placements - Private Contractors Payment,3604.00,0.00,COMMERCIAL SUPPLIER 
 12-01-2024,People - Ageing Well,Nightingale Residential Care Home Ltd,Residential Placements - Private Contractors Payment,4400.00,0.00,COMMERCIAL SUPPLIER 
 12-01-2024,People - Ageing Well,Nightingale Residential Care Home Ltd,Residential Placements - Private Contractors Payment,3928.57,0.00,COMMERCIAL SUPPLIER 
 12-01-2024,People - Ageing Well,Nightingale Residential Care Home Ltd,Residential Placements - Private Contractors Payment,3085.80,0.00,COMMERCIAL SUPPLIER 
 12-01-2024,People - Ageing Well,Nightingale Residential Care Home Ltd,Residential Placements - Private Contractors Payment,4800.00,0.00,COMMERCIAL SUPPLIER 
 12-01-2024,People - Ageing Well,Nightingale Residential Care Home Ltd,Residential Placements - Private Contractors Payment,4134.00,0.00,COMMERCIAL SUPPLIER 
 12-01-2024,People - Ageing Well,Nightingale Residential Care Home Ltd,Residential Placements - Private Contractors Payment,3085.80,0.00,COMMERCIAL SUPPLIER 
 12-01-2024,People - Ageing Well,Nightingale Residential Care Home Ltd,Residential Placements - Private Contractors Payment,3476.80,0.00,COMMERCIAL SUPPLIER 
 12-01-2024,People - Ageing Well,Nightingale Residential Care Home Ltd,Residential Placements - Private Contractors Payment,3085.80,0.00,COMMERCIAL SUPPLIER 
 12-01-2024,People - Ageing Well,Nightingale Residential Care Home Ltd,Residential Placements - Private Contractors Payment,4664.00,0.00,COMMERCIAL SUPPLIER 
 12-01-2024,People - Ageing Well,Oaks Residential Home,Residential Placements - Private Contractors Payment,5600.00,0.00,COMMERCIAL SUPPLIER 
 12-01-2024,People - Ageing Well,Oaks Residential Home,Residential Placements - Private Contractors Payment,2802.40,0.00,COMMERCIAL SUPPLIER 
 12-01-2024,People - Ageing Well,Oaks Residential Home,Residential Placements - Private Contractors Payment,5600.00,0.00,COMMERCIAL SUPPLIER 
 12-01-2024,People - Ageing Well,Oaks Residential Home,Residential Placements - Private Contractors Payment,3085.80,0.00,COMMERCIAL SUPPLIER 
 12-01-2024,People - Ageing Well,Oaks Residential Home,Respite Care - Private Contractors Payment,4200.00,0.00,COMMERCIAL SUPPLIER 
 12-01-2024,People - Ageing Well,Oaks Residential Home,Residential Placements - Private Contractors Payment,6000.00,0.00,COMMERCIAL SUPPLIER 
 12-01-2024,People - Ageing Well,Oaks Residential Home,Residential Placements - Private Contractors Payment,3085.80,0.00,COMMERCIAL SUPPLIER 
 12-01-2024,People - Ageing Well,Parkside_a,Residential Placements - Private Contractors Payment,3085.80,0.00,COMMERCIAL SUPPLIER 
 12-01-2024,People - Ageing Well,Parkside_a,Residential Placements - Private Contractors Payment,2802.40,0.00,COMMERCIAL SUPPLIER 
 12-01-2024,People - Ageing Well,Parkside_a,Residential Care Income,650.17,0.00,COMMERCIAL SUPPLIER 
 12-01-2024,People - Ageing Well,Parkside_a,Residential Placements - Private Contractors Payment,3800.00,0.00,COMMERCIAL SUPPLIER 
 12-01-2024,People - Ageing Well,Priory Supporting Care Ltd,Residential Placements - Private Contractors Payment,3816.00,0.00,COMMERCIAL SUPPLIER 
 12-01-2024,People - Ageing Well,Priory Supporting Care Ltd,Residential Placements - Private Contractors Payment,4800.00,0.00,COMMERCIAL SUPPLIER 
 12-01-2024,People - Ageing Well,Priory Supporting Care Ltd,Residential Placements - Private Contractors Payment,3528.57,0.00,COMMERCIAL SUPPLIER 
 12-01-2024,People - Ageing Well,Priory Supporting Care Ltd,Residential Placements - Private Contractors Payment,5200.00,0.00,COMMERCIAL SUPPLIER 
 12-01-2024,People - Ageing Well,Priory Supporting Care Ltd,Residential Placements - Private Contractors Payment,5000.00,0.00,COMMERCIAL SUPPLIER 
 12-01-2024,People - Ageing Well,Priory Supporting Care Ltd,Residential Placements - Private Contractors Payment,4600.00,0.00,COMMERCIAL SUPPLIER 
 12-01-2024,People - Ageing Well,Priory Supporting Care Ltd,Residential Placements - Private Contractors Payment,4720.00,0.00,COMMERCIAL SUPPLIER 
 12-01-2024,People - Ageing Well,Priory Supporting Care Ltd,Residential Placements - Private Contractors Payment,3085.80,0.00,COMMERCIAL SUPPLIER 
 12-01-2024,People - Ageing Well,Priory Supporting Care Ltd,Residential Placements - Private Contractors Payment,4968.00,0.00,COMMERCIAL SUPPLIER 
 12-01-2024,People - Ageing Well,Priory Supporting Care Ltd,Residential Placements - Private Contractors Payment,4400.00,0.00,COMMERCIAL SUPPLIER 
 12-01-2024,People - Ageing Well,Priory Supporting Care Ltd,Residential Placements - Private Contractors Payment,3994.08,0.00,COMMERCIAL SUPPLIER 
 12-01-2024,People - Ageing Well,Priory Supporting Care Ltd,Residential Placements - Private Contractors Payment,4600.00,0.00,COMMERCIAL SUPPLIER 
 12-01-2024,People - Ageing Well,Priory Supporting Care Ltd,Residential Placements - Private Contractors Payment,5000.00,0.00,COMMERCIAL SUPPLIER 
 12-01-2024,People - Ageing Well,Priory Supporting Care Ltd,Residential Placements - Private Contractors Payment,4104.00,0.00,COMMERCIAL SUPPLIER 
 12-01-2024,People - Ageing Well,Ash Grove Residential Care Home,Residential Placements - Private Contractors Payment,3392.00,0.00,COMMERCIAL SUPPLIER 
 12-01-2024,People - Ageing Well,Ash Grove Residential Care Home,Residential Placements - Private Contractors Payment,5200.00,0.00,COMMERCIAL SUPPLIER 
 12-01-2024,People - Ageing Well,Ash Grove Residential Care Home,Residential Placements - Private Contractors Payment,3085.80,0.00,COMMERCIAL SUPPLIER 
 12-01-2024,People - Ageing Well,Ash Grove Residential Care Home,Residential Placements - Private Contractors Payment,3392.00,0.00,COMMERCIAL SUPPLIER 
 12-01-2024,People - Ageing Well,Ash Grove Residential Care Home,Residential Placements - Private Contractors Payment,4800.00,0.00,COMMERCIAL SUPPLIER 
 12-01-2024,People - Ageing Well,Ash Grove Residential Care Home,Residential Placements - Private Contractors Payment,3392.00,0.00,COMMERCIAL SUPPLIER 
 12-01-2024,People - Ageing Well,Ash Grove Residential Care Home,Residential Placements - Private Contractors Payment,3392.00,0.00,COMMERCIAL SUPPLIER 
 12-01-2024,People - Ageing Well,Ash Grove Residential Care Home,Residential Placements - Private Contractors Payment,2802.40,0.00,COMMERCIAL SUPPLIER 
 12-01-2024,People - Ageing Well,Ash Grove Residential Care Home,Residential Placements - Private Contractors Payment,4000.00,0.00,COMMERCIAL SUPPLIER 
 12-01-2024,People - Ageing Well,Ash Grove Residential Care Home,Residential Placements - Private Contractors Payment,6000.00,0.00,COMMERCIAL SUPPLIER 
 12-01-2024,People - Ageing Well,Ash Grove Residential Care Home,Residential Placements - Private Contractors Payment,3800.00,0.00,COMMERCIAL SUPPLIER 
 12-01-2024,People - Ageing Well,Ash Grove Residential Care Home,Residential Placements - Private Contractors Payment,3600.00,0.00,COMMERCIAL SUPPLIER 
 12-01-2024,People - Ageing Well,Ash Grove Residential Care Home,Residential Placements - Private Contractors Payment,3392.00,0.00,COMMERCIAL SUPPLIER 
 12-01-2024,People - Ageing Well,GCH - Hillside Nursing Home,Nursing Homes - Private Contractors Payment,4200.00,0.00,COMMERCIAL SUPPLIER 
 12-01-2024,People - Ageing Well,GCH - Hillside Nursing Home,Residential Placements - Private Contractors Payment,7392.00,0.00,COMMERCIAL SUPPLIER 
 12-01-2024,People - Ageing Well,GCH - Hillside Nursing Home,Nursing Homes - Private Contractors Payment,4780.00,0.00,COMMERCIAL SUPPLIER 
 12-01-2024,People - Ageing Well,GCH - Hillside Nursing Home,Nursing Homes - Private Contractors Payment,4380.00,0.00,COMMERCIAL SUPPLIER 
 12-01-2024,People - Ageing Well,GCH - Hillside Nursing Home,Residential Placements - Private Contractors Payment,4876.00,0.00,COMMERCIAL SUPPLIER 
 12-01-2024,People - Ageing Well,GCH - Hillside Nursing Home,Nursing Homes - Private Contractors Payment,3010.32,0.00,COMMERCIAL SUPPLIER 
 12-01-2024,People - Ageing Well,GCH - Hillside Nursing Home,Nursing Homes - Private Contractors Payment,1971.43,0.00,COMMERCIAL SUPPLIER 
 12-01-2024,People - Ageing Well,GCH - Hillside Nursing Home,Nursing Homes - Private Contractors Payment,1478.57,0.00,COMMERCIAL SUPPLIER 
 12-01-2024,People - Ageing Well,GCH - Hillside Nursing Home,Residential Placements - Private Contractors Payment,3085.80,0.00,COMMERCIAL SUPPLIER 
 12-01-2024,People - Ageing Well,GCH - Hillside Nursing Home,Nursing Homes - Private Contractors Payment,4600.00,0.00,COMMERCIAL SUPPLIER 
 12-01-2024,People - Ageing Well,GCH - Hillside Nursing Home,Residential Placements - Private Contractors Payment,3085.80,0.00,COMMERCIAL SUPPLIER 
 12-01-2024,People - Ageing Well,GCH - Hillside Nursing Home,Nursing Homes - Private Contractors Payment,4600.00,0.00,COMMERCIAL SUPPLIER 
 12-01-2024,People - Ageing Well,GCH - Hillside Nursing Home,Nursing Homes - Private Contractors Payment,4218.80,0.00,COMMERCIAL SUPPLIER 
 12-01-2024,People - Ageing Well,GCH - Hillside Nursing Home,Nursing Homes - Private Contractors Payment,3816.00,0.00,COMMERCIAL SUPPLIER 
 12-01-2024,People - Ageing Well,GCH - Hillside Nursing Home,Nursing Homes - Private Contractors Payment,4247.64,0.00,COMMERCIAL SUPPLIER 
 12-01-2024,People - Ageing Well,GCH - Hillside Nursing Home,Residential Placements - Private Contractors Payment,2802.40,0.00,COMMERCIAL SUPPLIER 
 12-01-2024,People - Ageing Well,GCH - Hillside Nursing Home,Nursing Homes - Private Contractors Payment,4876.00,0.00,COMMERCIAL SUPPLIER 
 12-01-2024,People - Ageing Well,GCH - Hillside Nursing Home,Residential Placements - Private Contractors Payment,3899.88,0.00,COMMERCIAL SUPPLIER 
 12-01-2024,People - Ageing Well,GCH - Hillside Nursing Home,Nursing Homes - Private Contractors Payment,14784.00,0.00,COMMERCIAL SUPPLIER 
 12-01-2024,People - Ageing Well,GCH - Hillside Nursing Home,Nursing Homes - Private Contractors Payment,3509.88,0.00,COMMERCIAL SUPPLIER 
 12-01-2024,People - Ageing Well,GCH - Hillside Nursing Home,Nursing Homes - Private Contractors Payment,3010.32,0.00,COMMERCIAL SUPPLIER 
